Service Area,Service Division,Expense Type,Expense Code,Detailed Expense Type,Payment Date,Transaction Number,Amount Exc Vat,Supplier Name
Adult and Health Services,Head of Adults,Transfer Payments,515209,Social Services Clients,03-Apr-17,3265502-CAS-03-2017-167,"1,500.00",REDACTED - PAYMENT TO INDIVIDUAL
Regeneration and Local Services,Economic Development and Housing,Supplies and Services,384700,Miscellaneous Expenses,03-Apr-17,3265618-RED-03-2017-356,650,REDACTED - PAYMENT TO INDIVIDUAL
Regeneration and Local Services,Direct Services,Supplies and Services,304259,Equipment and Materials,03-Apr-17,3265638-SAJ/2017/132240,502.7,LBS WORLDWIDE LTD T/A FRESH2O GLOBAL.
Resources,Legal & Democratic Services,Supplies and Services,338042,Services,03-Apr-17,3265653-328937/INVMM225,540,MISS AMANDA MILLER.
Children and Young Peoples Services,Education,Employees,40001,Recruitment Instruction and Training,03-Apr-17,3265754-TARINV/15457342,710.1,TES GLOBAL LTD.
Regeneration and Local Services,Economic Development and Housing,Supplies and Services,384999,Miscellaneous Expenses,03-Apr-17,3265522-SLINV/00000238,500,CESTRIA HOUSING.
Adult and Health Services,Head of Adults,Supplies and Services,338066,Services,03-Apr-17,3265485-090217-090317,746.75,ABA LOCUMS LTD.
Adult and Health Services,Head of Adults,Supplies and Services,338066,Services,03-Apr-17,3265555-090217-090317,"3,598.26",DAGN
Adult and Health Services,Head of Adults,Supplies and Services,338066,Services,03-Apr-17,3265558-090217-090317,"2,138.64",DHN
Adult and Health Services,Head of Adults,Supplies and Services,338066,Services,03-Apr-17,3265559-090217-090317,"2,900.17",DIM
Adult and Health Services,Head of Adults,Supplies and Services,338066,Services,03-Apr-17,3265560-090217-090317,"2,498.18",DJEH
Adult and Health Services,Head of Adults,Supplies and Services,338066,Services,03-Apr-17,3265561-090217-090317,"4,109.49",DMSA
Adult and Health Services,Head of Adults,Supplies and Services,338066,Services,03-Apr-17,3265562-090217-090317,941.78,DNM
Adult and Health Services,Head of Adults,Supplies and Services,338066,Services,03-Apr-17,3265564-090217-090317,"2,675.56",DSW
Resources,Legal & Democratic Services,Supplies and Services,342225,Computers and Communications,03-Apr-17,3265647-INVLT09001043,550,LUMI TECHNOLOGIES T/A IML INTERACTIVE UK LTD.
Adult and Health Services,Head of Adults,Supplies and Services,338066,Services,03-Apr-17,3265727-090217-090317,"1,934.54",SHAN MEDICAL SERVICES LTD.
Adult and Health Services,Head of Adults,Supplies and Services,338066,Services,03-Apr-17,3265799-090217-090317,"2,495.79",ZM MEDICAL CONSULTANTS LIMITED.
Regeneration and Local Services,Culture & Sport,Supplies and Services,384199,Miscellaneous Expenses,03-Apr-17,3265625-GALA2017MARC,926.13,JOHN MURDOCH
Regeneration and Local Services,Direct Services,Third Party Payments,430100,Rendered by Private Contractors,03-Apr-17,3265639-187847109835,692.47,LEEDS GALVANISING & POWDER COATING LTD.
Resources,I.C.T. Services,Supplies and Services,342033,Computers and Communications,03-Apr-17,3265733-INV01576708,"3,008.22",SOFTCAT LTD.
Children and Young Peoples Services,Education,Transfer Payments,510026,School Children,03-Apr-17,3265513-JANTOAPRIL,"1,201.20",BRIGHT STAR NURSERY.
Regeneration and Local Services,Economic Development and Housing,Supplies and Services,338094,Services,03-Apr-17,3265519-10/03/2017,600,CDC ENTERPRISE AGENCY.
Regeneration and Local Services,Technical Services,Supplies and Services,304221,Equipment and Materials,03-Apr-17,3265520-3009452751,561.41,CEMEX UK MATERIALS LTD.
Regeneration and Local Services,Technical Services,Supplies and Services,304221,Equipment and Materials,03-Apr-17,3265520-3009453168,946.8,CEMEX UK MATERIALS LTD.
Regeneration and Local Services,Transport and Contracted Services,Construction Work,908105,Construction work,03-Apr-17,3265535-0000078410,"10,000.00",COOK HAMMOND & KELL (CHK LTD).
Resources,I.C.T. Services,Stock,926900,Stock in hand-Inventory system,03-Apr-17,3265547-7402350628,"1,667.80",DELL COMPUTER CORPORATION LTD.
Regeneration and Local Services,Direct Services,Supplies and Services,304221,Equipment and Materials,03-Apr-17,3265573-059-201587,511.47,EDMUNDSON ELECTRICAL LTD.
Regeneration and Local Services,Technical Services,Supplies and Services,384199,Miscellaneous Expenses,03-Apr-17,3265599-0040219699,"24,823.00",HARTLEPOOL BOROUGH COUNCIL.
Regeneration and Local Services,Direct Services,Supplies and Services,304221,Equipment and Materials,03-Apr-17,3265677-0000026477,"1,850.00",NORTHERN DRIVES & CONTROLS LTD.
Children and Young Peoples Services,Education,Transfer Payments,510026,School Children,03-Apr-17,3265682-02RFSPRING,842.4,NURSERY TIME.
Regeneration and Local Services,Technical Services,Stock,926900,Stock in hand-Inventory system,03-Apr-17,3265734-SI17002277,840.8,SOLON SECURITY LTD.
Regeneration and Local Services,Direct Services,Supplies and Services,304221,Equipment and Materials,03-Apr-17,3265747-0000099010,558.25,TA PLASTIC SUPPLIES LTD.
Regeneration and Local Services,Technical Services,Supplies and Services,304221,Equipment and Materials,03-Apr-17,3265749-9035879680,"1,005.48",TARMAC TRADING LTD.
Regeneration and Local Services,Technical Services,Supplies and Services,304221,Equipment and Materials,03-Apr-17,3265749-9035888248,602.38,TARMAC TRADING LTD.
Regeneration and Local Services,Technical Services,Supplies and Services,304221,Equipment and Materials,03-Apr-17,3265749-9035888250,582.26,TARMAC TRADING LTD.
Regeneration and Local Services,Technical Services,Stock,926900,Stock in hand-Inventory system,03-Apr-17,3265761-N/IN192230,"14,887.50",THOMAS OWEN & SONS (NEWCASTLE) LTD.
Children and Young Peoples Services,Education,Supplies and Services,384199,Miscellaneous Expenses,03-Apr-17,3265775-9000293347,"33,900.00",UNIVERSITY OF NEWCASTLE UPON TYNE.
Children and Young Peoples Services,Education,Supplies and Services,384199,Miscellaneous Expenses,03-Apr-17,3265775-9000293348,"33,900.00",UNIVERSITY OF NEWCASTLE UPON TYNE.
Regeneration and Local Services,Direct Services,Supplies and Services,304221,Equipment and Materials,03-Apr-17,3265778-6890234294,"1,379.40",VIESSMANN LTD.
Regeneration and Local Services,Direct Services,Supplies and Services,304259,Equipment and Materials,03-Apr-17,3265500-INV112848,"1,847.80",AZTEC CHEMICALS LTD.
Resources,I.C.T. Services,Supplies and Services,304639,Equipment and Materials,03-Apr-17,3265552-147075502,676.55,DIVERSEY LTD.
Regeneration and Local Services,Technical Services,Supplies and Services,304357,Equipment and Materials,03-Apr-17,3265585-DCC260317,"16,056.08",GAP GROUP LTD.
Regeneration and Local Services,Technical Services,Stock,926900,Stock in hand-Inventory system,03-Apr-17,3265596-06/636109,"1,405.80",GREENHAM TRADING LTD.
Regeneration and Local Services,Direct Services,Premises,145023,Cleaning and Domestic Supplies,03-Apr-17,3265596-06/636393,"1,468.00",GREENHAM TRADING LTD.
Regeneration and Local Services,Technical Services,Supplies and Services,304221,Equipment and Materials,03-Apr-17,3265630-STI453666,603.14,JT DOVE LTD.
Resources,Legal & Democratic Services,Supplies and Services,372009,Subscriptions,03-Apr-17,3265642-DI225457F,"4,260.75",LEXISNEXIS BUTTERWORTHS.
Children and Young Peoples Services,Education,Supplies and Services,384199,Miscellaneous Expenses,03-Apr-17,3265674-11MARCH17,"1,692.00",NORTH MUSIC TRUST.
Resources,I.C.T. Services,Supplies and Services,342033,Computers and Communications,03-Apr-17,3265713-SIN050665,"3,730.00",REDWAY NETWORKS LTD.
Regeneration and Local Services,Technical Services,Supplies and Services,304221,Equipment and Materials,03-Apr-17,3265488-24534862,"1,750.01",AGGREGATE INDUSTRIES UK LTD.
Regeneration and Local Services,Technical Services,Supplies and Services,304221,Equipment and Materials,03-Apr-17,3265488-24534863,"1,236.44",AGGREGATE INDUSTRIES UK LTD.
Regeneration and Local Services,Technical Services,Supplies and Services,304221,Equipment and Materials,03-Apr-17,3265488-24534864,"2,840.28",AGGREGATE INDUSTRIES UK LTD.
Regeneration and Local Services,Technical Services,Supplies and Services,304221,Equipment and Materials,03-Apr-17,3265488-24534866,"3,444.74",AGGREGATE INDUSTRIES UK LTD.
Regeneration and Local Services,Technical Services,Supplies and Services,304221,Equipment and Materials,03-Apr-17,3265488-24534867,775.48,AGGREGATE INDUSTRIES UK LTD.
Regeneration and Local Services,Technical Services,Supplies and Services,304221,Equipment and Materials,03-Apr-17,3265488-24541583,"2,503.41",AGGREGATE INDUSTRIES UK LTD.
Regeneration and Local Services,Technical Services,Supplies and Services,304221,Equipment and Materials,03-Apr-17,3265488-24541584,530.96,AGGREGATE INDUSTRIES UK LTD.
Regeneration and Local Services,Technical Services,Supplies and Services,304221,Equipment and Materials,03-Apr-17,3265488-24541585,907.23,AGGREGATE INDUSTRIES UK LTD.
Regeneration and Local Services,Technical Services,Supplies and Services,304221,Equipment and Materials,03-Apr-17,3265488-24541586,784.1,AGGREGATE INDUSTRIES UK LTD.
Children and Young Peoples Services,Childrens Services,Third Party Payments,425021,Rendered by Voluntary Organisations,03-Apr-17,3265499-INV-0662,"11,600.00",ARTEMIS SUPPORT LTD.
Regeneration and Local Services,Direct Services,Transport,210057,Repair and Maintenance of Vehicles,03-Apr-17,3265503-15113263,"1,023.05",BELL TRUCK SALES LTD.
Regeneration and Local Services,Economic Development and Housing,Supplies and Services,304259,Equipment and Materials,03-Apr-17,3265509-U1071768,831.39,BNP PARIBAS LEASE GROUP (RENTALS).
Regeneration and Local Services,Direct Services,Third Party Payments,430101,Rendered by Private Contractors,03-Apr-17,3265551-IV867515,610.5,DIRECT TYRE MANAGEMENT (DTM).
Regeneration and Local Services,Projects and Business services,Supplies and Services,304999,Equipment and Materials,03-Apr-17,3265588-SI/80800,"3,390.00",GEOTECHNICAL INSTRUMENTS (UK) LTD.
Regeneration and Local Services,Projects and Business services,Supplies and Services,304999,Equipment and Materials,03-Apr-17,3265588-SI/80827,"5,970.00",GEOTECHNICAL INSTRUMENTS (UK) LTD.
Regeneration and Local Services,Technical Services,Stock,926900,Stock in hand-Inventory system,03-Apr-17,3265624-NI032685,"8,039.00",JOHN MACLEAN & SONS ELECTRICAL (DINGWALL) LTD.
Children and Young Peoples Services,Childrens Services,Supplies and Services,304259,Equipment and Materials,03-Apr-17,3265640-00203986,"2,659.00",LEVANT OFFICE INTERIORS.
Resources,I.C.T. Services,Supplies and Services,344033,Telephones,03-Apr-17,3265648-11957886,"15,317.00",MAINTEL EUROPE LTD.
Resources,I.C.T. Services,Supplies and Services,344137,Telephones,03-Apr-17,3265648-11958131,"4,900.00",MAINTEL EUROPE LTD.
Adult and Health Services,Planning & Service Strategy,Supplies and Services,338091,Services,03-Apr-17,3265670-50067503,"1,800.00",NEW COLLEGE DURHAM.
Resources,Corporate Finance,Supplies and Services,336005,Advertising,03-Apr-17,3265671-19212986,"2,937.92",NEWSQUEST (YORKSHIRE & NORTH EAST) LTD.
Regeneration and Local Services,Technical Services,Stock,926900,Stock in hand-Inventory system,03-Apr-17,3265692-XL194471,"1,170.00",PARK ELECTRICAL DISTRIBUTORS LTD.
Regeneration and Local Services,Culture & Sport,Supplies and Services,338047,Services,03-Apr-17,3265697-INV06534,833.33,PICTUREHOUSE CINEMAS LTD.
Regeneration and Local Services,Economic Development and Housing,Supplies and Services,384199,Miscellaneous Expenses,03-Apr-17,3265715-INV-5541,"2,500.00",REVOLUTION MARKETING LTD.
Regeneration and Local Services,Direct Services,Transport,230005,Contract Hire,03-Apr-17,3265728-10784738,654.12,SHB HIRE LTD.
Regeneration and Local Services,Technical Services,Third Party Payments,430100,Rendered by Private Contractors,03-Apr-17,3265743-90009329,"5,362.80",SWARCO TRAFFIC LTD.
Transformation and Partnerships,Partnerships & Community Engagement Div.,Supplies and Services,338094,Services,03-Apr-17,3265757-1/100317,572,THE HAZELWELL CENTRE.
Regeneration and Local Services,Direct Services,Third Party Payments,430100,Rendered by Private Contractors,03-Apr-17,3265773-INV-0206,817,UK VENTILATION LTD.
Children and Young Peoples Services,Education,Supplies and Services,352001,Conference Expenses,03-Apr-17,3265776-91457158,"2,100.00",UNIVERSITY OF NORTHUMBRIA.*
Regeneration and Local Services,Direct Services,Supplies and Services,304221,Equipment and Materials,03-Apr-17,3265795-41186822,558.54,WOLSELEY UK LTD.
Regeneration and Local Services,Direct Services,Supplies and Services,304221,Equipment and Materials,03-Apr-17,3265795-41229899,"3,643.28",WOLSELEY UK LTD.
Resources,Legal & Democratic Services,Supplies and Services,338042,Services,03-Apr-17,3265798-INV/RE14,800,ZENITH CHAMBERS.
Children and Young Peoples Services,Education,Transfer Payments,510026,School Children,03-Apr-17,3265515-10/3/17,"1,296.00",REDACTED - PAYMENT TO INDIVIDUAL
Children and Young Peoples Services,Childrens Services,Third Party Payments,440999,Other Third Party Payments,03-Apr-17,3265548-2936046,737.7,DEPARTMENT FOR WORK & PENSIONS.
Regeneration and Local Services,Economic Development and Housing,Supplies and Services,342053,Computers and Communications,03-Apr-17,3265577-BW/2457,"1,200.00",ENERGY AUDIT CO LTD.
Regeneration and Local Services,Culture & Sport,Supplies and Services,384199,Miscellaneous Expenses,03-Apr-17,3265601-HHERBER,"1,250.00",HENRY HERBERT (CELEBRITY CHEF).
Regeneration and Local Services,Economic Development and Housing,Premises,108125,Service Repairs and Maintenance,03-Apr-17,3265608-TW-2165,"1,350.00",IAN ADAMSON T/A COMPLETE WEED CONTROL (TYNE & WEAR).
Resources,I.C.T. Services,Supplies and Services,304639,Equipment and Materials,03-Apr-17,3265612-3290458,555,INSIGHT DIRECT (UK) LTD.
Resources,I.C.T. Services,Vehicles Equipment Furniture and Fittings,912701,Computer equipment,03-Apr-17,3265612-3291699,620.05,INSIGHT DIRECT (UK) LTD.
Regeneration and Local Services,Technical Services,Supplies and Services,304358,Equipment and Materials,03-Apr-17,3265616-5305301,"1,247.00",JA GILSON (AGRICULTURAL CONTRACTORS) LTD.
Regeneration and Local Services,Technical Services,Supplies and Services,304358,Equipment and Materials,03-Apr-17,3265616-5305305,607.5,JA GILSON (AGRICULTURAL CONTRACTORS) LTD.
Regeneration and Local Services,Direct Services,Supplies and Services,304221,Equipment and Materials,03-Apr-17,3265646-3985354,540,LONDON GENERAL SALES LTD.
Children and Young Peoples Services,Childrens Services,Supplies and Services,364352,Grants to Voluntary Organisations,03-Apr-17,3265656-10/3/17,855.84,MOVING ON DURHAM.
Regeneration and Local Services,Economic Development and Housing,Premises,115125,Repairs to Grounds,03-Apr-17,3265664-DL/2110,"1,432.78",N & N SECURITY FENCING LTD.
Children and Young Peoples Services,Childrens Services,Supplies and Services,342051,Computers and Communications,03-Apr-17,3265668-9926406,948.02,NETSUPPORT SOFTWARE LTD.
Regeneration and Local Services,Direct Services,Supplies and Services,304259,Equipment and Materials,03-Apr-17,3265679-2290114,"1,150.00",NORTHERN TOOLS & ACCESSORIES.
Regeneration and Local Services,Direct Services,Supplies and Services,304259,Equipment and Materials,03-Apr-17,3265679-2291568,688,NORTHERN TOOLS & ACCESSORIES.
Resources,I.C.T. Services,Supplies and Services,304245,Equipment and Materials,03-Apr-17,3265705-8623386,506.48,PREMIER PAPER GROUP LTD.
Adult and Health Services,Head of Adults,Supplies and Services,308011,Furniture,03-Apr-17,3265714-CLG1998,"1,499.95",RENDLES HOUSE FURNISHER.
Regeneration and Local Services,Direct Services,Supplies and Services,304221,Equipment and Materials,03-Apr-17,3265746-2293086,862.62,T CROSSLING & CO LTD.
Regeneration and Local Services,Direct Services,Supplies and Services,304221,Equipment and Materials,03-Apr-17,3265746-2293087,517.23,T CROSSLING & CO LTD.
Regeneration and Local Services,Direct Services,Supplies and Services,304221,Equipment and Materials,03-Apr-17,3265746-2293088,557.94,T CROSSLING & CO LTD.
Regeneration and Local Services,Direct Services,Supplies and Services,304221,Equipment and Materials,03-Apr-17,3265746-2294663,"2,389.80",T CROSSLING & CO LTD.
Regeneration and Local Services,Direct Services,Supplies and Services,304221,Equipment and Materials,03-Apr-17,3265746-2299495,669.02,T CROSSLING & CO LTD.
Regeneration and Local Services,Culture & Sport,Supplies and Services,384199,Miscellaneous Expenses,03-Apr-17,3265764-THERBER,"1,250.00",TOM HERBERT (CELEBRITY CHEF).
Adult and Health Services,Planning & Service Strategy,Supplies and Services,338094,Services,03-Apr-17,3265777-1700011,"1,630.00",USHAW COLLEGE.
Adult and Health Services,Planning & Service Strategy,Supplies and Services,338094,Services,03-Apr-17,3265777-1700013,"1,000.00",USHAW COLLEGE.
Resources,I.C.T. Services,Supplies and Services,344015,Telephones,03-Apr-17,3265781-JY30614,"3,850.00",VODAFONE CORPORATE LTD.
Resources,I.C.T. Services,Supplies and Services,332029,Printing Stationery and Gen Off Exps,03-Apr-17,3265576-103629,763,ELANDERS UK.
Resources,I.C.T. Services,Supplies and Services,332029,Printing Stationery and Gen Off Exps,03-Apr-17,3265576-103630,"1,073.00",ELANDERS UK.
Regeneration and Local Services,Economic Development and Housing,Supplies and Services,344033,Telephones,03-Apr-17,3265582-135377,"1,082.94",FREEDOM COMMUNICATIONS (UK) LTD.
Regeneration and Local Services,Economic Development and Housing,Supplies and Services,304259,Equipment and Materials,03-Apr-17,3265602-107834,746.72,HEPSCOTT WATER SYSTEMS LTD.
Regeneration and Local Services,Direct Services,Transport,230005,Contract Hire,03-Apr-17,3265666-111651,"3,000.00",ND BROWN LTD.
Regeneration and Local Services,Direct Services,Transport,215022,Running Costs of Vehicles,03-Apr-17,3265684-230173,749.1,OIL NRG LTD.
Regeneration and Local Services,Direct Services,Transport,215005,Running Costs of Vehicles,03-Apr-17,3265684-232787,"6,436.90",OIL NRG LTD.
Resources,I.C.T. Services,Supplies and Services,332029,Printing Stationery and Gen Off Exps,03-Apr-17,3265703-641927,880,POTTS PRINTERS LTD.
Resources,I.C.T. Services,Supplies and Services,332029,Printing Stationery and Gen Off Exps,03-Apr-17,3265703-641955,"1,641.00",POTTS PRINTERS LTD.
Resources,I.C.T. Services,Supplies and Services,332029,Printing Stationery and Gen Off Exps,03-Apr-17,3265703-641960,"1,058.00",POTTS PRINTERS LTD.
Resources,I.C.T. Services,Supplies and Services,332029,Printing Stationery and Gen Off Exps,03-Apr-17,3265703-641974,679,POTTS PRINTERS LTD.
Regeneration and Local Services,Direct Services,Premises,108099,Service Repairs and Maintenance,03-Apr-17,3265724-6/2017,"1,685.00",SE LANDSCAPING & GARDEN SERVICES.
Regeneration and Local Services,Technical Services,Supplies and Services,304221,Equipment and Materials,03-Apr-17,3265736-091493,"2,513.08",STONEGRAVE AGGREGATES LTD.
Regeneration and Local Services,Technical Services,Supplies and Services,304221,Equipment and Materials,03-Apr-17,3265771-171304,524.37,TYNEDALE ROADSTONE LTD.
Children and Young Peoples Services,Childrens Services,Employees,80025,Agency Staff,03-Apr-17,3265780-250933,"1,020.00",VISION FOR EDUCATION LTD.
Children and Young Peoples Services,Childrens Services,Employees,80025,Agency Staff,03-Apr-17,3265780-250934,540,VISION FOR EDUCATION LTD.
Regeneration and Local Services,Direct Services,Supplies and Services,304221,Equipment and Materials,03-Apr-17,3265789-635599,"29,880.00",WERNICK HIRE LTD.
Regeneration and Local Services,Spatial Policy Planning Assets & Environment,Construction Work,908105,Construction work,03-Apr-17,3265793-WA3324,"1,490.00",WM ALLISON & SONS LTD.
Regeneration and Local Services,Direct Services,Third Party Payments,430100,Rendered by Private Contractors,03-Apr-17,3265800-108299,693.26,ZOELLER WASTE SYSTEMS LTD.
Regeneration and Local Services,Direct Services,Third Party Payments,430100,Rendered by Private Contractors,03-Apr-17,3265800-108530,"1,560.45",ZOELLER WASTE SYSTEMS LTD.
Adult and Health Services,Head of Adults,Supplies and Services,308011,Furniture,03-Apr-17,3265489-11396,"1,088.99",AH & D CUTHBERTSON LTD.
Regeneration and Local Services,Technical Services,Premises,150015,Apportioned Exps of Operational Blds,03-Apr-17,3265527-61462,780.33,CLEE HILL PLANT LTD.
Resources,Legal & Democratic Services,Supplies and Services,338025,Services,03-Apr-17,3265595-F1099,800,GORDON FLETCHER & SONS LTD.
Regeneration and Local Services,Direct Services,Third Party Payments,430100,Rendered by Private Contractors,03-Apr-17,3265604-67653,894.44,HOGARTH COACHWORKS LTD.
Regeneration and Local Services,Direct Services,Third Party Payments,430100,Rendered by Private Contractors,03-Apr-17,3265604-67654,"5,169.35",HOGARTH COACHWORKS LTD.
Regeneration and Local Services,Direct Services,Premises,108099,Service Repairs and Maintenance,03-Apr-17,3265622-00414,"1,760.00",JN KEARTON.
Regeneration and Local Services,Direct Services,Premises,108099,Service Repairs and Maintenance,03-Apr-17,3265622-00417,"1,840.00",JN KEARTON.
Regeneration and Local Services,Direct Services,Premises,108099,Service Repairs and Maintenance,03-Apr-17,3265622-00418,"6,250.00",JN KEARTON.
Regeneration and Local Services,Culture & Sport,Premises,125009,Rents,03-Apr-17,3265635-US016,"3,425.00",LANGLEY PARK BUSINESS CENTRE.
Regeneration and Local Services,Direct Services,Third Party Payments,430100,Rendered by Private Contractors,03-Apr-17,3265636-17055,"27,585.00",LANGUARD LTD.
Regeneration and Local Services,Technical Services,Third Party Payments,430100,Rendered by Private Contractors,03-Apr-17,3265686-19018,"1,040.00",OLIVERS TREE SERVICES LTD.
Dedicated Schools Grant,Dedicated Schools Grant,Employees,40149,Recruitment Instruction and Training,03-Apr-17,3265690-16167,"1,200.00",PAC-UK LTD  (POST ADOPTION CENTRE).
Children and Young Peoples Services,Childrens Services,Third Party Payments,486043,Service Level Agreements,03-Apr-17,3265690-16170,"1,500.00",PAC-UK LTD  (POST ADOPTION CENTRE).
Regeneration and Local Services,Direct Services,Supplies and Services,338078,Services,03-Apr-17,3265711-60220,"2,958.83",QW SECURITY LTD.
Regeneration and Local Services,Technical Services,Third Party Payments,460224,Contract Payments,03-Apr-17,3265726-18157,"27,000.00",SEYMOUR (CIVIL ENGINEERING CONTRACTORS) LTD.
Regeneration and Local Services,Direct Services,Third Party Payments,430100,Rendered by Private Contractors,03-Apr-17,3265758-00291,"9,492.00",THE HIDEOUT HOUSE COMPANY LTD.
Adult and Health Services,EnvironmentHealth & Consumer Protection,Income,720330,Fees and Charges,03-Apr-17,3265779-18680,985.33,VIP SYSTEM LTD.
Regeneration and Local Services,Direct Services,Transport,230005,Contract Hire,03-Apr-17,3265785-72632,728,WARREN ACCESS LTD.
Regeneration and Local Services,Culture & Sport,Supplies and Services,304221,Equipment and Materials,03-Apr-17,3265494-9820,"1,507.35",ALISON BLACK LTD T/A SPORTMAX.
Children and Young Peoples Services,Childrens Services,Supplies and Services,364352,Grants to Voluntary Organisations,03-Apr-17,3265521-3471,962.88,CENTREPOINT SOHO LTD.
Regeneration and Local Services,Direct Services,Supplies and Services,304221,Equipment and Materials,03-Apr-17,3265526-5004,"1,920.00",CITY FABRICATIONS LTD.
Regeneration and Local Services,Direct Services,Construction Work,908105,Construction work,03-Apr-17,3265543-3437,"1,250.00",DALADALE LTD.
Regeneration and Local Services,Direct Services,Third Party Payments,430100,Rendered by Private Contractors,03-Apr-17,3265609-2363,"3,567.00",IAN C LIDDLE.
Regeneration and Local Services,Technical Services,Third Party Payments,430127,Rendered by Private Contractors,03-Apr-17,3265609-2366,"1,008.00",IAN C LIDDLE.
Regeneration and Local Services,Technical Services,Third Party Payments,430127,Rendered by Private Contractors,03-Apr-17,3265615-1348,"1,752.50",J & JG GILL & SONS LTD.
Regeneration and Local Services,Technical Services,Stock,926900,Stock in hand-Inventory system,03-Apr-17,3265621-8202,855.96,JG UNIFORMS.
Regeneration and Local Services,Technical Services,Third Party Payments,430100,Rendered by Private Contractors,03-Apr-17,3265634-1950,"68,181.34",L & G PLANT HIRE & SALES LTD.
Regeneration and Local Services,Technical Services,Third Party Payments,430127,Rendered by Private Contractors,03-Apr-17,3265649-5406,"1,696.50",MAKEPEACE MOTORS.
Regeneration and Local Services,Technical Services,Third Party Payments,430127,Rendered by Private Contractors,03-Apr-17,3265649-5407,"1,696.50",MAKEPEACE MOTORS.
Regeneration and Local Services,Technical Services,Third Party Payments,430127,Rendered by Private Contractors,03-Apr-17,3265649-5408,572,MAKEPEACE MOTORS.
Regeneration and Local Services,Technical Services,Third Party Payments,430127,Rendered by Private Contractors,03-Apr-17,3265649-5409,550,MAKEPEACE MOTORS.
Children and Young Peoples Services,Education,Supplies and Services,352001,Conference Expenses,03-Apr-17,3265663-3172,525,REDACTED - PAYMENT TO INDIVIDUAL
Adult and Health Services,Planning & Service Strategy,Supplies and Services,338089,Services,03-Apr-17,3265719-1710,"1,556.70",ROGER KENNINGTON CONSULTING.
Children and Young Peoples Services,Education,Supplies and Services,352001,Conference Expenses,03-Apr-17,3265759-8021,"1,000.00",THE SPEAKERS AGENCY.
Regeneration and Local Services,Technical Services,Supplies and Services,304358,Equipment and Materials,03-Apr-17,3265797-6184,974.75,YOULL CONSTRUCTION LTD.
Adult and Health Services,Head of Adults,Supplies and Services,304516,Equipment and Materials,03-Apr-17,3265505-53,"1,029.70",BILL SCOTT TAXIS LTD.
Adult and Health Services,Head of Adults,Premises,125009,Rents,04-Apr-17,3265861-GROUPLIVINGSCHEMES1718,"4,586.79",DERWENTSIDE HOMES LTD.
Transformation and Partnerships,Partnerships & Community Engagement Div.,Cap Exp on Grants & Other Financial Assistance (REFCUS),918004,Contributions to other bodies,04-Apr-17,3266001-VOUCHER16NB-EDUR081,660,SEAHAM YOUTH CENTRE.
Regeneration and Local Services,Transport and Contracted Services,Premises,125009,Rents,04-Apr-17,3265961-5400511/BUS/248383,"2,187.57",NETWORK RAIL.
Children and Young Peoples Services,Childrens Services,Supplies and Services,364358,Grants to Voluntary Organisations,04-Apr-17,3265810-CAS-04-2017-007,"1,250.00",BEDE BROOKE LETTINGS LTD.
Regeneration and Local Services,Spatial Policy Planning Assets & Environment,Supplies and Services,384700,Miscellaneous Expenses,04-Apr-17,3265836-RED-04-2017-003,"1,061.50",REDACTED - PAYMENT TO INDIVIDUAL
Resources,Legal & Democratic Services,Supplies and Services,338042,Services,04-Apr-17,3265860-321089/INVFM173,850,DERE STREET BARRISTERS.
Adult and Health Services,Head of Adults,Premises,125009,Rents,04-Apr-17,3265868-1042938004-1718,811.92,EAST DURHAM HOMES.
Children and Young Peoples Services,Childrens Services,Supplies and Services,364301,Grants to Voluntary Organisations,04-Apr-17,3265938-CAS-04-2017-009,611.04,REDACTED - PAYMENT TO INDIVIDUAL
Regeneration and Local Services,Economic Development and Housing,Supplies and Services,340001,Postages,04-Apr-17,3265960-RED-04-2017-001,"3,500.00",NEOPOST CREDIFON.
Children and Young Peoples Services,Childrens Services,Supplies and Services,364310,Grants to Voluntary Organisations,04-Apr-17,3266021-CAS-04-2017-005,636.16,REDACTED - PAYMENT TO INDIVIDUAL
Adult and Health Services,Head of Adults,Transfer Payments,515201,Social Services Clients,04-Apr-17,3266045-CAS-04-2017-011,794.5,REDACTED - PAYMENT TO INDIVIDUAL
Children and Young Peoples Services,Childrens Services Operational Support,Supplies and Services,338089,Services,04-Apr-17,3266039-SIGN/00000247,"2,280.00",UNITE LTD.
Regeneration and Local Services,Transport and Contracted Services,Supplies and Services,344033,Telephones,04-Apr-17,3265939-CBF-1044515,500,MBLOX LTD T/A CARDBOARDFISH.
Adult and Health Services,Head of Adults,Supplies and Services,338366,Services,04-Apr-17,3265827-38839-2017,"2,195.50",CARE ABILITY.
Adult and Health Services,Head of Adults,Third Party Payments,478151,Purchase of Care,04-Apr-17,3265845-421R122192,"4,432.68",COMMUNITY INTEGRATED CARE LTD.
Regeneration and Local Services,Direct Services,Third Party Payments,430100,Rendered by Private Contractors,04-Apr-17,3265911-PG/4915/JN,"2,737.75",HOLME ASPHALT TECHNICAL SERVICES LTD.
Adult and Health Services,Public Health,Third Party Payments,460803,Contract Payments,04-Apr-17,3265928-0000008357,"65,753.00",LIFELINE PROJECT LTD.
Regeneration and Local Services,Technical Services,Stock,926900,Stock in hand-Inventory system,04-Apr-17,3266023-46/1129174,557.21,SUPPLY UK.
Regeneration and Local Services,Technical Services,Supplies and Services,304357,Equipment and Materials,04-Apr-17,3265895-DCC120317,"17,136.55",GAP GROUP LTD.
Dedicated Schools Grant,Dedicated Schools Grant,Third Party Payments,440080,Other Third Party Payments,04-Apr-17,3265986-SIN032071,"64,899.22",PORTLAND COLLEGE.
Children and Young Peoples Services,Childrens Services,Supplies and Services,384362,Miscellaneous Expenses,04-Apr-17,3266004-449975341,516.58,SENSORY EDUCATION LTD.
Regeneration and Local Services,Technical Services,Stock,926900,Stock in hand-Inventory system,04-Apr-17,3266041-INV040586,"45,050.00",URBIS SCHREDER LTD.
Regeneration and Local Services,Technical Services,Supplies and Services,304221,Equipment and Materials,04-Apr-17,3265803-24547774,"1,000.13",AGGREGATE INDUSTRIES UK LTD.
Regeneration and Local Services,Technical Services,Supplies and Services,304221,Equipment and Materials,04-Apr-17,3265803-24547775,"1,544.68",AGGREGATE INDUSTRIES UK LTD.
Regeneration and Local Services,Direct Services,Supplies and Services,372009,Subscriptions,04-Apr-17,3265842-CSS2928,"2,800.00",CLEARSKIES SOFTWARE.
Regeneration and Local Services,Direct Services,Construction Work,908105,Construction work,04-Apr-17,3265920-1107777,"2,385.00",JOHNSONS OF WHIXLEY LTD.
Regeneration and Local Services,Direct Services,Third Party Payments,430100,Rendered by Private Contractors,04-Apr-17,3266020-1086/17,"2,094.00",STEPHEN A CRAIG T/A SAC (SERVICING & COMMISSIONING).
Children and Young Peoples Services,Childrens Services,Third Party Payments,440016,Other Third Party Payments,04-Apr-17,3266075-1178783,711.95,REDACTED - PAYMENT TO INDIVIDUAL
Children and Young Peoples Services,Childrens Services,Third Party Payments,440027,Other Third Party Payments,04-Apr-17,3266187-1177472,706.23,REDACTED - PAYMENT TO INDIVIDUAL
Children and Young Peoples Services,Childrens Services,Third Party Payments,440002,Other Third Party Payments,04-Apr-17,3266244-1178807,"1,233.35",REDACTED - PAYMENT TO INDIVIDUAL
Children and Young Peoples Services,Childrens Services,Third Party Payments,440002,Other Third Party Payments,04-Apr-17,3266301-1179289,538.25,REDACTED - PAYMENT TO INDIVIDUAL
Children and Young Peoples Services,Childrens Services,Third Party Payments,440016,Other Third Party Payments,04-Apr-17,3266385-1179147,503.31,REDACTED - PAYMENT TO INDIVIDUAL
Regeneration and Local Services,Direct Services,Transport,215022,Running Costs of Vehicles,04-Apr-17,3265969-232789,"1,918.22",OIL NRG LTD.
Regeneration and Local Services,Projects and Business services,Third Party Payments,430100,Rendered by Private Contractors,04-Apr-17,3265974-S03060,730,O`BRIEN WASTE RECYCLING SOLUTIONS LTD.
Regeneration and Local Services,Technical Services,Supplies and Services,304221,Equipment and Materials,04-Apr-17,3266022-091544,"1,246.32",STONEGRAVE AGGREGATES LTD.
Adult and Health Services,Central/Other,Debtors,930133,Debtor IC+ Out of Hours - Home Care,04-Apr-17,3265912-D0036,"8,333.33",HOMECARE SUPPORT LTD T/A THE HUMAN SUPPORT GROUP.
Regeneration and Local Services,Direct Services,Supplies and Services,384194,Miscellaneous Expenses,04-Apr-17,3265963-76968,"1,945.00",NIRAMAX GROUP LTD.
Regeneration and Local Services,Technical Services,Supplies and Services,384194,Miscellaneous Expenses,04-Apr-17,3265963-79467,"1,900.00",NIRAMAX GROUP LTD.
Regeneration and Local Services,Direct Services,Premises,125009,Rents,04-Apr-17,3265981-17021,"15,690.00",PETHERICKS LTD.
Regeneration and Local Services,Technical Services,Supplies and Services,304221,Equipment and Materials,04-Apr-17,3266033-29352,890.1,TODDS HIGHWAY MAINTENANCE LTD.
Regeneration and Local Services,Culture & Sport,Supplies and Services,332029,Printing Stationery and Gen Off Exps,04-Apr-17,3265892-5137,550,FREAKWORKS LTD.
Children and Young Peoples Services,Childrens Services,Supplies and Services,336005,Advertising,04-Apr-17,3265947-1611,895,MOVING MEMORIES LTD.
Children and Young Peoples Services,Education,Third Party Payments,440999,Other Third Party Payments,04-Apr-17,3265967-136A,"21,960.98",NORTHERN RIGHTS COMMUNITY INTEREST COMPANY (CIC)..
Adult and Health Services,Head of Adults,Transport,235073,Public Transport,04-Apr-17,3265987-7541,"1,668.80",PSS SECURE TRANSPORT.
Regeneration and Local Services,Direct Services,Supplies and Services,304221,Equipment and Materials,04-Apr-17,3265804-788,"1,740.00",ALL SEASONS ARBORISTS.
Regeneration and Local Services,Direct Services,Third Party Payments,430100,Rendered by Private Contractors,04-Apr-17,3265804-798,"1,840.00",ALL SEASONS ARBORISTS.
Regeneration and Local Services,RED Departmental Support Costs,Supplies and Services,338099,Services,04-Apr-17,3265863-199,"1,865.58",DURHAM ACTION ON SINGLE HOUSING.
Regeneration and Local Services,RED Departmental Support Costs,Supplies and Services,338099,Services,04-Apr-17,3265863-205,"1,745.22",DURHAM ACTION ON SINGLE HOUSING.
Regeneration and Local Services,Culture & Sport,Supplies and Services,384199,Miscellaneous Expenses,04-Apr-17,3265957-012,903,NATHAN BABB.
Regeneration and Local Services,Spatial Policy Planning Assets & Environment,Supplies and Services,384199,Miscellaneous Expenses,04-Apr-17,3265964-881,"28,646.53",NORTH EAST ENVIRONMENT NETWORK LTD T/A (OASES).
Regeneration and Local Services,Culture & Sport,Supplies and Services,384199,Miscellaneous Expenses,04-Apr-17,3265940-60,"1,235.42",MICHAEL LONG.
Regeneration and Local Services,Culture & Sport,Supplies and Services,338047,Services,04-Apr-17,3265991-83,750,REDACTED - PAYMENT TO INDIVIDUAL
Transformation and Partnerships,Partnerships & Community Engagement Div.,Supplies and Services,384086,Miscellaneous Expenses,05-Apr-17,3266817-VOUCHER16NB-DVLY003,"7,590.00",BURNOPFIELD COMMUNITY ASSOCIATION.
Regeneration and Local Services,Direct Services,Supplies and Services,384974,Miscellaneous Expenses,05-Apr-17,3266871-NEI-EXP-04-2017-002,"40,000.00",DRIVER & VEHICLE STANDARDS AGENCY (DVSA).
Regeneration and Local Services,Direct Services,Third Party Payments,430100,Rendered by Private Contractors,05-Apr-17,3266878-NEI-EXP-04-2017-018,595,DURHAM MARKETS CO.
Regeneration and Local Services,Culture & Sport,Employees,80030,Agency Staff,05-Apr-17,3267172-NEI-EDP-04-2017-001,697.5,WEARDALE GYMNASTICS CLUB.
Children and Young Peoples Services,Education,Third Party Payments,440999,Other Third Party Payments,05-Apr-17,3266882-YEI38/08/09/10,"6,020.64",EAST DURHAM BUSINESS SERVICE.
Regeneration and Local Services,Economic Development and Housing,Premises,120021,Energy Costs,05-Apr-17,3267096-761630080/0037,"2,565.59",SOUTHERN ELECTRIC.*
Adult and Health Services,EnvironmentHealth & Consumer Protection,Supplies and Services,304999,Equipment and Materials,05-Apr-17,3267124-INVOICE1/2017,"1,440.00",TEESDALE & WEARDALE SEARCH & MOUNTAIN RESCUE TEAM (TWSMRT).
Regeneration and Local Services,Technical Services,Supplies and Services,338027,Services,05-Apr-17,3266950-B2107200-017,"11,904.02",JACOBS UK LTD.
Adult and Health Services,EnvironmentHealth & Consumer Protection,Third Party Payments,430100,Rendered by Private Contractors,05-Apr-17,306666-JOB001/18791,"1,595.00",COLIN JOBLING T/A RAINBOW INTERNATIONAL.
Regeneration and Local Services,Culture & Sport,Supplies and Services,384199,Miscellaneous Expenses,05-Apr-17,3266946-20170184DUR,"19,394.00",INTELLIGENT HEALTH LTD.
Regeneration and Local Services,Direct Services,Supplies and Services,304259,Equipment and Materials,05-Apr-17,3267091-CD970454590,"3,285.60",SHERRIFF AMENITY.
Regeneration and Local Services,Culture & Sport,Supplies and Services,384199,Miscellaneous Expenses,05-Apr-17,3266783-002-1/2/16,"1,710.42",ANDREW SHUTT.
Adult and Health Services,Planning & Service Strategy,Supplies and Services,338091,Services,05-Apr-17,3266794-0000002377,"1,865.00",ASPIRE-I LTD.*
Adult and Health Services,Planning & Service Strategy,Supplies and Services,338091,Services,05-Apr-17,3266794-0000002471,875,ASPIRE-I LTD.*
Adult and Health Services,Planning & Service Strategy,Supplies and Services,338091,Services,05-Apr-17,3266794-0000002472,"3,441.50",ASPIRE-I LTD.*
Regeneration and Local Services,Direct Services,Third Party Payments,430100,Rendered by Private Contractors,05-Apr-17,3266797-DCC/160066,539.1,BEACON BUILDING & ASSOCIATED SERVICES LTD.
Regeneration and Local Services,Direct Services,Third Party Payments,430100,Rendered by Private Contractors,05-Apr-17,3266797-DCC/160067,509.3,BEACON BUILDING & ASSOCIATED SERVICES LTD.
Regeneration and Local Services,Direct Services,Third Party Payments,430100,Rendered by Private Contractors,05-Apr-17,3266797-DCC/160069,887.15,BEACON BUILDING & ASSOCIATED SERVICES LTD.
Regeneration and Local Services,Technical Services,Supplies and Services,372009,Subscriptions,05-Apr-17,3266811-0000070333,"2,105.00",BRITISH BOARD OF AGREMENT.
Regeneration and Local Services,Technical Services,Employees,40149,Recruitment Instruction and Training,05-Apr-17,3266883-0000040254,"1,920.00",EAST DURHAM COLLEGE.
Regeneration and Local Services,Direct Services,Premises,120037,Energy Costs,05-Apr-17,3266907-0000020086,"1,171.93",FOREVER FUELS LTD
Children and Young Peoples Services,Education,Transport,230008,Contract Hire,05-Apr-17,3266956-34-31/3/17,"1,897.50",JOHN CRAKE & SONS MINI BUSES LTD.
Adult and Health Services,Head of Adults,Supplies and Services,308013,Furniture,05-Apr-17,3266978-063-302-17,"2,457.52",LONGSTAFF FLOORING.
Regeneration and Local Services,Culture & Sport,Premises,145015,Cleaning and Domestic Supplies,05-Apr-17,3267028-CN19419070,"1,414.68",OCS GROUP UK LTD T/A CANNON HYGIENE.
Regeneration and Local Services,Culture & Sport,Supplies and Services,324117,Provisions,05-Apr-17,3267037-22/2188023,506.1,PALMER & HARVEY MCLANE LTD.
Adult and Health Services,Planning & Service Strategy,Supplies and Services,340001,Postages,05-Apr-17,3267074-9054036745,"1,088.24",ROYAL MAIL GROUP PLC.
Regeneration and Local Services,Technical Services,Supplies and Services,304221,Equipment and Materials,05-Apr-17,3267118-9035894765,897.5,TARMAC TRADING LTD.
Regeneration and Local Services,Technical Services,Stock,926900,Stock in hand-Inventory system,05-Apr-17,3267118-9035896326,697.9,TARMAC TRADING LTD.
Adult and Health Services,Head of Adults,Employees,80025,Agency Staff,05-Apr-17,3267123-4810009265,"1,676.25",TEES ESK & WEAR VALLEYS NHS FOUNDATION TRUST.
Regeneration and Local Services,Technical Services,Stock,926900,Stock in hand-Inventory system,05-Apr-17,3267146-N/IN193056,997.67,THOMAS OWEN & SONS (NEWCASTLE) LTD.
Regeneration and Local Services,Technical Services,Stock,926900,Stock in hand-Inventory system,05-Apr-17,3267146-N/IN193083,"2,940.70",THOMAS OWEN & SONS (NEWCASTLE) LTD.
Regeneration and Local Services,Transport and Contracted Services,Premises,125009,Rents,05-Apr-17,3266832-RENTMARCH,"16,416.50",CITY OF DURHAM FREEMEN.
Regeneration and Local Services,Projects and Business services,Supplies and Services,384956,Miscellaneous Expenses,05-Apr-17,3266894-Y01184907,"1,188.00",ENVIRONMENT AGENCY.
Regeneration and Local Services,Projects and Business services,Supplies and Services,384956,Miscellaneous Expenses,05-Apr-17,3266894-Y01184908,"6,402.00",ENVIRONMENT AGENCY.
Regeneration and Local Services,Projects and Business services,Supplies and Services,384956,Miscellaneous Expenses,05-Apr-17,3266894-Y01184910,"3,154.00",ENVIRONMENT AGENCY.
Regeneration and Local Services,Projects and Business services,Supplies and Services,384956,Miscellaneous Expenses,05-Apr-17,3266894-Y01184911,769.5,ENVIRONMENT AGENCY.
Regeneration and Local Services,Projects and Business services,Supplies and Services,384956,Miscellaneous Expenses,05-Apr-17,3266894-Y01184912,"1,254.00",ENVIRONMENT AGENCY.
Regeneration and Local Services,Projects and Business services,Supplies and Services,384956,Miscellaneous Expenses,05-Apr-17,3266894-Y01184913,"1,662.50",ENVIRONMENT AGENCY.
Regeneration and Local Services,Projects and Business services,Supplies and Services,384956,Miscellaneous Expenses,05-Apr-17,3266894-Y01184914,"3,258.50",ENVIRONMENT AGENCY.
Regeneration and Local Services,Projects and Business services,Supplies and Services,384956,Miscellaneous Expenses,05-Apr-17,3266894-Y01184915,"4,130.00",ENVIRONMENT AGENCY.
Regeneration and Local Services,Technical Services,Stock,926900,Stock in hand-Inventory system,05-Apr-17,3266925-06/636875,985.6,GREENHAM TRADING LTD.
Regeneration and Local Services,Direct Services,Premises,125009,Rents,05-Apr-17,3266994-RENTAPRIL,"5,750.00",MM KNITWEAR (1982) LTD.
Dedicated Schools Grant,Dedicated Schools Grant,Third Party Payments,440080,Other Third Party Payments,05-Apr-17,3267049-SIN033020,"24,576.22",PORTLAND COLLEGE.
Children and Young Peoples Services,Education,Supplies and Services,384199,Miscellaneous Expenses,05-Apr-17,3267174-17CNX-049,862.5,WELFARE CALL (CLIENT FOLLOW UP) LTD.
Regeneration and Local Services,Technical Services,Supplies and Services,304221,Equipment and Materials,05-Apr-17,3266774-24551608,"1,787.98",AGGREGATE INDUSTRIES UK LTD.
Regeneration and Local Services,Technical Services,Supplies and Services,304221,Equipment and Materials,05-Apr-17,3266774-24551610,"1,223.90",AGGREGATE INDUSTRIES UK LTD.
Regeneration and Local Services,Technical Services,Supplies and Services,304221,Equipment and Materials,05-Apr-17,3266774-24551611,"2,470.29",AGGREGATE INDUSTRIES UK LTD.
Regeneration and Local Services,Technical Services,Supplies and Services,304221,Equipment and Materials,05-Apr-17,3266774-24551612,"1,206.35",AGGREGATE INDUSTRIES UK LTD.
Regeneration and Local Services,Direct Services,Supplies and Services,304221,Equipment and Materials,05-Apr-17,3266982-55619543,641.01,MAGNET LTD.
Resources,I.C.T. Services,Supplies and Services,344137,Telephones,05-Apr-17,3266983-11958132,"28,978.23",MAINTEL EUROPE LTD.
Regeneration and Local Services,Spatial Policy Planning Assets & Environment,Construction Work,908105,Construction work,05-Apr-17,3266989-INSMOORS,"45,726.24",MGL DEMOLITION LTD.
Regeneration and Local Services,Spatial Policy Planning Assets & Environment,Supplies and Services,336005,Advertising,05-Apr-17,3267014-19239991,773.14,NEWSQUEST (YORKSHIRE & NORTH EAST) LTD.
Regeneration and Local Services,Technical Services,Construction Work,908105,Construction work,05-Apr-17,3267014-19240029,737.59,NEWSQUEST (YORKSHIRE & NORTH EAST) LTD.
Regeneration and Local Services,Economic Development and Housing,Supplies and Services,336005,Advertising,05-Apr-17,3267014-19240334,"6,000.00",NEWSQUEST (YORKSHIRE & NORTH EAST) LTD.
Regeneration and Local Services,Economic Development and Housing,Supplies and Services,336005,Advertising,05-Apr-17,3267014-19240407,"1,000.00",NEWSQUEST (YORKSHIRE & NORTH EAST) LTD.
Adult and Health Services,Public Health,Premises,125009,Rents,05-Apr-17,3267015-48518922,"2,500.00",NHS PROPERTY SERVICES LTD.
Adult and Health Services,Public Health,Premises,125009,Rents,05-Apr-17,3267015-48519007,"2,500.00",NHS PROPERTY SERVICES LTD.
Regeneration and Local Services,Culture & Sport,Supplies and Services,384199,Miscellaneous Expenses,05-Apr-17,3267095-SBS-0305,"1,000.00",SODIUM T/A SHOT BY SODIUM LTD.
Regeneration and Local Services,Direct Services,Supplies and Services,304221,Equipment and Materials,05-Apr-17,3267180-41277855,976.64,WOLSELEY UK LTD.
Children and Young Peoples Services,Education,Transport,230008,Contract Hire,05-Apr-17,3266834-INV-003,"1,748.00",CLARE LYNSEY STEWART T/A K&C TAXIS.
Regeneration and Local Services,Projects and Business services,Supplies and Services,384956,Miscellaneous Expenses,05-Apr-17,3266894-622581Y,"4,104.00",ENVIRONMENT AGENCY.
Regeneration and Local Services,Projects and Business services,Supplies and Services,384956,Miscellaneous Expenses,05-Apr-17,3266894-624521Y,"4,104.00",ENVIRONMENT AGENCY.
Resources,I.C.T. Services,Stock,926900,Stock in hand-Inventory system,05-Apr-17,3266944-3295299,"1,214.76",INSIGHT DIRECT (UK) LTD.
Children and Young Peoples Services,Education,Transport,230008,Contract Hire,05-Apr-17,3266969-4B-M010,"1,564.00",L & R PRIVATE HIRE.
Regeneration and Local Services,Culture & Sport,Supplies and Services,372009,Subscriptions,05-Apr-17,3267042-5111015,"3,512.48",PERFORMING RIGHT SOCIETY LTD T/A PRS FOR MUSIC.
Regeneration and Local Services,Culture & Sport,Supplies and Services,372009,Subscriptions,05-Apr-17,3267042-5111047,"2,639.31",PERFORMING RIGHT SOCIETY LTD T/A PRS FOR MUSIC.
Adult and Health Services,Head of Adults,Supplies and Services,308011,Furniture,05-Apr-17,3267066-CLG1980,"1,749.90",RENDLES HOUSE FURNISHER.
Regeneration and Local Services,Technical Services,Supplies and Services,332047,Printing Stationery and Gen Off Exps,05-Apr-17,3267112-8853423,508.9,SUPPLIES TEAM LTD NOW KNOWN AS BANNER GROUP LTD.
Children and Young Peoples Services,Childrens Services,Third Party Payments,440005,Other Third Party Payments,05-Apr-17,306686-1179282,627.7,REDACTED - PAYMENT TO INDIVIDUAL
Children and Young Peoples Services,Education,Transport,230008,Contract Hire,05-Apr-17,3266772-05/17A,"2,728.00",ADVANCE TRAVEL.
Regeneration and Local Services,Direct Services,Third Party Payments,430100,Rendered by Private Contractors,05-Apr-17,3266775-158396,"2,900.00",ALBANY CONTRACT FURNITURE.
Regeneration and Local Services,Culture & Sport,Supplies and Services,304259,Equipment and Materials,05-Apr-17,3266775-158418,"1,998.00",ALBANY CONTRACT FURNITURE.
Children and Young Peoples Services,Childrens Services,Supplies and Services,384638,Miscellaneous Expenses,05-Apr-17,3266872-105250,"4,250.00",DUBIT LTD.
Children and Young Peoples Services,Childrens Services Operational Support,Supplies and Services,338089,Services,05-Apr-17,3266933-953396,940,HEART OF ENGLAND NHS FOUNDATION TRUST.
Children and Young Peoples Services,Education,Transfer Payments,510026,School Children,05-Apr-17,3266937-192061,641.16,HOUSE OF EDEN CHILDRENS NURSERY.
Children and Young Peoples Services,Education,Construction Work,908105,Construction work,05-Apr-17,3266988-117711,"1,027.90",MCNALLY & THOMPSON UK CONTRACTS LTD.
Regeneration and Local Services,Direct Services,Transport,215005,Running Costs of Vehicles,05-Apr-17,3267029-232496,"18,512.62",OIL NRG LTD.
Regeneration and Local Services,Direct Services,Transport,215005,Running Costs of Vehicles,05-Apr-17,3267029-234202,"12,933.68",OIL NRG LTD.
Regeneration and Local Services,Direct Services,Transport,215022,Running Costs of Vehicles,05-Apr-17,3267029-234204,"1,851.20",OIL NRG LTD.
Regeneration and Local Services,Projects and Business services,Third Party Payments,430100,Rendered by Private Contractors,05-Apr-17,3267035-S03203,730,O`BRIEN WASTE RECYCLING SOLUTIONS LTD.
Regeneration and Local Services,Direct Services,Third Party Payments,430100,Rendered by Private Contractors,05-Apr-17,3267036-561503,510,P & N ASSOCIATES LTD.
Regeneration and Local Services,Culture & Sport,Transport,235057,Public Transport,05-Apr-17,3267078-PAR002,840,S & S TRAVEL LTD.
Regeneration and Local Services,Direct Services,Supplies and Services,304252,Equipment and Materials,05-Apr-17,3267122-155677,"1,018.12",TECALEMIT GARAGE EQUIPMENT CO LTD.
Regeneration and Local Services,Economic Development and Housing,Supplies and Services,384899,Miscellaneous Expenses,05-Apr-17,3267135-001886,"2,000.00",THE GAMBICA ASSOCIATION LTD.
Resources,I.C.T. Services,Supplies and Services,304303,Equipment and Materials,05-Apr-17,3267152-120390,"3,185.38",TP ELECTRICAL SUPPLIES & FIXINGS LTD.
Resources,Legal & Democratic Services,Supplies and Services,338042,Services,05-Apr-17,306698-242439,600,MR STEVE DUFFY.
Children and Young Peoples Services,Education,Transport,230008,Contract Hire,05-Apr-17,3266764-31707,"2,150.00",24/7 TAXI SERVICES LTD.
Children and Young Peoples Services,Education,Transport,230012,Contract Hire,05-Apr-17,3266764-31710,"1,733.51",24/7 TAXI SERVICES LTD.
Children and Young Peoples Services,Education,Transport,230008,Contract Hire,05-Apr-17,3266764-31711,"1,040.29",24/7 TAXI SERVICES LTD.
Children and Young Peoples Services,Education,Transport,230008,Contract Hire,05-Apr-17,3266764-31712,"2,660.00",24/7 TAXI SERVICES LTD.
Adult and Health Services,Head of Adults,Transport,230005,Contract Hire,05-Apr-17,3266764-31714,864,24/7 TAXI SERVICES LTD.
Children and Young Peoples Services,Education,Transport,230006,Contract Hire,05-Apr-17,3266764-31715,"1,820.00",24/7 TAXI SERVICES LTD.
Regeneration and Local Services,Spatial Policy Planning Assets & Environment,Premises,108099,Service Repairs and Maintenance,05-Apr-17,3266770-27969,"3,555.00",ACI REPORTS LTD.
Children and Young Peoples Services,Education,Supplies and Services,338035,Services,05-Apr-17,3266793-41750,500,ASCENTIS.
Regeneration and Local Services,Technical Services,Third Party Payments,430100,Rendered by Private Contractors,05-Apr-17,3266810-40642,"1,132.56",BRIDGEWAY CONSULTING LTD.
Regeneration and Local Services,Technical Services,Third Party Payments,430100,Rendered by Private Contractors,05-Apr-17,3266810-40643,"1,192.48",BRIDGEWAY CONSULTING LTD.
Regeneration and Local Services,Technical Services,Third Party Payments,430100,Rendered by Private Contractors,05-Apr-17,3266810-40644,"2,257.58",BRIDGEWAY CONSULTING LTD.
Regeneration and Local Services,Technical Services,Third Party Payments,430100,Rendered by Private Contractors,05-Apr-17,3266810-40645,"2,257.58",BRIDGEWAY CONSULTING LTD.
Regeneration and Local Services,Technical Services,Third Party Payments,430100,Rendered by Private Contractors,05-Apr-17,3266810-40646,"2,263.58",BRIDGEWAY CONSULTING LTD.
Regeneration and Local Services,Technical Services,Third Party Payments,430100,Rendered by Private Contractors,05-Apr-17,3266810-40647,876.63,BRIDGEWAY CONSULTING LTD.
Adult and Health Services,Head of Adults,Supplies and Services,338367,Services,05-Apr-17,3266822-38645,675,CARE ABILITY.
Adult and Health Services,Head of Adults,Supplies and Services,338367,Services,05-Apr-17,3266822-39263,675,CARE ABILITY.
Adult and Health Services,Head of Adults,Supplies and Services,338366,Services,05-Apr-17,3266822-39407,842.35,CARE ABILITY.
Adult and Health Services,Head of Adults,Supplies and Services,338366,Services,05-Apr-17,3266822-39408,"1,093.25",CARE ABILITY.
Adult and Health Services,Head of Adults,Supplies and Services,338366,Services,05-Apr-17,3266822-39409,"2,318.50",CARE ABILITY.
Adult and Health Services,Head of Adults,Supplies and Services,338366,Services,05-Apr-17,3266822-39410,"2,055.05",CARE ABILITY.
Adult and Health Services,Head of Adults,Supplies and Services,338366,Services,05-Apr-17,3266822-39411,"1,722.30",CARE ABILITY.
Regeneration and Local Services,Culture & Sport,Premises,125009,Rents,05-Apr-17,3266940-10231,"36,141.25",IMPALA ESTATES LTD.
Regeneration and Local Services,Technical Services,Third Party Payments,430100,Rendered by Private Contractors,05-Apr-17,3266948-20204,"5,504.93",JACK COUPE & SONS LTD T/A COUPE LINE.
Regeneration and Local Services,Technical Services,Stock,926900,Stock in hand-Inventory system,05-Apr-17,3266977-11300,"1,381.20",LOGIC STREET & PARK FURNITURE LTD.
Regeneration and Local Services,Projects and Business services,Supplies and Services,304357,Equipment and Materials,05-Apr-17,3266993-19665,"3,000.00",MJ HICKEY PLANT HIRE & CONTRACTS LTD.
Regeneration and Local Services,Direct Services,Third Party Payments,430100,Rendered by Private Contractors,05-Apr-17,3267024-13160,"2,100.00",NORTHERN ELEVATOR LTD.
Regeneration and Local Services,Culture & Sport,Third Party Payments,430100,Rendered by Private Contractors,05-Apr-17,3267030-19024,680,OLIVERS TREE SERVICES LTD.
Regeneration and Local Services,Direct Services,Supplies and Services,304259,Equipment and Materials,05-Apr-17,3267046-10997,840,PIXL ID LTD.
Regeneration and Local Services,Direct Services,Third Party Payments,430100,Rendered by Private Contractors,05-Apr-17,3267048-18630,"3,832.06",POLAR (NE) LTD.
Regeneration and Local Services,Technical Services,Third Party Payments,430100,Rendered by Private Contractors,05-Apr-17,3267057-97441,550,PROTECTOR SECURITY GROUP LTD.
Regeneration and Local Services,Technical Services,Supplies and Services,304221,Equipment and Materials,05-Apr-17,3267057-97444,550,PROTECTOR SECURITY GROUP LTD.
Regeneration and Local Services,Technical Services,Third Party Payments,430100,Rendered by Private Contractors,05-Apr-17,3267057-97445,550,PROTECTOR SECURITY GROUP LTD.
Regeneration and Local Services,Technical Services,Third Party Payments,430100,Rendered by Private Contractors,05-Apr-17,3267057-97446,550,PROTECTOR SECURITY GROUP LTD.
Regeneration and Local Services,Technical Services,Third Party Payments,430100,Rendered by Private Contractors,05-Apr-17,3267057-97482,550,PROTECTOR SECURITY GROUP LTD.
Regeneration and Local Services,Economic Development and Housing,Fees,901002,Professional fees,05-Apr-17,3266863-1597,"2,800.00",DIFFERENTIA LTD.
Adult and Health Services,Head of Adults,Third Party Payments,478101,Purchase of Care,05-Apr-17,3266942-2766,"1,079.12",INCLUSION HOUSING CIC LTD.
Regeneration and Local Services,Technical Services,Supplies and Services,304221,Equipment and Materials,05-Apr-17,3266964-9779,"1,053.20",KEN THOMAS (SITE CLEARANCE LTD).
Children and Young Peoples Services,Education,Third Party Payments,440999,Other Third Party Payments,05-Apr-17,3267019-1952,"5,304.00",NORTH EAST DANCE CIC.
Regeneration and Local Services,Technical Services,Third Party Payments,430100,Rendered by Private Contractors,05-Apr-17,3267045-4768,"2,601.50",PINKNEY BUILDING CONTRACTORS LTD.
Regeneration and Local Services,Economic Development and Housing,Supplies and Services,338094,Services,05-Apr-17,3267098-5874,627.09,SPENNYMOOR TOWN COUNCIL.
Adult and Health Services,Planning & Service Strategy,Supplies and Services,338094,Services,05-Apr-17,3267140-5154,"1,015.00",THE WORK PLACE (AYCLIFFE) LTD.
Children and Young Peoples Services,Education,Transport,230008,Contract Hire,05-Apr-17,3267155-91,"2,185.00",TRIDENT TAXIS.
Transformation and Partnerships,Partnerships & Community Engagement Div.,Cap Exp on Grants & Other Financial Assistance (REFCUS),918004,Contributions to other bodies,06-Apr-17,3267467-VOUCHER16NB-BASH034,"3,184.00",PRINCE BISHOP COMMUNITY BROADCASTING LTD.
Dedicated Schools Grant,Dedicated Schools Grant,Transport,230008,Contract Hire,06-Apr-17,3267452-DCC/W162/03/2017,"1,020.00",PB PRIVATE HIRE.
Children and Young Peoples Services,Childrens Services,Supplies and Services,364310,Grants to Voluntary Organisations,06-Apr-17,3267201-CAS-04-2017-031,"1,764.00",REDACTED - PAYMENT TO INDIVIDUAL
Children and Young Peoples Services,Education,Transport,230012,Contract Hire,06-Apr-17,3267216-SMITH/10MARCH17,"1,964.43",BEELINE PRIVATE HIRE.
Resources,Corporate Finance,Employees,50005,Pensions Increases Act payments,06-Apr-17,3267270-RES-04-2017-116,"48,523.29",DARLINGTON BOROUGH COUNCIL.
Children and Young Peoples Services,Childrens Services,Third Party Payments,440031,Other Third Party Payments,06-Apr-17,3267274-CAS-04-2017-019,604.5,REDACTED - PAYMENT TO INDIVIDUAL
Regeneration and Local Services,Economic Development and Housing,Cap Exp on Grants & Other Financial Assistance (REFCUS),918401,Capital grants,06-Apr-17,3267331-RED-04-2017-022,"3,827.00",HES GROUP UK LTD.
Children and Young Peoples Services,Childrens Services,Third Party Payments,440037,Other Third Party Payments,06-Apr-17,3267336-CAS-04-2017-027,791,HOUSE OF EDEN CHILDRENS NURSERY.
Regeneration and Local Services,Economic Development and Housing,Cap Exp on Grants & Other Financial Assistance (REFCUS),918401,Capital grants,06-Apr-17,3267366-RED-04-2017-021,"4,925.00",K HARRISON (BUILDER) NE LTD.
Children and Young Peoples Services,Childrens Services,Supplies and Services,352001,Conference Expenses,06-Apr-17,3267413-CAS-04-2017-032,550,REDACTED - PAYMENT TO INDIVIDUAL
Adult and Health Services,Head of Adults,Supplies and Services,338099,Services,06-Apr-17,3267488-CAS-04-2017-036,"1,200.55",SADBERGE BOARDING KENNELS & CATTERY.
Regeneration and Local Services,Economic Development and Housing,Cap Exp on Grants & Other Financial Assistance (REFCUS),918401,Capital grants,06-Apr-17,3267530-RED-04-2017-019,"2,485.00",THYSSENKRUPP ENCASA A DIVISION OF THYSSENKRUPP ACCESS LTD.
Regeneration and Local Services,Economic Development and Housing,Cap Exp on Grants & Other Financial Assistance (REFCUS),918401,Capital grants,06-Apr-17,3267530-RED-04-2017-020,"4,902.00",THYSSENKRUPP ENCASA A DIVISION OF THYSSENKRUPP ACCESS LTD.
Adult and Health Services,Head of Adults,Transport,230005,Contract Hire,06-Apr-17,3267333-DW108-31/3/17,"1,380.00",HIPPY`S TAXI.
Children and Young Peoples Services,Education,Transport,230012,Contract Hire,06-Apr-17,3267355-N078-31/3/17,"1,225.00",JMR TAXIS.
Children and Young Peoples Services,Education,Transport,230006,Contract Hire,06-Apr-17,3267365-F702-31/3/17,"2,162.00",K & R TAXIS.
Regeneration and Local Services,Culture & Sport,Supplies and Services,384199,Miscellaneous Expenses,06-Apr-17,3267394-GTSSTEACHING,885,MARK IAN THOMPSON.
Children and Young Peoples Services,Education,Transport,230006,Contract Hire,06-Apr-17,3267264-N220/MAR/17,977.04,CRAIG RAMSHAW T/A CRAIG`S CABS.
Regeneration and Local Services,Spatial Policy Planning Assets & Environment,Supplies and Services,384199,Miscellaneous Expenses,06-Apr-17,3267291-020317/AONB,"1,200.00",ELISABETH AIREY.
Regeneration and Local Services,Projects and Business services,Third Party Payments,430120,Rendered by Private Contractors,06-Apr-17,3267305-SINV9055577,"1,033.62",FINNING (UK) LTD.
Regeneration and Local Services,Technical Services,Supplies and Services,304221,Equipment and Materials,06-Apr-17,3267378-CINV-068278,756.8,LIMELIGHT SIGNS LTD.
Children and Young Peoples Services,Education,Transport,235073,Public Transport,06-Apr-17,3267418-3583662-012,766.44,REDACTED - PAYMENT TO INDIVIDUAL
Children and Young Peoples Services,Education,Transport,230007,Contract Hire,06-Apr-17,3267222-39-31/3/17,"1,380.00",BL TAXIS.
Resources,Financial Services,Supplies and Services,342053,Computers and Communications,06-Apr-17,3267251-C/PY151701,"8,000.00",CIVICA UK LTD.
Regeneration and Local Services,Technical Services,Stock,926900,Stock in hand-Inventory system,06-Apr-17,3267287-059-201480,"1,057.50",EDMUNDSON ELECTRICAL LTD.
Adult and Health Services,Public Health,Supplies and Services,352001,Conference Expenses,06-Apr-17,3267402-M/2016/418,835.31,MINORITY ETHNIC CARERS OF PEOPLE PROJECT (MECOPP).
Children and Young Peoples Services,Education,Transport,230012,Contract Hire,06-Apr-17,3267410-N053/03/17,"2,185.00",MR M ALLISON T/A MACBETH TAXIS/COACHES.
Regeneration and Local Services,Technical Services,Third Party Payments,430100,Rendered by Private Contractors,06-Apr-17,3267432-DI20266273,944.15,NORTHERN POWERGRID (NORTHEAST) LTD.
Adult and Health Services,Public Health,Third Party Payments,460802,Contract Payments,06-Apr-17,3267434-7510150402,"1,166.00",NORTHUMBRIA HEALTHCARE NHS FOUNDATION TRUST.
Regeneration and Local Services,Projects and Business services,Supplies and Services,340001,Postages,06-Apr-17,3267482-9054039383,"2,198.64",ROYAL MAIL GROUP PLC.
Adult and Health Services,Public Health,Third Party Payments,460802,Contract Payments,06-Apr-17,3267504-7710016264,"15,200.00",SOUTH TYNESIDE NHS TRUST.
Adult and Health Services,Head of Adults,Third Party Payments,479101,Purchase of Care,06-Apr-17,3267520-4810009468,"3,950.00",TEES ESK & WEAR VALLEYS NHS FOUNDATION TRUST.
Regeneration and Local Services,Direct Services,Supplies and Services,328041,Clothing Uniforms and Laundry,06-Apr-17,3267529-N/IN191307,"4,843.49",THOMAS OWEN & SONS (NEWCASTLE) LTD.
Regeneration and Local Services,Direct Services,Supplies and Services,328041,Clothing Uniforms and Laundry,06-Apr-17,3267529-N/IN191786,594.16,THOMAS OWEN & SONS (NEWCASTLE) LTD.
Adult and Health Services,Head of Adults,Transport,230005,Contract Hire,06-Apr-17,3267209-DCC1MAY16,"1,900.00",ATLAS TAXIS BISHOP AUCKLAND.
Children and Young Peoples Services,Education,Transport,230006,Contract Hire,06-Apr-17,3267254-F714/3/17,"1,174.00",CLARKS MINIBUSES & TAXIS.
Children and Young Peoples Services,Education,Transport,230007,Contract Hire,06-Apr-17,3267293-5182/0317,963.7,ELLIOTTS OF TRIMDON.
Children and Young Peoples Services,Education,Transport,230008,Contract Hire,06-Apr-17,3267293-E014/0317,"1,837.70",ELLIOTTS OF TRIMDON.
Children and Young Peoples Services,Education,Transport,230006,Contract Hire,06-Apr-17,3267293-E122/0317,"1,812.00",ELLIOTTS OF TRIMDON.
Dedicated Schools Grant,Dedicated Schools Grant,Transport,230010,Contract Hire,06-Apr-17,3267304-PF006-004,826,FERRYHILL VILLAGE TRAVEL.
Dedicated Schools Grant,Dedicated Schools Grant,Transport,230010,Contract Hire,06-Apr-17,3267304-PF006-005,702,FERRYHILL VILLAGE TRAVEL.
Regeneration and Local Services,Technical Services,Stock,926900,Stock in hand-Inventory system,06-Apr-17,3267322-06/635929,646.4,GREENHAM TRADING LTD.
Children and Young Peoples Services,Education,Transport,230008,Contract Hire,06-Apr-17,3267329-7-31/3/17,"1,035.00",HENRY FOREMAN T/A HENRY`S TAXIS.
Children and Young Peoples Services,Education,Transport,230008,Contract Hire,06-Apr-17,3267337-IR1703001,"3,039.68",I & R EXECUTIVE TRAVEL.
Children and Young Peoples Services,Education,Transport,230008,Contract Hire,06-Apr-17,3267337-IR1703002,"2,493.43",I & R EXECUTIVE TRAVEL.
Adult and Health Services,Head of Adults,Transport,230005,Contract Hire,06-Apr-17,3267337-IR1703003,"1,965.00",I & R EXECUTIVE TRAVEL.
Adult and Health Services,Head of Adults,Transport,230005,Contract Hire,06-Apr-17,3267337-IR1703005,"1,150.00",I & R EXECUTIVE TRAVEL.
Regeneration and Local Services,Direct Services,Supplies and Services,304221,Equipment and Materials,06-Apr-17,3267364-B11217807,504,JT DOVE LTD.
Children and Young Peoples Services,Education,Transport,230006,Contract Hire,06-Apr-17,3267385-6-31/3/17,"1,920.00",LORRAINES TAXIS.
Children and Young Peoples Services,Education,Transport,230008,Contract Hire,06-Apr-17,3267385-7-31/3/17,"1,410.00",LORRAINES TAXIS.
Children and Young Peoples Services,Education,Transport,230008,Contract Hire,06-Apr-17,3267415-8-31/3/17,"1,748.00",REDACTED - PAYMENT TO INDIVIDUAL
Regeneration and Local Services,Economic Development and Housing,Construction Work,908105,Construction work,06-Apr-17,3267435-913965464,740,NORTHUMBRIAN WATER LTD.
Regeneration and Local Services,Transport and Contracted Services,Transport,230005,Contract Hire,06-Apr-17,3267486-TRC16/181,700,S & S TRAVEL LTD.
Adult and Health Services,Head of Adults,Supplies and Services,338045,Services,06-Apr-17,3267561-INV/KSM26,500,ZENITH CHAMBERS.
Children and Young Peoples Services,Education,Supplies and Services,338094,Services,06-Apr-17,3267187-18002881,"1,152.00",1LIFE MANAGEMENT SOLUTIONS LTD.
Children and Young Peoples Services,Education,Transport,230006,Contract Hire,06-Apr-17,3267189-HA220787,"1,472.00",A MURRAY TRAVEL.
Regeneration and Local Services,Technical Services,Supplies and Services,304221,Equipment and Materials,06-Apr-17,3267194-24557875,"2,128.60",AGGREGATE INDUSTRIES UK LTD.
Regeneration and Local Services,Technical Services,Supplies and Services,304221,Equipment and Materials,06-Apr-17,3267194-24557876,"1,205.09",AGGREGATE INDUSTRIES UK LTD.
Regeneration and Local Services,Culture & Sport,Fees,901002,Professional fees,06-Apr-17,3267208-16053252,725,ATKINS GLOBAL.
Regeneration and Local Services,Direct Services,Transport,210057,Repair and Maintenance of Vehicles,06-Apr-17,3267217-35135449,811.69,BELL TRUCK SALES LTD.
Regeneration and Local Services,Direct Services,Transport,210057,Repair and Maintenance of Vehicles,06-Apr-17,3267217-35135489,"2,278.16",BELL TRUCK SALES LTD.
Dedicated Schools Grant,Dedicated Schools Grant,Third Party Payments,440080,Other Third Party Payments,06-Apr-17,3267250-I0023675,"2,740.05",CITY OF SUNDERLAND COLLEGE.
Adult and Health Services,Public Health,Third Party Payments,460802,Contract Payments,06-Apr-17,3267426-R0275799,"13,612.00",NEWCASTLE UPON TYNE HOSPITALS NHS FOUNDATION TRUST.
Regeneration and Local Services,Direct Services,Premises,145015,Cleaning and Domestic Supplies,06-Apr-17,3267438-13230452,"3,625.84",NUMATIC INTERNATIONAL LTD.
Children and Young Peoples Services,Education,Transport,230007,Contract Hire,06-Apr-17,3267481-ROX0103M,"1,200.00",ROXBYS BUS HIRE.
Children and Young Peoples Services,Education,Transport,230003,Contract Hire,06-Apr-17,3267481-ROX0103N,"1,335.00",ROXBYS BUS HIRE.
Children and Young Peoples Services,Education,Transport,230003,Contract Hire,06-Apr-17,3267481-ROX0103O,"1,500.00",ROXBYS BUS HIRE.
Children and Young Peoples Services,Education,Transport,230008,Contract Hire,06-Apr-17,3267189-A220785,"2,055.05",A MURRAY TRAVEL.
Regeneration and Local Services,Economic Development and Housing,Supplies and Services,338045,Services,06-Apr-17,3267224-3184842,"2,250.00",BOND DICKINSON LLP.
Children and Young Peoples Services,Education,Transport,230008,Contract Hire,06-Apr-17,3267233-BIL0098,"2,055.05",CA MUSGROVE.
Adult and Health Services,Central/Other,Employees,80025,Agency Staff,06-Apr-17,3267276-1000065,"143,794.96",DE POEL MANAGED SERVICES LTD.
Regeneration and Local Services,Culture & Sport,Third Party Payments,430100,Rendered by Private Contractors,06-Apr-17,3267285-INV-511,"2,000.00",ECO ENTERPRISES LTD.
Regeneration and Local Services,Direct Services,Supplies and Services,384199,Miscellaneous Expenses,06-Apr-17,3267341-0000019,600,IAN SMYTH T/A SYSTEM STREET FILMS.
Children and Young Peoples Services,Education,Transport,230003,Contract Hire,06-Apr-17,3267354-2017/02,"1,173.00",JM HUMBLE COACH HIRE.
Children and Young Peoples Services,Education,Transport,230003,Contract Hire,06-Apr-17,3267354-2017/03,"1,913.60",JM HUMBLE COACH HIRE.
Adult and Health Services,Head of Adults,Transport,230005,Contract Hire,06-Apr-17,3267362-DM14918,"1,660.00",JOVIAL PRIVATE HIRE.
Children and Young Peoples Services,Education,Transport,230008,Contract Hire,06-Apr-17,3267406-0304835,"2,097.60",MR GN ROBBINS T/A GNR MINIBUS HIRE.
Children and Young Peoples Services,Education,Transport,230008,Contract Hire,06-Apr-17,3267406-0304836,"2,651.21",MR GN ROBBINS T/A GNR MINIBUS HIRE.
Children and Young Peoples Services,Education,Transfer Payments,510026,School Children,06-Apr-17,3267526-14/3/17,"1,123.20",THE NURSERY.
Children and Young Peoples Services,Education,Transport,230008,Contract Hire,06-Apr-17,3267533-0001838,"1,955.00",TONY RIDLEY T/A COLORS TAXIS LTD.
Children and Young Peoples Services,Education,Transport,230007,Contract Hire,06-Apr-17,3267533-0001840,920,TONY RIDLEY T/A COLORS TAXIS LTD.
Adult and Health Services,Head of Adults,Transport,230005,Contract Hire,06-Apr-17,3267533-0001841,"1,350.00",TONY RIDLEY T/A COLORS TAXIS LTD.
Resources,I.C.T. Services,Stock,926900,Stock in hand-Inventory system,06-Apr-17,3267559-BI63246,770,XMA LTD.
Regeneration and Local Services,Direct Services,Transport,210057,Repair and Maintenance of Vehicles,06-Apr-17,3267562-SI86625,637.98,ZOELLER WASTE SYSTEMS LTD.
Adult and Health Services,Head of Adults,Third Party Payments,479111,Purchase of Care,06-Apr-17,3267223-201703,837,BLUE SKY TRUST.
Adult and Health Services,Head of Adults,Supplies and Services,308011,Furniture,06-Apr-17,3267294-241116,536,ELMOLINE LTD.
Regeneration and Local Services,Economic Development and Housing,Construction Work,908105,Construction work,06-Apr-17,3267297-142382,"687,446.45",ESH CONSTRUCTION LTD FORMERLY LUMSDEN & CARROLL CONSTRUCTION LTD.
Regeneration and Local Services,Direct Services,Supplies and Services,304259,Equipment and Materials,06-Apr-17,3267299-ES3649,"1,910.00",EVERSHED PRODUCTS.
Children and Young Peoples Services,Education,Transport,230008,Contract Hire,06-Apr-17,3267319-000030,"2,070.00",GP TAXIS.
Children and Young Peoples Services,Education,Transfer Payments,510026,School Children,06-Apr-17,3267335-191993,641.16,HOUSE OF EDEN CHILDRENS NURSERY.
Regeneration and Local Services,Technical Services,Stock,926900,Stock in hand-Inventory system,06-Apr-17,3267343-573913,"3,136.00",INSTARMAC GROUP PLC.
Regeneration and Local Services,Technical Services,Third Party Payments,430100,Rendered by Private Contractors,06-Apr-17,3267358-201801,"55,237.77",JOHN WADE (HAULAGE) LTD.
Regeneration and Local Services,Culture & Sport,Supplies and Services,384302,Miscellaneous Expenses,06-Apr-17,3267361-217372,"2,188.76",JORDAN FITNESS.
Regeneration and Local Services,Culture & Sport,Supplies and Services,304252,Equipment and Materials,06-Apr-17,3267361-217373,"4,804.22",JORDAN FITNESS.
Children and Young Peoples Services,Education,Transport,230009,Contract Hire,06-Apr-17,3267362-723107,"1,840.00",JOVIAL PRIVATE HIRE.
Adult and Health Services,Head of Adults,Transport,230005,Contract Hire,06-Apr-17,3267362-DM1477,963,JOVIAL PRIVATE HIRE.
Children and Young Peoples Services,Education,Transport,230008,Contract Hire,06-Apr-17,3267362-M03629,"1,127.00",JOVIAL PRIVATE HIRE.
Children and Young Peoples Services,Education,Transport,230008,Contract Hire,06-Apr-17,3267362-N03029,"1,909.00",JOVIAL PRIVATE HIRE.
Children and Young Peoples Services,Education,Transport,230008,Contract Hire,06-Apr-17,3267393-021709,888,MARK & JOHN CHISHOLM T/A (CHEVRON).
Dedicated Schools Grant,Dedicated Schools Grant,Transport,230010,Contract Hire,06-Apr-17,3267393-031701,"1,748.00",MARK & JOHN CHISHOLM T/A (CHEVRON).
Dedicated Schools Grant,Dedicated Schools Grant,Transport,230010,Contract Hire,06-Apr-17,3267393-031702,"1,748.00",MARK & JOHN CHISHOLM T/A (CHEVRON).
Children and Young Peoples Services,Education,Transport,230007,Contract Hire,06-Apr-17,3267393-031703,874,MARK & JOHN CHISHOLM T/A (CHEVRON).
Children and Young Peoples Services,Education,Transport,230012,Contract Hire,06-Apr-17,3267393-031706,"1,460.50",MARK & JOHN CHISHOLM T/A (CHEVRON).
Children and Young Peoples Services,Education,Transport,230008,Contract Hire,06-Apr-17,3267393-031708,"1,702.00",MARK & JOHN CHISHOLM T/A (CHEVRON).
Children and Young Peoples Services,Education,Transport,230008,Contract Hire,06-Apr-17,3267393-031709,"2,855.50",MARK & JOHN CHISHOLM T/A (CHEVRON).
Children and Young Peoples Services,Education,Transport,230008,Contract Hire,06-Apr-17,3267395-380317,"1,817.00",MARK MUSGROVE T/A MARKS TAXIS.
Adult and Health Services,Head of Adults,Transport,230005,Contract Hire,06-Apr-17,3267395-590317,"1,495.00",MARK MUSGROVE T/A MARKS TAXIS.
Adult and Health Services,Head of Adults,Transport,230005,Contract Hire,06-Apr-17,3267409-201711,750,MR JR FORT.
Adult and Health Services,Head of Adults,Transport,230005,Contract Hire,06-Apr-17,3267451-DCC138,676,PAUL`S TAXIS..
Children and Young Peoples Services,Education,Transport,230008,Contract Hire,06-Apr-17,3267451-DCC139,"3,360.00",PAUL`S TAXIS..
Children and Young Peoples Services,Education,Transport,230008,Contract Hire,06-Apr-17,3267451-DCC140,"1,853.43",PAUL`S TAXIS..
Regeneration and Local Services,Direct Services,Transport,210057,Repair and Maintenance of Vehicles,06-Apr-17,3267477-762912,961.01,RICKERBY LTD.
Regeneration and Local Services,Direct Services,Transport,210057,Repair and Maintenance of Vehicles,06-Apr-17,3267477-762914,967.15,RICKERBY LTD.
Regeneration and Local Services,Direct Services,Transport,210057,Repair and Maintenance of Vehicles,06-Apr-17,3267477-762918,716.2,RICKERBY LTD.
Regeneration and Local Services,Technical Services,Supplies and Services,304221,Equipment and Materials,06-Apr-17,3267510-091653,"1,095.52",STONEGRAVE AGGREGATES LTD.
Resources,I.C.T. Services,Supplies and Services,304303,Equipment and Materials,06-Apr-17,3267536-120408,553.47,TP ELECTRICAL SUPPLIES & FIXINGS LTD.
Regeneration and Local Services,Technical Services,Supplies and Services,304221,Equipment and Materials,06-Apr-17,3267541-171389,"2,074.41",TYNEDALE ROADSTONE LTD.
Regeneration and Local Services,Direct Services,Stock,926004,Stock,06-Apr-17,3267562-108526,"1,102.50",ZOELLER WASTE SYSTEMS LTD.
Children and Young Peoples Services,Education,Transport,230006,Contract Hire,06-Apr-17,3267188-68122,"1,070.00",A & C TAXIS.
Adult and Health Services,Head of Adults,Supplies and Services,308013,Furniture,06-Apr-17,3267213-73604,786.24,BAILEYS BLINDS LTD.
Adult and Health Services,Head of Adults,Supplies and Services,338367,Services,06-Apr-17,3267236-39457,675,CARE ABILITY.
Children and Young Peoples Services,Education,Transport,230007,Contract Hire,06-Apr-17,3267252-45785,"1,725.00",CJ GRIERSON T/A GRIERSONS COACHES.
Children and Young Peoples Services,Education,Transport,230003,Contract Hire,06-Apr-17,3267252-45786,"8,556.00",CJ GRIERSON T/A GRIERSONS COACHES.
Children and Young Peoples Services,Education,Transport,230003,Contract Hire,06-Apr-17,3267252-45788,"2,875.00",CJ GRIERSON T/A GRIERSONS COACHES.
Children and Young Peoples Services,Education,Transport,230003,Contract Hire,06-Apr-17,3267252-45789,"2,990.00",CJ GRIERSON T/A GRIERSONS COACHES.
Children and Young Peoples Services,Education,Transport,230003,Contract Hire,06-Apr-17,3267252-45790,"3,427.00",CJ GRIERSON T/A GRIERSONS COACHES.
Children and Young Peoples Services,Education,Transport,230007,Contract Hire,06-Apr-17,3267252-45791,"1,771.00",CJ GRIERSON T/A GRIERSONS COACHES.
Children and Young Peoples Services,Education,Transport,230006,Contract Hire,06-Apr-17,3267279-17/25,"1,224.00",DMG PRIVATE HIRE.
Children and Young Peoples Services,Education,Transport,230012,Contract Hire,06-Apr-17,3267279-17/26,"1,599.42",DMG PRIVATE HIRE.
Regeneration and Local Services,Direct Services,Third Party Payments,430100,Rendered by Private Contractors,06-Apr-17,3267298-81335,"1,002.51",EVANS HALSHAW.
Children and Young Peoples Services,Education,Transport,230007,Contract Hire,06-Apr-17,3267310-19134,"4,232.00",GARNETTS LTD (COACHES).
Children and Young Peoples Services,Education,Transport,230008,Contract Hire,06-Apr-17,3267310-19135,"5,750.00",GARNETTS LTD (COACHES).
Children and Young Peoples Services,Education,Transport,230007,Contract Hire,06-Apr-17,3267310-19137,"2,691.00",GARNETTS LTD (COACHES).
Children and Young Peoples Services,Education,Transport,230007,Contract Hire,06-Apr-17,3267310-19138,"3,905.63",GARNETTS LTD (COACHES).
Children and Young Peoples Services,Education,Transport,230007,Contract Hire,06-Apr-17,3267310-19139,"17,181.69",GARNETTS LTD (COACHES).
Children and Young Peoples Services,Education,Transport,230003,Contract Hire,06-Apr-17,3267310-19140,"19,320.00",GARNETTS LTD (COACHES).
Children and Young Peoples Services,Education,Transport,230007,Contract Hire,06-Apr-17,3267310-19141,"10,338.50",GARNETTS LTD (COACHES).
Children and Young Peoples Services,Education,Transport,230007,Contract Hire,06-Apr-17,3267310-19142,"2,714.00",GARNETTS LTD (COACHES).
Children and Young Peoples Services,Education,Transport,230007,Contract Hire,06-Apr-17,3267310-19143,"3,197.00",GARNETTS LTD (COACHES).
Children and Young Peoples Services,Education,Transport,230007,Contract Hire,06-Apr-17,3267310-19144,"2,737.00",GARNETTS LTD (COACHES).
Children and Young Peoples Services,Education,Transport,230003,Contract Hire,06-Apr-17,3267310-19145,"7,314.00",GARNETTS LTD (COACHES).
Children and Young Peoples Services,Education,Transport,230003,Contract Hire,06-Apr-17,3267310-19146,"3,657.00",GARNETTS LTD (COACHES).
Children and Young Peoples Services,Education,Transport,230003,Contract Hire,06-Apr-17,3267310-19147,"9,821.00",GARNETTS LTD (COACHES).
Children and Young Peoples Services,Education,Transport,230008,Contract Hire,06-Apr-17,3267328-HT265,"1,959.00",HARRY`S TAXI`S.
Children and Young Peoples Services,Education,Transport,230008,Contract Hire,06-Apr-17,3267328-HT266,"2,210.00",HARRY`S TAXI`S.
Children and Young Peoples Services,Education,Transport,230006,Contract Hire,06-Apr-17,3267328-HT267,"1,840.00",HARRY`S TAXI`S.
Regeneration and Local Services,Direct Services,Third Party Payments,430100,Rendered by Private Contractors,06-Apr-17,3267338-14878,640,IAN BRADLEY RECOVERY LTD.
Children and Young Peoples Services,Education,Transport,230006,Contract Hire,06-Apr-17,3267411-00225,570,MR P GARBUTT.
Children and Young Peoples Services,Education,Transport,230006,Contract Hire,06-Apr-17,3267411-00226,874,MR P GARBUTT.
Children and Young Peoples Services,Education,Transport,230008,Contract Hire,06-Apr-17,3267416-AA372,"2,309.43",MR T GUNN.
Regeneration and Local Services,Technical Services,Third Party Payments,430100,Rendered by Private Contractors,06-Apr-17,3267469-97558,550,PROTECTOR SECURITY GROUP LTD.
Regeneration and Local Services,Technical Services,Third Party Payments,430100,Rendered by Private Contractors,06-Apr-17,3267469-97559,550,PROTECTOR SECURITY GROUP LTD.
Regeneration and Local Services,Technical Services,Supplies and Services,304221,Equipment and Materials,06-Apr-17,3267469-97561,550,PROTECTOR SECURITY GROUP LTD.
Regeneration and Local Services,Technical Services,Third Party Payments,430100,Rendered by Private Contractors,06-Apr-17,3267469-97563,550,PROTECTOR SECURITY GROUP LTD.
Children and Young Peoples Services,Education,Transport,230012,Contract Hire,06-Apr-17,3267495-72517,"1,840.00",SHOTTON PRIVATE HIRE.
Adult and Health Services,Head of Adults,Transport,230005,Contract Hire,06-Apr-17,3267495-72518,"1,870.00",SHOTTON PRIVATE HIRE.
Resources,I.C.T. Services,Supplies and Services,332029,Printing Stationery and Gen Off Exps,06-Apr-17,3267500-22876,"1,794.00",SIMPLY STRIPES (THE SIGNMAKERS) LTD.
Regeneration and Local Services,Technical Services,Supplies and Services,304221,Equipment and Materials,06-Apr-17,3267532-29350,"2,683.80",TODDS HIGHWAY MAINTENANCE LTD.
Regeneration and Local Services,Technical Services,Supplies and Services,304221,Equipment and Materials,06-Apr-17,3267555-43221,"1,732.00",WILLOWCRETE MANUFACTURING COMPANY LTD (MFG).
Resources,I.C.T. Services,Supplies and Services,304252,Equipment and Materials,06-Apr-17,3267200-8626,"2,870.00",ALPHATEC 2000 LTD.
Children and Young Peoples Services,Education,Transport,230008,Contract Hire,06-Apr-17,3267221-0018,920,BL CARS.
Regeneration and Local Services,Direct Services,Third Party Payments,430100,Rendered by Private Contractors,06-Apr-17,3267240-2413,"2,854.13",CATHEDRAL LOCK & SAFE SERVICES LTD.
Regeneration and Local Services,Economic Development and Housing,Supplies and Services,342053,Computers and Communications,06-Apr-17,3267251-7377,"6,257.00",CIVICA UK LTD.
Regeneration and Local Services,Economic Development and Housing,Supplies and Services,342053,Computers and Communications,06-Apr-17,3267251-7378,"1,046.00",CIVICA UK LTD.
Children and Young Peoples Services,Education,Transport,230008,Contract Hire,06-Apr-17,3267260-1144,"1,548.00",CONNORS MINI BUSES.*
Children and Young Peoples Services,Education,Transport,230008,Contract Hire,06-Apr-17,3267260-1145,"1,548.00",CONNORS MINI BUSES.*
Adult and Health Services,Head of Adults,Transport,230005,Contract Hire,06-Apr-17,3267350-1084,"1,413.35",JDS PRIVATE HIRE DURHAM.
Children and Young Peoples Services,Education,Transport,230008,Contract Hire,06-Apr-17,3267350-1085,"1,696.48",JDS PRIVATE HIRE DURHAM.
Children and Young Peoples Services,Education,Transport,230008,Contract Hire,06-Apr-17,3267350-1086,"2,032.97",JDS PRIVATE HIRE DURHAM.
Children and Young Peoples Services,Education,Transport,230008,Contract Hire,06-Apr-17,3267350-1087,"1,594.59",JDS PRIVATE HIRE DURHAM.
Children and Young Peoples Services,Education,Transport,230008,Contract Hire,06-Apr-17,3267350-1088,"1,987.43",JDS PRIVATE HIRE DURHAM.
Children and Young Peoples Services,Education,Transport,230008,Contract Hire,06-Apr-17,3267350-1089,"1,334.00",JDS PRIVATE HIRE DURHAM.
Children and Young Peoples Services,Education,Transport,230007,Contract Hire,06-Apr-17,3267350-1091,"1,058.00",JDS PRIVATE HIRE DURHAM.
Adult and Health Services,Head of Adults,Transport,230005,Contract Hire,06-Apr-17,3267350-1092,"1,040.00",JDS PRIVATE HIRE DURHAM.
Children and Young Peoples Services,Education,Transport,230008,Contract Hire,06-Apr-17,3267350-1093,"2,760.00",JDS PRIVATE HIRE DURHAM.
Children and Young Peoples Services,Education,Transport,230008,Contract Hire,06-Apr-17,3267350-1094,"2,455.00",JDS PRIVATE HIRE DURHAM.
Children and Young Peoples Services,Education,Transport,230008,Contract Hire,06-Apr-17,3267350-1095,"2,990.00",JDS PRIVATE HIRE DURHAM.
Children and Young Peoples Services,Education,Transport,230008,Contract Hire,06-Apr-17,3267350-1096,"2,990.00",JDS PRIVATE HIRE DURHAM.
Adult and Health Services,Head of Adults,Transport,230005,Contract Hire,06-Apr-17,3267350-1097,"2,058.50",JDS PRIVATE HIRE DURHAM.
Children and Young Peoples Services,Education,Transport,230007,Contract Hire,06-Apr-17,3267350-1098,"1,196.00",JDS PRIVATE HIRE DURHAM.
Children and Young Peoples Services,Education,Transport,230007,Contract Hire,06-Apr-17,3267351-2625,"2,414.77",JEFF ANDERSON COACHES LTD.
Children and Young Peoples Services,Education,Transport,230007,Contract Hire,06-Apr-17,3267351-2627,"1,667.27",JEFF ANDERSON COACHES LTD.
Regeneration and Local Services,Direct Services,Supplies and Services,328041,Clothing Uniforms and Laundry,06-Apr-17,3267352-8200,"6,385.74",JG UNIFORMS.
Children and Young Peoples Services,Education,Transport,230006,Contract Hire,06-Apr-17,3267379-3571,"1,413.00",LINCAB TAXIS.
Children and Young Peoples Services,Education,Transport,230012,Contract Hire,06-Apr-17,3267379-3580,"1,682.20",LINCAB TAXIS.
Dedicated Schools Grant,Dedicated Schools Grant,Transport,230010,Contract Hire,06-Apr-17,3267379-3581,"2,154.50",LINCAB TAXIS.
Children and Young Peoples Services,Education,Transport,230008,Contract Hire,06-Apr-17,3267379-3582,"1,960.40",LINCAB TAXIS.
Children and Young Peoples Services,Education,Transport,230012,Contract Hire,06-Apr-17,3267379-3583,"1,741.10",LINCAB TAXIS.
Children and Young Peoples Services,Education,Transport,230006,Contract Hire,06-Apr-17,3267379-3584,"2,221.00",LINCAB TAXIS.
Children and Young Peoples Services,Education,Transport,230006,Contract Hire,06-Apr-17,3267379-3585,"2,256.30",LINCAB TAXIS.
Dedicated Schools Grant,Dedicated Schools Grant,Transport,230011,Contract Hire,06-Apr-17,3267379-3587,"1,573.20",LINCAB TAXIS.
Children and Young Peoples Services,Education,Transport,230006,Contract Hire,06-Apr-17,3267383-3247,"2,146.00",LOCAL TRANSPORT LTD.
Regeneration and Local Services,Projects and Business services,Supplies and Services,304357,Equipment and Materials,06-Apr-17,3267387-45AA,960,M & E & MR WALTON.
Children and Young Peoples Services,Education,Transport,230008,Contract Hire,06-Apr-17,3267414-2953,"2,080.58",MR S BOWERS T/A DH7 TAXIS.
Children and Young Peoples Services,Education,Transport,230008,Contract Hire,06-Apr-17,3267414-2954,"1,871.97",MR S BOWERS T/A DH7 TAXIS.
Children and Young Peoples Services,Education,Transport,230008,Contract Hire,06-Apr-17,3267414-2955,920,MR S BOWERS T/A DH7 TAXIS.
Dedicated Schools Grant,Dedicated Schools Grant,Transport,230010,Contract Hire,06-Apr-17,3267414-2957,672,MR S BOWERS T/A DH7 TAXIS.
Dedicated Schools Grant,Dedicated Schools Grant,Transport,230010,Contract Hire,06-Apr-17,3267414-2958,"1,368.00",MR S BOWERS T/A DH7 TAXIS.
Children and Young Peoples Services,Education,Third Party Payments,440999,Other Third Party Payments,06-Apr-17,3267429-1953,"2,652.00",NORTH EAST DANCE CIC.
Children and Young Peoples Services,Education,Transport,230008,Contract Hire,06-Apr-17,3267454-0519,"2,484.00",PETER`S PRIVATE HIRE/PETER BEST.
Children and Young Peoples Services,Education,Transport,230008,Contract Hire,06-Apr-17,3267463-1234,"1,035.00",PODA LTD.
Children and Young Peoples Services,Education,Transport,230008,Contract Hire,06-Apr-17,3267463-1235,"2,100.00",PODA LTD.
Children and Young Peoples Services,Education,Transport,230012,Contract Hire,06-Apr-17,3267463-1236,"1,426.00",PODA LTD.
Children and Young Peoples Services,Childrens Services,Premises,120037,Energy Costs,06-Apr-17,3267521-1356,"18,728.30",TEESDALE COMMUNITY RESOURCES (TCR) LTD.
Children and Young Peoples Services,Education,Transport,230007,Contract Hire,06-Apr-17,3267551-5840,"1,817.00",WEARDALE PRIVATE HIRE.
Children and Young Peoples Services,Education,Transport,230007,Contract Hire,06-Apr-17,3267551-5841,736,WEARDALE PRIVATE HIRE.
Children and Young Peoples Services,Education,Transport,230007,Contract Hire,06-Apr-17,3267551-5842,"1,552.50",WEARDALE PRIVATE HIRE.
Children and Young Peoples Services,Education,Transport,230007,Contract Hire,06-Apr-17,3267551-5843,"4,137.70",WEARDALE PRIVATE HIRE.
Children and Young Peoples Services,Education,Transport,230007,Contract Hire,06-Apr-17,3267551-5844,"4,698.67",WEARDALE PRIVATE HIRE.
Adult and Health Services,Head of Adults,Transport,230005,Contract Hire,06-Apr-17,3267551-5850,"1,598.50",WEARDALE PRIVATE HIRE.
Regeneration and Local Services,Direct Services,Premises,108099,Service Repairs and Maintenance,06-Apr-17,3267190-658,900,AA GARDENING & LANDSCAPING SERVICES.
Regeneration and Local Services,Direct Services,Third Party Payments,430100,Rendered by Private Contractors,06-Apr-17,3267190-661,"1,400.00",AA GARDENING & LANDSCAPING SERVICES.
Regeneration and Local Services,Direct Services,Third Party Payments,430100,Rendered by Private Contractors,06-Apr-17,3267190-662,690,AA GARDENING & LANDSCAPING SERVICES.
Regeneration and Local Services,Direct Services,Work In Progress,928002,Rechargeable works,06-Apr-17,3267190-663,580,AA GARDENING & LANDSCAPING SERVICES.
Regeneration and Local Services,Direct Services,Third Party Payments,430100,Rendered by Private Contractors,06-Apr-17,3267190-664,890,AA GARDENING & LANDSCAPING SERVICES.
Regeneration and Local Services,Direct Services,Third Party Payments,430100,Rendered by Private Contractors,06-Apr-17,3267190-665,"1,190.00",AA GARDENING & LANDSCAPING SERVICES.
Regeneration and Local Services,Direct Services,Premises,108099,Service Repairs and Maintenance,06-Apr-17,3267190-666,"3,800.00",AA GARDENING & LANDSCAPING SERVICES.
Children and Young Peoples Services,Education,Transport,230007,Contract Hire,06-Apr-17,3267196-115,"1,140.00",ALANS TAXIS BARNARD CASTLE.
Children and Young Peoples Services,Education,Transport,230007,Contract Hire,06-Apr-17,3267196-116,"1,110.00",ALANS TAXIS BARNARD CASTLE.
Children and Young Peoples Services,Education,Transport,230007,Contract Hire,06-Apr-17,3267196-117,"1,320.00",ALANS TAXIS BARNARD CASTLE.
Children and Young Peoples Services,Education,Transport,230007,Contract Hire,06-Apr-17,3267256-956,"1,150.00",CLIVE HUBERY.
Dedicated Schools Grant,Dedicated Schools Grant,Transport,230007,Contract Hire,06-Apr-17,3267312-006,"1,280.00",GAVIN ELLIOTT T/A LOCATION TAXIS.
Children and Young Peoples Services,Education,Transport,230008,Contract Hire,06-Apr-17,3267318-007,"2,502.50",GMC TAXIS NORTH EAST.
Children and Young Peoples Services,Education,Transport,230008,Contract Hire,06-Apr-17,3267400-23A,"2,151.65",MICHAEL A BODDY T/A MBS TAXIS.
Children and Young Peoples Services,Education,Transport,230006,Contract Hire,06-Apr-17,3267420-007,"1,039.50",MT`S CABS.
Children and Young Peoples Services,Education,Transport,230008,Contract Hire,06-Apr-17,3267424-209,"2,376.00",NEVILLE FORBES T/A FORBES TAXIS.
Adult and Health Services,Head of Adults,Transport,230005,Contract Hire,06-Apr-17,3267458-005,600,PHILS TAXIS.
Resources,I.C.T. Services,Supplies and Services,304259,Equipment and Materials,06-Apr-17,3267468-045,666.72,PROTECH CITY LTD.
Children and Young Peoples Services,Education,Transport,230007,Contract Hire,06-Apr-17,3267474-007,630,RAYMOND CHURNSIDE T/A S & L TAXI.
Children and Young Peoples Services,Education,Transport,230012,Contract Hire,06-Apr-17,3267340-40,"1,495.00",IAN SHEPLEY T/A SHEPPA`S TAXIS.
Children and Young Peoples Services,Education,Transport,230007,Contract Hire,06-Apr-17,3267359-58,"1,150.00",JOHN WARE T/A J & K TAXIS.
Children and Young Peoples Services,Education,Transport,230011,Contract Hire,06-Apr-17,3267359-59,570,JOHN WARE T/A J & K TAXIS.
Children and Young Peoples Services,Education,Transport,230008,Contract Hire,06-Apr-17,3267370-5B,"1,305.00",L & R PRIVATE HIRE.
Children and Young Peoples Services,Education,Transport,230012,Contract Hire,06-Apr-17,3267386-54,"1,058.00",LUMLEY TAXIS.
Children and Young Peoples Services,Education,Transport,230006,Contract Hire,06-Apr-17,3267386-55,"1,148.00",LUMLEY TAXIS.
Dedicated Schools Grant,Dedicated Schools Grant,Transport,230010,Contract Hire,06-Apr-17,3267389-04,"1,610.00",M&C`S CABS LTD.
Children and Young Peoples Services,Education,Transport,230008,Contract Hire,06-Apr-17,3267391-28,"1,610.00",MALCOLM CARR T/A CARLY CABS.
Children and Young Peoples Services,Education,Transport,230008,Contract Hire,06-Apr-17,3267400-6F,"1,495.00",MICHAEL A BODDY T/A MBS TAXIS.
Children and Young Peoples Services,Education,Transport,230007,Contract Hire,06-Apr-17,3267405-31,"2,185.00",MORGAN`S TRAVEL.
Adult and Health Services,Head of Adults,Transport,230005,Contract Hire,06-Apr-17,3267408-19,"1,610.00",MR JOHN KNIGHTON T/A JK TAXIS.
Children and Young Peoples Services,Education,Transport,230008,Contract Hire,06-Apr-17,3267408-20,"1,150.00",MR JOHN KNIGHTON T/A JK TAXIS.
Children and Young Peoples Services,Education,Transport,230008,Contract Hire,06-Apr-17,3267450-07,"1,645.30",PAUL ROSE T/A PAUL`S TAXIS.
Children and Young Peoples Services,Education,Transport,230008,Contract Hire,06-Apr-17,3267509-12,"2,089.00",STEVEN HENDERSON T/A HENDYS TAXIS.
Children and Young Peoples Services,Education,Transport,230008,Contract Hire,06-Apr-17,3267516-16,"1,235.00",SUPPORTIVE SRC LTD.
Transformation and Partnerships,Partnerships & Community Engagement Div.,Cap Exp on Grants & Other Financial Assistance (REFCUS),918004,Contributions to other bodies,07-Apr-17,3267639-VOUCHER16NB-BASH050,"2,000.00",COUNDON & LEEHOLME COMMUNITY ASSOCIATION.
Children and Young Peoples Services,Education,Transport,230010,Contract Hire,07-Apr-17,3267836-DCC/BL008/03/2017,594,PB PRIVATE HIRE.
Children and Young Peoples Services,Education,Transport,230008,Contract Hire,07-Apr-17,3267836-DCC/M043/03/2017,966,PB PRIVATE HIRE.
Children and Young Peoples Services,Education,Transport,230008,Contract Hire,07-Apr-17,3267836-DCC/N096/03/2017,"2,047.00",PB PRIVATE HIRE.
Children and Young Peoples Services,Education,Transport,230008,Contract Hire,07-Apr-17,3267836-DCC/N212/03/2017,868,PB PRIVATE HIRE.
Children and Young Peoples Services,Education,Transfer Payments,510026,School Children,07-Apr-17,3267620-DCATCHFUNDINGLH,864,CASTLE VIEW PRIVATE DAY NURSERY LTD.
Regeneration and Local Services,Spatial Policy Planning Assets & Environment,Creditors,952146,Creditor-Section 106 agreement,07-Apr-17,3267688-RED-04-2017-030,"8,158.48",EXCEL ACADEMY PARTNERSHIP T/A FRAMWELLGATE SCHOOL DURHAM.
Children and Young Peoples Services,Education,Transport,230006,Contract Hire,07-Apr-17,3267751-07-F671-31/3/17,"1,104.00",KD TAXIS.
Regeneration and Local Services,Spatial Policy Planning Assets & Environment,Supplies and Services,384700,Miscellaneous Expenses,07-Apr-17,3267799-RED-04-2017-031,"1,625.20",REDACTED - PAYMENT TO INDIVIDUAL
Children and Young Peoples Services,Education,Transfer Payments,510026,School Children,07-Apr-17,3267928-DCATCHAUTUMNJL,504,THE LAURELS CHILD CARE.
Regeneration and Local Services,Technical Services,Employees,40149,Recruitment Instruction and Training,07-Apr-17,3267734-IOSINV012052,630,INSTITUTE OF SWIMMING.
Children and Young Peoples Services,Education,Transport,230009,Contract Hire,07-Apr-17,3267752-7301-31/3/17,920,KDH TAXIS.
Adult and Health Services,Planning & Service Strategy,Premises,108099,Service Repairs and Maintenance,07-Apr-17,3267573-34547731-61,"1,118.00",ADT FIRE & SECURITY PLC.
Regeneration and Local Services,Projects and Business services,Premises,106082,Centrally Controlled Rep and Maint,07-Apr-17,3267573-35031817-61,771.26,ADT FIRE & SECURITY PLC.
Regeneration and Local Services,Direct Services,Third Party Payments,430100,Rendered by Private Contractors,07-Apr-17,3267660-0000097323,"4,259.34",DORMA UK LTD.
Regeneration and Local Services,Technical Services,Supplies and Services,304259,Equipment and Materials,07-Apr-17,3267710-1800008900,880.12,HALFORDS LTD.
Regeneration and Local Services,Direct Services,Supplies and Services,304221,Equipment and Materials,07-Apr-17,3267737-INV3505082,681.72,INTERNATIONAL PLASTIC SYSTEMS LTD T/A IPS FLOW SYSTEMS.
Children and Young Peoples Services,Education,Transport,230008,Contract Hire,07-Apr-17,3267785-KDC-010317,"4,013.75",MJ TIMNEY T/A KDC & C&M TAXIS.
Children and Young Peoples Services,Education,Transport,230008,Contract Hire,07-Apr-17,3267798-A057/03/17,"1,932.00",MR M ALLISON T/A MACBETH TAXIS/COACHES.
Adult and Health Services,EnvironmentHealth & Consumer Protection,Supplies and Services,304999,Equipment and Materials,07-Apr-17,3267818-DI20266329,641,NORTHERN POWERGRID (NORTHEAST) LTD.
Regeneration and Local Services,Technical Services,Stock,926900,Stock in hand-Inventory system,07-Apr-17,3267887-SI17002480,"1,471.13",SOLON SECURITY LTD.
Children and Young Peoples Services,Childrens Services,Employees,80025,Agency Staff,07-Apr-17,3267921-4810009057,"6,789.75",TEES ESK & WEAR VALLEYS NHS FOUNDATION TRUST.
Children and Young Peoples Services,Childrens Services,Third Party Payments,486044,Service Level Agreements,07-Apr-17,3267921-4810009086,"3,856.67",TEES ESK & WEAR VALLEYS NHS FOUNDATION TRUST.
Children and Young Peoples Services,Childrens Services,Employees,80025,Agency Staff,07-Apr-17,3267921-4810009262,"6,789.75",TEES ESK & WEAR VALLEYS NHS FOUNDATION TRUST.
Children and Young Peoples Services,Childrens Services,Third Party Payments,486044,Service Level Agreements,07-Apr-17,3267921-4810009284,"3,856.67",TEES ESK & WEAR VALLEYS NHS FOUNDATION TRUST.
Children and Young Peoples Services,Childrens Services,Employees,80025,Agency Staff,07-Apr-17,3267921-4810009442,"6,789.75",TEES ESK & WEAR VALLEYS NHS FOUNDATION TRUST.
Children and Young Peoples Services,Childrens Services,Third Party Payments,486044,Service Level Agreements,07-Apr-17,3267921-4810009464,"3,856.67",TEES ESK & WEAR VALLEYS NHS FOUNDATION TRUST.
Regeneration and Local Services,Technical Services,Stock,926900,Stock in hand-Inventory system,07-Apr-17,3267930-N/IN193236,757.79,THOMAS OWEN & SONS (NEWCASTLE) LTD.
Regeneration and Local Services,Technical Services,Stock,926900,Stock in hand-Inventory system,07-Apr-17,3267930-N/IN193270,567.38,THOMAS OWEN & SONS (NEWCASTLE) LTD.
Regeneration and Local Services,Technical Services,Stock,926900,Stock in hand-Inventory system,07-Apr-17,3267930-N/IN193274,994.46,THOMAS OWEN & SONS (NEWCASTLE) LTD.
Regeneration and Local Services,Culture & Sport,Supplies and Services,384199,Miscellaneous Expenses,07-Apr-17,3267571-116303594,695.14,AC ENTERTAINMENT TECHNOLOGIES.
Regeneration and Local Services,Culture & Sport,Supplies and Services,324001,Provisions,07-Apr-17,3267618-843620648,501.48,CARLSBERG UK LTD.
Regeneration and Local Services,Culture & Sport,Supplies and Services,324001,Provisions,07-Apr-17,3267618-843622383,507.99,CARLSBERG UK LTD.
Children and Young Peoples Services,Education,Transport,230007,Contract Hire,07-Apr-17,3267704-7-31/3/17,839,GRAFTYS TAXIS.
Regeneration and Local Services,Technical Services,Stock,926900,Stock in hand-Inventory system,07-Apr-17,3267706-06/635421,"4,817.70",GREENHAM TRADING LTD.
Children and Young Peoples Services,Childrens Services,Supplies and Services,384491,Miscellaneous Expenses,07-Apr-17,3267760-MARCH2017,"1,100.00",LAUREL AVENUE COMMUNITY ASSOCIATION.
Adult and Health Services,Head of Adults,Transport,230005,Contract Hire,07-Apr-17,3267792-SLD010317,690,MR D DONNELLY.
Children and Young Peoples Services,Education,Transport,230006,Contract Hire,07-Apr-17,3267795-KDKWOL/6A,"1,751.75",MR I KELSEY.
Children and Young Peoples Services,Education,Transport,230008,Contract Hire,07-Apr-17,3267796-SFB/03/17,"1,932.00",MR J AGAR T/A PARK TAXIS.
Regeneration and Local Services,Technical Services,Supplies and Services,304221,Equipment and Materials,07-Apr-17,3267575-24564644,"1,727.02",AGGREGATE INDUSTRIES UK LTD.
Regeneration and Local Services,Technical Services,Supplies and Services,304221,Equipment and Materials,07-Apr-17,3267575-24564645,"1,208.86",AGGREGATE INDUSTRIES UK LTD.
Children and Young Peoples Services,Childrens Services,Third Party Payments,425021,Rendered by Voluntary Organisations,07-Apr-17,3267589-INV-0647,"11,600.00",ARTEMIS SUPPORT LTD.
Children and Young Peoples Services,Childrens Services,Supplies and Services,364352,Grants to Voluntary Organisations,07-Apr-17,3267589-INV-0659,"11,600.00",ARTEMIS SUPPORT LTD.
Regeneration and Local Services,Direct Services,Supplies and Services,304259,Equipment and Materials,07-Apr-17,3267594-96588697,768.18,BALL COLEGRAVE LTD.
Children and Young Peoples Services,Childrens Services,Employees,80025,Agency Staff,07-Apr-17,3267614-03928229,547.5,CAPITA RESOURCING LTD T/A CAPITA EDUCATION RESOURCING.
Adult and Health Services,Public Health,Third Party Payments,460803,Contract Payments,07-Apr-17,3267667-20015883,"29,375.00",DURHAM POLICE & CRIME COMMISSIONER.
Children and Young Peoples Services,Education,Transport,230008,Contract Hire,07-Apr-17,3267691-E046-029,"3,048.00",FERRYHILL VILLAGE TRAVEL.
Children and Young Peoples Services,Education,Transport,230008,Contract Hire,07-Apr-17,3267691-N060-007,"1,378.00",FERRYHILL VILLAGE TRAVEL.
Children and Young Peoples Services,Education,Transport,230008,Contract Hire,07-Apr-17,3267691-N071-007,"2,205.00",FERRYHILL VILLAGE TRAVEL.
Children and Young Peoples Services,Education,Transport,230008,Contract Hire,07-Apr-17,3267691-S033-007,"1,955.00",FERRYHILL VILLAGE TRAVEL.
Children and Young Peoples Services,Education,Transport,230008,Contract Hire,07-Apr-17,3267691-W053-007,"1,730.75",FERRYHILL VILLAGE TRAVEL.
Children and Young Peoples Services,Education,Transport,230008,Contract Hire,07-Apr-17,3267781-MCD36101,"1,837.00",MCDONALD TRAVEL.
Children and Young Peoples Services,Education,Transport,230008,Contract Hire,07-Apr-17,3267781-MCD36102,"1,748.00",MCDONALD TRAVEL.
Children and Young Peoples Services,Education,Transport,230008,Contract Hire,07-Apr-17,3267781-MCD36103,"3,057.00",MCDONALD TRAVEL.
Children and Young Peoples Services,Education,Transport,230007,Contract Hire,07-Apr-17,3267781-MCD36104,529,MCDONALD TRAVEL.
Children and Young Peoples Services,Education,Transport,230008,Contract Hire,07-Apr-17,3267781-MCD36105,"2,241.00",MCDONALD TRAVEL.
Children and Young Peoples Services,Education,Transport,230007,Contract Hire,07-Apr-17,3267796-KH/03/17,700,MR J AGAR T/A PARK TAXIS.
Resources,I.C.T. Services,Intangible Assets,917001,Software capitalised licence fees,07-Apr-17,3267806-92275058,"5,865.00",NEOPOST LTD.
Regeneration and Local Services,Direct Services,Premises,145015,Cleaning and Domestic Supplies,07-Apr-17,3267823-13230478,"3,625.84",NUMATIC INTERNATIONAL LTD.
Regeneration and Local Services,Direct Services,Supplies and Services,304221,Equipment and Materials,07-Apr-17,3267833-NC141558,774.8,PARK ELECTRICAL DISTRIBUTORS LTD.
Dedicated Schools Grant,Dedicated Schools Grant,Employees,80025,Agency Staff,07-Apr-17,3267855-51151799,500,PROTOCOL EDUCATION LTD.
Resources,I.C.T. Services,Supplies and Services,342051,Computers and Communications,07-Apr-17,3267886-INV88577,"162,743.89",SOFTWARE BOX LTD.
Regeneration and Local Services,Culture & Sport,Supplies and Services,338047,Services,07-Apr-17,3267950-22464567,"1,281.04",WARNER BROS ENTERTAINMENT UK LTD.
Regeneration and Local Services,Direct Services,Supplies and Services,304999,Equipment and Materials,07-Apr-17,3267961-41363157,"4,195.81",WOLSELEY UK LTD.
Regeneration and Local Services,Direct Services,Supplies and Services,304999,Equipment and Materials,07-Apr-17,3267961-41363159,808.48,WOLSELEY UK LTD.
Regeneration and Local Services,Culture & Sport,Intangible Assets,917001,Software capitalised licence fees,07-Apr-17,3267963-04004133,"1,154.96",XN LEISURE SYSTEMS LTD.
Children and Young Peoples Services,Childrens Services,Supplies and Services,304259,Equipment and Materials,07-Apr-17,3267591-15/3/17,600,AUCKLAND CASTLE BOUNCY CASTLES.
Regeneration and Local Services,Economic Development and Housing,Supplies and Services,338045,Services,07-Apr-17,3267606-3194204,"12,269.00",BOND DICKINSON LLP.
Children and Young Peoples Services,Education,Transfer Payments,510026,School Children,07-Apr-17,3267611-15/3/17,842.4,BUSY BODIES CHILDCARE.
Regeneration and Local Services,Direct Services,Supplies and Services,304259,Equipment and Materials,07-Apr-17,3267674-7030791,512.56,EAST RIDING HORTICULTURE LTD.
Regeneration and Local Services,Direct Services,Supplies and Services,304259,Equipment and Materials,07-Apr-17,3267674-7030795,"1,605.00",EAST RIDING HORTICULTURE LTD.
Regeneration and Local Services,Direct Services,Premises,106082,Centrally Controlled Rep and Maint,07-Apr-17,3267725-R16/328,"5,075.00",HYGIENIC CLEANING COMPANY (UK) LTD.
Regeneration and Local Services,Culture & Sport,Premises,106082,Centrally Controlled Rep and Maint,07-Apr-17,3267725-R16/335,"10,751.50",HYGIENIC CLEANING COMPANY (UK) LTD.
Regeneration and Local Services,Transport and Contracted Services,Supplies and Services,342053,Computers and Communications,07-Apr-17,3267726-INV2281,"2,331.20",IAN ROUTLEDGE T/A IR CONSULTANCY.
Regeneration and Local Services,Direct Services,Supplies and Services,304221,Equipment and Materials,07-Apr-17,3267750-G0I68/D,688.8,JT DOVE LTD.
Regeneration and Local Services,Technical Services,Supplies and Services,304221,Equipment and Materials,07-Apr-17,3267750-G0I69/D,736,JT DOVE LTD.
Children and Young Peoples Services,Education,Supplies and Services,338099,Services,07-Apr-17,3267803-2279/23,500,MTL SCAFFOLDING LTD.
Regeneration and Local Services,Culture & Sport,Supplies and Services,338047,Services,07-Apr-17,3267948-1586102,"5,249.29",WALT DISNEY CO LTD.
Regeneration and Local Services,Culture & Sport,Supplies and Services,338047,Services,07-Apr-17,3267948-1586715,"4,757.27",WALT DISNEY CO LTD.
Regeneration and Local Services,Culture & Sport,Supplies and Services,338047,Services,07-Apr-17,3267948-1586717,640.98,WALT DISNEY CO LTD.
Adult and Health Services,Head of Adults,Third Party Payments,479111,Purchase of Care,07-Apr-17,3267666-DCC030,"16,000.00",DURHAM DEAFENED SUPPORT.
Adult and Health Services,Head of Adults,Transport,230005,Contract Hire,07-Apr-17,3267697-100201,"1,840.00",G & P JOHNSON LTD T/A NIGHTINGALE COACHES.
Children and Young Peoples Services,Education,Transport,230008,Contract Hire,07-Apr-17,3267697-100203,"1,495.00",G & P JOHNSON LTD T/A NIGHTINGALE COACHES.
Children and Young Peoples Services,Education,Transport,230008,Contract Hire,07-Apr-17,3267697-100204,"1,495.00",G & P JOHNSON LTD T/A NIGHTINGALE COACHES.
Children and Young Peoples Services,Education,Transport,230008,Contract Hire,07-Apr-17,3267697-100206,"1,702.00",G & P JOHNSON LTD T/A NIGHTINGALE COACHES.
Children and Young Peoples Services,Education,Transport,230008,Contract Hire,07-Apr-17,3267697-100207,"1,633.00",G & P JOHNSON LTD T/A NIGHTINGALE COACHES.
Children and Young Peoples Services,Education,Transport,230008,Contract Hire,07-Apr-17,3267697-100208,"1,955.00",G & P JOHNSON LTD T/A NIGHTINGALE COACHES.
Children and Young Peoples Services,Education,Transport,230008,Contract Hire,07-Apr-17,3267697-100209,"1,265.00",G & P JOHNSON LTD T/A NIGHTINGALE COACHES.
Children and Young Peoples Services,Education,Transport,230008,Contract Hire,07-Apr-17,3267697-100210,"1,173.00",G & P JOHNSON LTD T/A NIGHTINGALE COACHES.
Children and Young Peoples Services,Education,Transport,230008,Contract Hire,07-Apr-17,3267697-100212,"1,035.00",G & P JOHNSON LTD T/A NIGHTINGALE COACHES.
Children and Young Peoples Services,Education,Transport,230008,Contract Hire,07-Apr-17,3267697-100213,"1,990.00",G & P JOHNSON LTD T/A NIGHTINGALE COACHES.
Children and Young Peoples Services,Education,Transport,230008,Contract Hire,07-Apr-17,3267697-100214,"1,955.00",G & P JOHNSON LTD T/A NIGHTINGALE COACHES.
Children and Young Peoples Services,Education,Transport,230008,Contract Hire,07-Apr-17,3267697-100215,"1,610.00",G & P JOHNSON LTD T/A NIGHTINGALE COACHES.
Children and Young Peoples Services,Education,Transport,230008,Contract Hire,07-Apr-17,3267697-100216,897,G & P JOHNSON LTD T/A NIGHTINGALE COACHES.
Children and Young Peoples Services,Education,Transport,230003,Contract Hire,07-Apr-17,3267697-100217,"3,005.18",G & P JOHNSON LTD T/A NIGHTINGALE COACHES.
Children and Young Peoples Services,Education,Transport,230003,Contract Hire,07-Apr-17,3267697-100218,"2,346.00",G & P JOHNSON LTD T/A NIGHTINGALE COACHES.
Children and Young Peoples Services,Education,Transport,230003,Contract Hire,07-Apr-17,3267697-100219,"2,162.00",G & P JOHNSON LTD T/A NIGHTINGALE COACHES.
Adult and Health Services,Head of Adults,Transport,230005,Contract Hire,07-Apr-17,3267697-100230,"1,357.00",G & P JOHNSON LTD T/A NIGHTINGALE COACHES.
Regeneration and Local Services,Culture & Sport,Supplies and Services,338047,Services,07-Apr-17,3267709-FBC713,600,GROWLING CLOWN.
Regeneration and Local Services,Technical Services,Stock,926900,Stock in hand-Inventory system,07-Apr-17,3267773-110605,"10,896.90",MALLATITE LTD T/A MALLATITE PLASTICS LTD.
Children and Young Peoples Services,Education,Transport,230012,Contract Hire,07-Apr-17,3267776-480317,"1,173.00",MARK MUSGROVE T/A MARKS TAXIS.
Regeneration and Local Services,Direct Services,Transport,215005,Running Costs of Vehicles,07-Apr-17,3267825-229466,"19,030.95",OIL NRG LTD.
Regeneration and Local Services,Direct Services,Transport,215005,Running Costs of Vehicles,07-Apr-17,3267825-234694,"13,956.00",OIL NRG LTD.
Regeneration and Local Services,Direct Services,Transport,215022,Running Costs of Vehicles,07-Apr-17,3267825-234695,"1,422.90",OIL NRG LTD.
Children and Young Peoples Services,Education,Transport,230008,Contract Hire,07-Apr-17,3267834-SC-113,"2,185.00",PAUL BURRELL T/A PAUL BURRELL TAXIS.
Children and Young Peoples Services,Education,Transport,230012,Contract Hire,07-Apr-17,3267834-SC-114,"1,840.00",PAUL BURRELL T/A PAUL BURRELL TAXIS.
Dedicated Schools Grant,Dedicated Schools Grant,Transport,230009,Contract Hire,07-Apr-17,3267835-DCC141,"1,104.00",PAUL`S TAXIS..
Regeneration and Local Services,Culture & Sport,Premises,106080,Centrally Controlled Rep and Maint,07-Apr-17,3267854-RI5530,"5,777.00",PROMANEX (TOTAL FM & ENVIRONMENTAL SERVICES) LTD.
Regeneration and Local Services,Technical Services,Stock,926900,Stock in hand-Inventory system,07-Apr-17,3267884-190151,"2,109.60",SNAPFAST.
Children and Young Peoples Services,Education,Transport,230013,Contract Hire,07-Apr-17,3267900-170325,"1,150.00",STEVEN PRATT T/A PTL TAXIS DURHAM.
Adult and Health Services,Head of Adults,Transport,230005,Contract Hire,07-Apr-17,3267900-170326,500,STEVEN PRATT T/A PTL TAXIS DURHAM.
Children and Young Peoples Services,Childrens Services,Employees,80025,Agency Staff,07-Apr-17,3267910-483502,679.43,SUPPLY DESK LTD.
Children and Young Peoples Services,Education,Transport,230008,Contract Hire,07-Apr-17,3267565-31709,"2,079.43",24/7 TAXI SERVICES LTD.
Children and Young Peoples Services,Education,Transport,230008,Contract Hire,07-Apr-17,3267565-31718,"2,308.05",24/7 TAXI SERVICES LTD.
Children and Young Peoples Services,Childrens Services,Premises,108099,Service Repairs and Maintenance,07-Apr-17,3267587-27963,"1,500.00",AQUAJET DRAIN CLEANING LTD.
Transformation and Partnerships,Partnerships & Community Engagement Div.,Premises,106082,Centrally Controlled Rep and Maint,07-Apr-17,3267587-27964,695,AQUAJET DRAIN CLEANING LTD.
Children and Young Peoples Services,Childrens Services,Premises,108099,Service Repairs and Maintenance,07-Apr-17,3267587-27965,"2,480.00",AQUAJET DRAIN CLEANING LTD.
Regeneration and Local Services,Direct Services,Premises,108099,Service Repairs and Maintenance,07-Apr-17,3267587-27966,"4,995.00",AQUAJET DRAIN CLEANING LTD.
Adult and Health Services,Head of Adults,Supplies and Services,338366,Services,07-Apr-17,3267617-39463,"1,454.95",CARE ABILITY.
Regeneration and Local Services,Technical Services,Construction Work,908105,Construction work,07-Apr-17,3267739-20189,528.9,JACK COUPE & SONS LTD T/A COUPE LINE.
Children and Young Peoples Services,Education,Transport,230008,Contract Hire,07-Apr-17,3267741-A086G,"1,380.00",JAFFAS TAXIS.
Children and Young Peoples Services,Education,Transport,230008,Contract Hire,07-Apr-17,3267741-A116G,"1,380.00",JAFFAS TAXIS.
Regeneration and Local Services,Culture & Sport,Premises,106080,Centrally Controlled Rep and Maint,07-Apr-17,3267745-14449,"2,100.00",JC MAINTENANCE SERVICES LTD.
Regeneration and Local Services,Direct Services,Premises,108099,Service Repairs and Maintenance,07-Apr-17,3267745-14468,"11,843.01",JC MAINTENANCE SERVICES LTD.
Regeneration and Local Services,Culture & Sport,Supplies and Services,384199,Miscellaneous Expenses,07-Apr-17,3267749-00050,"1,800.00",JR MILGATE ORCHESTRA PROMOTIONS.
Children and Young Peoples Services,Education,Construction Work,908105,Construction work,07-Apr-17,3267767-47213,980,LUCION ENVIRONMENTAL LLP LTD.
Resources,Internal Audit and Insurance,Supplies and Services,342051,Computers and Communications,07-Apr-17,3267770-13179,500,MAGIQUE GALILEO SOFTWARE LTD.
Children and Young Peoples Services,Education,Transport,230008,Contract Hire,07-Apr-17,3267843-19624,"1,317.60",PHOENIX TAXIS T/A PRATT`S TAXIS.
Children and Young Peoples Services,Education,Transport,230008,Contract Hire,07-Apr-17,3267843-19625,"1,020.00",PHOENIX TAXIS T/A PRATT`S TAXIS.
Children and Young Peoples Services,Childrens Services,Construction Work,908105,Construction work,07-Apr-17,3267859-60227,"1,608.15",QW SECURITY LTD.
Regeneration and Local Services,Economic Development and Housing,Cap Exp on Grants & Other Financial Assistance (REFCUS),918004,Contributions to other bodies,07-Apr-17,3267880-10649,"171,505.00",SEAHAM HARBOUR CIC.
Regeneration and Local Services,Transport and Contracted Services,Third Party Payments,430106,Rendered by Private Contractors,07-Apr-17,3267896-23912,"2,585.42",STANLEY TRAVEL (NORTH EAST) LTD.
Regeneration and Local Services,Transport and Contracted Services,Third Party Payments,430106,Rendered by Private Contractors,07-Apr-17,3267896-24091,"14,058.48",STANLEY TRAVEL (NORTH EAST) LTD.
Children and Young Peoples Services,Education,Supplies and Services,384159,Miscellaneous Expenses,07-Apr-17,3267898-10930,"6,993.60",STEADFAST SECURITY SYSTEMS LTD.
Regeneration and Local Services,Technical Services,Supplies and Services,304221,Equipment and Materials,07-Apr-17,3267949-20454,620.4,WARD TIMBER LTD.
Regeneration and Local Services,Technical Services,Stock,926900,Stock in hand-Inventory system,07-Apr-17,3267949-20455,668,WARD TIMBER LTD.
Regeneration and Local Services,Technical Services,Stock,926900,Stock in hand-Inventory system,07-Apr-17,3267949-20456,730,WARD TIMBER LTD.
Regeneration and Local Services,Technical Services,Supplies and Services,304221,Equipment and Materials,07-Apr-17,3267949-20458,"1,667.30",WARD TIMBER LTD.
Regeneration and Local Services,Direct Services,Third Party Payments,430100,Rendered by Private Contractors,07-Apr-17,3267601-5789,900,BELL CONTROL SOLUTIONS LTD.
Regeneration and Local Services,Culture & Sport,Supplies and Services,304259,Equipment and Materials,07-Apr-17,3267622-2511,841,CATHEDRAL LOCK & SAFE SERVICES LTD.
Children and Young Peoples Services,Education,Transport,230007,Contract Hire,07-Apr-17,3267685-0714,"1,155.29",EN ROUTE TRAVEL.
Children and Young Peoples Services,Education,Transport,230009,Contract Hire,07-Apr-17,3267693-0380,690,FMR SILVA PITA.
Children and Young Peoples Services,Education,Transport,230007,Contract Hire,07-Apr-17,3267693-0381,621,FMR SILVA PITA.
Children and Young Peoples Services,Education,Transport,230008,Contract Hire,07-Apr-17,3267694-1703,"2,070.00",FRANK ATKINSON T/A FJ MINIBUS TRAVEL.
Children and Young Peoples Services,Education,Transport,230006,Contract Hire,07-Apr-17,3267761-1106,"1,044.00",LD TAXIS.
Children and Young Peoples Services,Education,Transport,230008,Contract Hire,07-Apr-17,3267761-1107,"1,685.00",LD TAXIS.
Children and Young Peoples Services,Education,Transport,230006,Contract Hire,07-Apr-17,3267761-1108,700,LD TAXIS.
Children and Young Peoples Services,Education,Transport,230006,Contract Hire,07-Apr-17,3267761-1109,"2,185.00",LD TAXIS.
Children and Young Peoples Services,Education,Transport,230007,Contract Hire,07-Apr-17,3267763-3336,"3,107.99",LEE`S COACHES LTD.
Children and Young Peoples Services,Education,Transport,230007,Contract Hire,07-Apr-17,3267763-3338,"14,375.00",LEE`S COACHES LTD.
Children and Young Peoples Services,Education,Transport,230007,Contract Hire,07-Apr-17,3267763-3339,"2,277.00",LEE`S COACHES LTD.
Children and Young Peoples Services,Education,Supplies and Services,384199,Miscellaneous Expenses,07-Apr-17,3267763-3345,"2,428.00",LEE`S COACHES LTD.
Children and Young Peoples Services,Education,Supplies and Services,384199,Miscellaneous Expenses,07-Apr-17,3267763-3346,"1,448.00",LEE`S COACHES LTD.
Children and Young Peoples Services,Education,Transport,230006,Contract Hire,07-Apr-17,3267793-0173,740,MR DEREK HENDERSON.
Regeneration and Local Services,Transport and Contracted Services,Third Party Payments,430106,Rendered by Private Contractors,07-Apr-17,3267861-2050,"5,291.20",R COOPER T/A DC TAXIS.
Adult and Health Services,Head of Adults,Third Party Payments,470101,Purchase of Care,07-Apr-17,3267895-5914,"5,568.00",ST OSWALD`S HOSPICE.
Regeneration and Local Services,Direct Services,Premises,108099,Service Repairs and Maintenance,07-Apr-17,3267901-9865,561.7,STONE TECHNICAL SERVICES LTD.
Regeneration and Local Services,Direct Services,Premises,108099,Service Repairs and Maintenance,07-Apr-17,3267901-9866,752,STONE TECHNICAL SERVICES LTD.
Adult and Health Services,Head of Adults,Third Party Payments,472101,Purchase of Care,07-Apr-17,3267911-9694,"1,262.40",SUPPORTIVE SRC LTD.
Adult and Health Services,Head of Adults,Third Party Payments,472101,Purchase of Care,07-Apr-17,3267911-9769,"1,420.20",SUPPORTIVE SRC LTD.
Children and Young Peoples Services,Childrens Services,Supplies and Services,384302,Miscellaneous Expenses,07-Apr-17,3267926-4446,963,THE DURHAM CENTRE LTD.
Children and Young Peoples Services,Childrens Services,Supplies and Services,384302,Miscellaneous Expenses,07-Apr-17,3267926-4447,963,THE DURHAM CENTRE LTD.
Children and Young Peoples Services,Education,Transport,230008,Contract Hire,07-Apr-17,3267568-563,690,A BARKER.
Children and Young Peoples Services,Education,Transport,230008,Contract Hire,07-Apr-17,3267568-564,600,A BARKER.
Children and Young Peoples Services,Education,Third Party Payments,440999,Other Third Party Payments,07-Apr-17,3267615-163,"2,078.56",CAPITAL 4 TRAINING LTD
Children and Young Peoples Services,Education,Third Party Payments,440999,Other Third Party Payments,07-Apr-17,3267615-164,516.97,CAPITAL 4 TRAINING LTD
Children and Young Peoples Services,Education,Third Party Payments,440999,Other Third Party Payments,07-Apr-17,3267615-170,663.39,CAPITAL 4 TRAINING LTD
Children and Young Peoples Services,Childrens Services,Supplies and Services,338099,Services,07-Apr-17,3267619-160,585,REDACTED - PAYMENT TO INDIVIDUAL
Regeneration and Local Services,Spatial Policy Planning Assets & Environment,Premises,125009,Rents,07-Apr-17,3267652-008,"17,793.75",DAVISON PROPERTY INVESTMENTS LTD.
Regeneration and Local Services,Spatial Policy Planning Assets & Environment,Construction Work,908105,Construction work,07-Apr-17,3267698-666,"3,380.00",G & T ROBSON LTD.
Children and Young Peoples Services,Education,Transport,230007,Contract Hire,07-Apr-17,3267712-003,529,HAMLET TAXIS.
Children and Young Peoples Services,Education,Transport,230008,Contract Hire,07-Apr-17,3267764-171,966,LEE`S TAXIS (SACRISTON).
Children and Young Peoples Services,Education,Transport,230008,Contract Hire,07-Apr-17,3267764-173,"1,742.00",LEE`S TAXIS (SACRISTON).
Children and Young Peoples Services,Education,Transport,230008,Contract Hire,07-Apr-17,3267764-174,"2,728.43",LEE`S TAXIS (SACRISTON).
Dedicated Schools Grant,Dedicated Schools Grant,Transport,230010,Contract Hire,07-Apr-17,3267787-718,"2,604.00",MOLLYS TAXIS.
Children and Young Peoples Services,Education,Transport,230008,Contract Hire,07-Apr-17,3267787-720,"1,978.00",MOLLYS TAXIS.
Adult and Health Services,Head of Adults,Transport,230005,Contract Hire,07-Apr-17,3267787-721,"2,047.00",MOLLYS TAXIS.
Children and Young Peoples Services,Education,Transport,230008,Contract Hire,07-Apr-17,3267787-722,"2,668.00",MOLLYS TAXIS.
Children and Young Peoples Services,Education,Transport,230008,Contract Hire,07-Apr-17,3267787-723,"2,990.00",MOLLYS TAXIS.
Regeneration and Local Services,Direct Services,Third Party Payments,430105,Rendered by Private Contractors,07-Apr-17,3267805-395,"2,810.60",NE GREEN WASTE RECYCLING LTD.
Children and Young Peoples Services,Childrens Services,Supplies and Services,352001,Conference Expenses,07-Apr-17,3267811-028,540.8,NICOLA JONES EDUCATION CONSULTANCY & TRAINING.
Children and Young Peoples Services,Education,Transport,230008,Contract Hire,07-Apr-17,3267839-545,"1,472.00",PETERLEE EXECUTIVE CARS.
Children and Young Peoples Services,Education,Transport,230008,Contract Hire,07-Apr-17,3267839-546,"1,610.00",PETERLEE EXECUTIVE CARS.
Children and Young Peoples Services,Education,Transport,230007,Contract Hire,07-Apr-17,3267839-547,680,PETERLEE EXECUTIVE CARS.
Dedicated Schools Grant,Dedicated Schools Grant,Transport,230009,Contract Hire,07-Apr-17,3267839-548,"1,150.00",PETERLEE EXECUTIVE CARS.
Children and Young Peoples Services,Education,Transport,230008,Contract Hire,07-Apr-17,3267842-766,"4,102.05",PG TRIPS.
Children and Young Peoples Services,Education,Transport,230007,Contract Hire,07-Apr-17,3267852-333,805,PREMIER PRIVATE HIRE.
Adult and Health Services,Commissioning inc Supporting People,Third Party Payments,440051,Other Third Party Payments,07-Apr-17,3267656-A5,"3,841.67",DERIC YOUTH BUS PROJECT.
Children and Young Peoples Services,Education,Transport,230008,Contract Hire,07-Apr-17,3267689-54,"1,120.00",EXTREME TAXI`S.
Children and Young Peoples Services,Education,Transport,230008,Contract Hire,07-Apr-17,3267689-55,"1,743.00",EXTREME TAXI`S.
Resources,Financial Services,Transport,235058,Public Transport,07-Apr-17,3267740-76,976,JACKS DIRECT TAXI.
Children and Young Peoples Services,Education,Transport,230008,Contract Hire,07-Apr-17,3267768-87,"4,303.60",M BUTCHER T/A M & M`S TAXIS.
Children and Young Peoples Services,Education,Transport,230006,Contract Hire,07-Apr-17,3267768-88,"1,570.80",M BUTCHER T/A M & M`S TAXIS.
Children and Young Peoples Services,Education,Transport,230008,Contract Hire,07-Apr-17,3267794-8,"1,687.50",MR G FREELAND T/A HUNWICK CARS.
Children and Young Peoples Services,Education,Construction Work,908105,Construction work,10-Apr-17,3268184-NEI-EXP-04-2017-019,"1,363.37",NORTHERN POWERGRID (NORTHEAST) LTD.
Children and Young Peoples Services,Education,Transfer Payments,510026,School Children,10-Apr-17,3268042-ASAYASHBMARCH17D,"3,412.80",DAYPARK LTD T/A YELLOW WELLIES.
Children and Young Peoples Services,Childrens Services,Supplies and Services,364353,Grants to Voluntary Organisations,10-Apr-17,3268016-CAS-04-2017-042,636.16,REDACTED - PAYMENT TO INDIVIDUAL
Regeneration and Local Services,Spatial Policy Planning Assets & Environment,Supplies and Services,384700,Miscellaneous Expenses,10-Apr-17,3268024-RED-04-2017-034,695.2,CHARLES HARLE & SONS.
Regeneration and Local Services,Economic Development and Housing,Cap Exp on Grants & Other Financial Assistance (REFCUS),918401,Capital grants,10-Apr-17,3268152-RED-04-2017-036,"5,000.00",REDACTED - PAYMENT TO INDIVIDUAL
Regeneration and Local Services,Economic Development and Housing,Cap Exp on Grants & Other Financial Assistance (REFCUS),918401,Capital grants,10-Apr-17,3268158-RED-04-2017-038,"5,000.00",REDACTED - PAYMENT TO INDIVIDUAL
Regeneration and Local Services,Economic Development and Housing,Cap Exp on Grants & Other Financial Assistance (REFCUS),918401,Capital grants,10-Apr-17,3268164-RED-04-2017-037,"5,000.00",REDACTED - PAYMENT TO INDIVIDUAL
Regeneration and Local Services,Economic Development and Housing,Supplies and Services,340001,Postages,10-Apr-17,3268167-RED-04-2017-041,"2,000.00",NEOPOST CREDIFON.
Adult and Health Services,Commissioning inc Supporting People,Third Party Payments,470103,Purchase of Care,10-Apr-17,3268270-BARVOID12022017,735.5,TAMARIS HEALTHCARE LTD.
Children and Young Peoples Services,Education,Employees,40001,Recruitment Instruction and Training,10-Apr-17,3268276-TARINV/15459229,710.1,TES GLOBAL LTD.
Dedicated Schools Grant,Dedicated Schools Grant,Third Party Payments,440080,Other Third Party Payments,10-Apr-17,3268040-SLINV/00001337,"1,634.21",DARLINGTON COLLEGE.
Regeneration and Local Services,Economic Development and Housing,Supplies and Services,384199,Miscellaneous Expenses,10-Apr-17,3268070-HEX54000603384,"4,500.00",EXPERIAN LTD.
Regeneration and Local Services,Economic Development and Housing,Supplies and Services,384199,Miscellaneous Expenses,10-Apr-17,3268070-HEX58000603449,"4,500.00",EXPERIAN LTD.
Regeneration and Local Services,Transport and Contracted Services,Construction Work,908105,Construction work,10-Apr-17,3268154-23063-3836-003,"401,266.97",MORRISON UTILITY SERVICES LTD.
Regeneration and Local Services,Transport and Contracted Services,Construction Work,908105,Construction work,10-Apr-17,3268154-23105-3836-004,"198,732.42",MORRISON UTILITY SERVICES LTD.
Regeneration and Local Services,Transport and Contracted Services,Third Party Payments,430108,Rendered by Private Contractors,10-Apr-17,3268170-1800008362067,"29,765.20",NEWCASTLE UPON TYNE CITY COUNCIL.
Regeneration and Local Services,Technical Services,Construction Work,908105,Construction work,10-Apr-17,3268170-1800008362110,"18,907.33",NEWCASTLE UPON TYNE CITY COUNCIL.
Regeneration and Local Services,Transport and Contracted Services,Third Party Payments,430106,Rendered by Private Contractors,10-Apr-17,3268074-PS-FEB/MAR17,"7,068.75",FERRYHILL VILLAGE TRAVEL.
Regeneration and Local Services,Transport and Contracted Services,Supplies and Services,304259,Equipment and Materials,10-Apr-17,3268292-3IN/10295947,"11,600.00",TUNSTALL HEALTHCARE (UK) LTD.
Regeneration and Local Services,Transport and Contracted Services,Supplies and Services,344016,Telephones,10-Apr-17,3268292-3IN/10295948,"5,400.00",TUNSTALL HEALTHCARE (UK) LTD.
Children and Young Peoples Services,Childrens Services,Supplies and Services,338505,Services,10-Apr-17,3268175-7010100640A,"30,915.00",NHS DDES CCG.
Children and Young Peoples Services,Education,Transport,230007,Contract Hire,10-Apr-17,3268272-03/2017/003,736,TARNS TAXIS LTD.
Children and Young Peoples Services,Education,Transport,230008,Contract Hire,10-Apr-17,3268272-03/2017/004,"1,380.00",TARNS TAXIS LTD.
Children and Young Peoples Services,Education,Transport,230008,Contract Hire,10-Apr-17,3268272-03/2017/005,"1,192.50",TARNS TAXIS LTD.
Children and Young Peoples Services,Education,Transport,230008,Contract Hire,10-Apr-17,3268272-03/2017/006,"1,464.00",TARNS TAXIS LTD.
Resources,Legal & Democratic Services,Supplies and Services,338057,Services,10-Apr-17,3267981-0000026543,"2,505.00",ALERE FORENSICS.
Resources,Legal & Democratic Services,Supplies and Services,338057,Services,10-Apr-17,3267981-0000026555,"2,365.00",ALERE FORENSICS.
Regeneration and Local Services,Culture & Sport,Third Party Payments,430100,Rendered by Private Contractors,10-Apr-17,3268029-PSINV01771,"28,496.24",COMPETITION LINE UK LTD.
Regeneration and Local Services,Culture & Sport,Third Party Payments,430100,Rendered by Private Contractors,10-Apr-17,3268029-PSINV01772,"7,546.41",COMPETITION LINE UK LTD.
Regeneration and Local Services,Culture & Sport,Income,720810,Fees and Charges,10-Apr-17,3268029-PSINV01773,"18,639.31",COMPETITION LINE UK LTD.
Regeneration and Local Services,Culture & Sport,Income,720810,Fees and Charges,10-Apr-17,3268029-PSINV01774,"26,495.95",COMPETITION LINE UK LTD.
Regeneration and Local Services,Culture & Sport,Income,720810,Fees and Charges,10-Apr-17,3268029-PSINV01775,"4,850.58",COMPETITION LINE UK LTD.
Resources,I.C.T. Services,Stock,926900,Stock in hand-Inventory system,10-Apr-17,3268044-7402352462,"14,479.50",DELL COMPUTER CORPORATION LTD.
Regeneration and Local Services,Direct Services,Supplies and Services,304221,Equipment and Materials,10-Apr-17,3268058-059-201868,643.91,EDMUNDSON ELECTRICAL LTD.
Children and Young Peoples Services,Education,Transport,230008,Contract Hire,10-Apr-17,3268143-07-31/3/17,"1,730.00",MARK SUMMERS T/A MARK`S TAXI.
Regeneration and Local Services,Technical Services,Supplies and Services,304221,Equipment and Materials,10-Apr-17,3268145-ZBB1196489,"5,427.60",MARSHALLS MONO LTD.
Resources,I.C.T. Services,Supplies and Services,304303,Equipment and Materials,10-Apr-17,3268150-0000093944,"1,725.00",MILLENNIUM BUSINESS SYSTEMS LTD.
Resources,I.C.T. Services,Supplies and Services,304303,Equipment and Materials,10-Apr-17,3268150-0000093955,"1,819.00",MILLENNIUM BUSINESS SYSTEMS LTD.
Adult and Health Services,Public Health,Supplies and Services,384155,Miscellaneous Expenses,10-Apr-17,3268174-I000051489,"62,980.63",NHS BUSINESS SERVICES AUTHORITY (NHSBSA).
Children and Young Peoples Services,Childrens Services,Third Party Payments,425023,Rendered by Voluntary Organisations,10-Apr-17,3268180-0000032076,"13,279.50",NORTH EAST AUTISM SOCIETY.
Regeneration and Local Services,Technical Services,Third Party Payments,430100,Rendered by Private Contractors,10-Apr-17,3268184-DI20266502,"1,197.96",NORTHERN POWERGRID (NORTHEAST) LTD.
Children and Young Peoples Services,Education,Transport,230008,Contract Hire,10-Apr-17,3268239-18-31/3/17,"1,368.00",SHARON`S TAXI.
Regeneration and Local Services,Technical Services,Supplies and Services,304221,Equipment and Materials,10-Apr-17,3268271-9035869290,694.8,TARMAC TRADING LTD.
Regeneration and Local Services,Technical Services,Supplies and Services,304221,Equipment and Materials,10-Apr-17,3268271-9035912545,"1,802.79",TARMAC TRADING LTD.
Regeneration and Local Services,Technical Services,Supplies and Services,304221,Equipment and Materials,10-Apr-17,3268271-9035926202,820.47,TARMAC TRADING LTD.
Regeneration and Local Services,Direct Services,Supplies and Services,304259,Equipment and Materials,10-Apr-17,3268301-00299/2017,"3,555.00",VIPA UK LTD.
Regeneration and Local Services,Culture & Sport,Supplies and Services,304259,Equipment and Materials,10-Apr-17,3267972-116303830,"4,227.08",AC ENTERTAINMENT TECHNOLOGIES.
Regeneration and Local Services,Culture & Sport,Supplies and Services,304337,Equipment and Materials,10-Apr-17,3267982-9935-2017,"1,240.40",ALISON BLACK LTD T/A SPORTMAX.
Regeneration and Local Services,Technical Services,Stock,926900,Stock in hand-Inventory system,10-Apr-17,3267996-SIN348973,"1,559.26",ATF SUPPLIES LTD.
Resources,Financial Services,Supplies and Services,332029,Printing Stationery and Gen Off Exps,10-Apr-17,3268022-CFH010613,"14,110.79",CFH TOTAL DOCUMENT MANAGEMENT LTD.
Regeneration and Local Services,Technical Services,Employees,40149,Recruitment Instruction and Training,10-Apr-17,3268028-804444079,696.9,CITY & GUILDS OF LONDON INSTITUTE.
Regeneration and Local Services,Economic Development and Housing,Supplies and Services,338035,Services,10-Apr-17,3268028-804446166,754,CITY & GUILDS OF LONDON INSTITUTE.
Resources,I.C.T. Services,Supplies and Services,304639,Equipment and Materials,10-Apr-17,3268047-147080739,"1,082.48",DIVERSEY LTD.
Regeneration and Local Services,Technical Services,Stock,926900,Stock in hand-Inventory system,10-Apr-17,3268091-06/637312,"2,308.37",GREENHAM TRADING LTD.
Regeneration and Local Services,Direct Services,Supplies and Services,304221,Equipment and Materials,10-Apr-17,3268123-BA1282236,565.25,JT DOVE LTD.
Regeneration and Local Services,Technical Services,Supplies and Services,304221,Equipment and Materials,10-Apr-17,3268123-STI454050,"3,600.00",JT DOVE LTD.
Resources,Financial Services,Supplies and Services,338017,Services,10-Apr-17,3268135-120059136,"7,642.40",LLOYDS BANK PLC.
Regeneration and Local Services,Transport and Contracted Services,Construction Work,908203,Capital - Public Utilities - Water Services,10-Apr-17,3268188-913972819,"90,562.00",NORTHUMBRIAN WATER LTD.
Regeneration and Local Services,Culture & Sport,Supplies and Services,384199,Miscellaneous Expenses,10-Apr-17,3267978-28300382,"1,000.00",AECOM LTD.
Regeneration and Local Services,Technical Services,Supplies and Services,304221,Equipment and Materials,10-Apr-17,3267979-24571588,"2,097.07",AGGREGATE INDUSTRIES UK LTD.
Regeneration and Local Services,Technical Services,Supplies and Services,304221,Equipment and Materials,10-Apr-17,3267979-24571589,"1,241.46",AGGREGATE INDUSTRIES UK LTD.
Regeneration and Local Services,Technical Services,Supplies and Services,304221,Equipment and Materials,10-Apr-17,3267979-24571591,605.9,AGGREGATE INDUSTRIES UK LTD.
Regeneration and Local Services,Technical Services,Supplies and Services,304221,Equipment and Materials,10-Apr-17,3267979-24578644,"2,067.70",AGGREGATE INDUSTRIES UK LTD.
Regeneration and Local Services,Technical Services,Supplies and Services,304221,Equipment and Materials,10-Apr-17,3267979-24578645,"1,251.49",AGGREGATE INDUSTRIES UK LTD.
Regeneration and Local Services,Technical Services,Supplies and Services,304221,Equipment and Materials,10-Apr-17,3267979-24578647,"2,231.94",AGGREGATE INDUSTRIES UK LTD.
Adult and Health Services,Head of Adults,Third Party Payments,470101,Purchase of Care,10-Apr-17,3267995-INV-0667,"2,071.43",ARTEMIS SUPPORT LTD.
Regeneration and Local Services,Projects and Business services,Fees,901002,Professional fees,10-Apr-17,3267997-16048097,"18,856.00",ATKINS GLOBAL.
Regeneration and Local Services,Culture & Sport,Premises,108099,Service Repairs and Maintenance,10-Apr-17,3267997-16051959,650,ATKINS GLOBAL.
Children and Young Peoples Services,Childrens Services,Supplies and Services,384491,Miscellaneous Expenses,10-Apr-17,3267999-ADN00115,840,AYCLIFFE DAY NURSERY.
Regeneration and Local Services,Culture & Sport,Premises,120021,Energy Costs,10-Apr-17,3268013-29070229,879.83,CALOR GAS LTD.
Regeneration and Local Services,Economic Development and Housing,Premises,120021,Energy Costs,10-Apr-17,3268033-11906602,952.76,CORONA ENERGY RETAIL 2 LTD.
Regeneration and Local Services,Economic Development and Housing,Premises,120021,Energy Costs,10-Apr-17,3268033-11907489,770.82,CORONA ENERGY RETAIL 2 LTD.
Regeneration and Local Services,Economic Development and Housing,Premises,120021,Energy Costs,10-Apr-17,3268033-11908671,"1,482.04",CORONA ENERGY RETAIL 2 LTD.
Regeneration and Local Services,Economic Development and Housing,Premises,120021,Energy Costs,10-Apr-17,3268033-11916711,"1,026.04",CORONA ENERGY RETAIL 2 LTD.
Regeneration and Local Services,Economic Development and Housing,Premises,120021,Energy Costs,10-Apr-17,3268033-11920771,914.61,CORONA ENERGY RETAIL 2 LTD.
Children and Young Peoples Services,Childrens Services,Supplies and Services,384302,Miscellaneous Expenses,10-Apr-17,3268054-003-2017,500,EAST DURHAM COMMUNITY EDUCATION COMMITTEE.
Children and Young Peoples Services,Childrens Services,Supplies and Services,384302,Miscellaneous Expenses,10-Apr-17,3268054-004-2017,650,EAST DURHAM COMMUNITY EDUCATION COMMITTEE.
Dedicated Schools Grant,Dedicated Schools Grant,Supplies and Services,352001,Conference Expenses,10-Apr-17,3268056-22834300,694.55,ECI SCHOOLS.
Regeneration and Local Services,Economic Development and Housing,Construction Work,908105,Construction work,10-Apr-17,3268081-FBI00115,"3,600.00",FULL BLOWN METALS LTD.
Children and Young Peoples Services,Education,Transport,230008,Contract Hire,10-Apr-17,3268156-VLR03-17,"1,099.40",MR CT WALKER T/A CW TAXIS.
Regeneration and Local Services,Technical Services,Other Expenses,914002,Capital - Advertisments,10-Apr-17,3268173-19321109,824.68,NEWSQUEST (YORKSHIRE & NORTH EAST) LTD.
Regeneration and Local Services,Spatial Policy Planning Assets & Environment,Supplies and Services,336005,Advertising,10-Apr-17,3268173-19321117,670.05,NEWSQUEST (YORKSHIRE & NORTH EAST) LTD.
Adult and Health Services,EnvironmentHealth & Consumer Protection,Supplies and Services,384540,Miscellaneous Expenses,10-Apr-17,3268173-19321132,695.82,NEWSQUEST (YORKSHIRE & NORTH EAST) LTD.
Children and Young Peoples Services,Childrens Services,Supplies and Services,338505,Services,10-Apr-17,3268176-10500554,"24,192.00",NHS NORTH DURHAM CCG.
Regeneration and Local Services,Culture & Sport,Premises,145050,Cleaning and Domestic Supplies,10-Apr-17,3268203-64772943,"2,263.58",PHS GROUP PLC.
Children and Young Peoples Services,Education,Transport,230008,Contract Hire,10-Apr-17,3268249-TJS74793,"1,472.00",SPENNYMOOR TAXIS.
Regeneration and Local Services,Spatial Policy Planning Assets & Environment,Supplies and Services,384199,Miscellaneous Expenses,10-Apr-17,3268267-16/17002,"1,150.00",TAKE 27 LTD.
Adult and Health Services,Public Health,Third Party Payments,460803,Contract Payments,10-Apr-17,3268305-SINV7454,"4,166.08",VOLUNTEERING MATTERS.
Regeneration and Local Services,Culture & Sport,Supplies and Services,338047,Services,10-Apr-17,3268307-22469403,538.13,WARNER BROS ENTERTAINMENT UK LTD.
Regeneration and Local Services,Direct Services,Supplies and Services,304221,Equipment and Materials,10-Apr-17,3268312-41401803,710,WOLSELEY UK LTD.
Regeneration and Local Services,Technical Services,Stock,926900,Stock in hand-Inventory system,10-Apr-17,3268312-41443893,945.18,WOLSELEY UK LTD.
Regeneration and Local Services,Direct Services,Supplies and Services,304221,Equipment and Materials,10-Apr-17,3268312-41444981,"1,441.49",WOLSELEY UK LTD.
Regeneration and Local Services,Strategy Programmes and Performance,Employees,40149,Recruitment Instruction and Training,10-Apr-17,3267973-14/7170,"1,670.00",ACAS.
Children and Young Peoples Services,Education,Supplies and Services,384871,Miscellaneous Expenses,10-Apr-17,3267975-0317/06,500,ADAM BUSHNELL LTD.
Regeneration and Local Services,Technical Services,Stock,926900,Stock in hand-Inventory system,10-Apr-17,3268006-8415302,810,BOLD NU TEC INSULATION PRODUCTS & SERVICES LTD.
Regeneration and Local Services,Direct Services,Supplies and Services,304221,Equipment and Materials,10-Apr-17,3268068-6793280,"11,600.00",ESE WORLD LTD.
Regeneration and Local Services,Culture & Sport,Supplies and Services,304259,Equipment and Materials,10-Apr-17,3268092-3076847,"1,050.00",GRESSWELL.
Resources,I.C.T. Services,Vehicles Equipment Furniture and Fittings,912701,Computer equipment,10-Apr-17,3268111-3304293,"1,225.00",INSIGHT DIRECT (UK) LTD.
Regeneration and Local Services,Transport and Contracted Services,Third Party Payments,430106,Rendered by Private Contractors,10-Apr-17,3268120-DCC3/17,"2,380.44",JOHN JAMES BRUNSKILL.
Regeneration and Local Services,Transport and Contracted Services,Construction Work,908105,Construction work,10-Apr-17,3268169-1207916,"93,331.11",NETWORK RAIL.
Regeneration and Local Services,Direct Services,Supplies and Services,384956,Miscellaneous Expenses,10-Apr-17,3268199-5126144,572.11,PERFORMING RIGHT SOCIETY LTD T/A PRS FOR MUSIC.
Regeneration and Local Services,Economic Development and Housing,Supplies and Services,344033,Telephones,10-Apr-17,3268225-0035882,607.4,RUSSELL NETWORK SOLUTIONS LTD.
Resources,Legal & Democratic Services,Supplies and Services,332047,Printing Stationery and Gen Off Exps,10-Apr-17,3268261-8880558,932.91,SUPPLIES TEAM LTD NOW KNOWN AS BANNER GROUP LTD.
Adult and Health Services,Planning & Service Strategy,Supplies and Services,332047,Printing Stationery and Gen Off Exps,10-Apr-17,3268261-8881312,532.92,SUPPLIES TEAM LTD NOW KNOWN AS BANNER GROUP LTD.
Regeneration and Local Services,Direct Services,Supplies and Services,304221,Equipment and Materials,10-Apr-17,3268266-2307836,574.68,T CROSSLING & CO LTD.
Children and Young Peoples Services,Education,Transport,230008,Contract Hire,10-Apr-17,3268285-TS-15/7,"1,104.00",TOP STAR TRAVEL.
Children and Young Peoples Services,Education,Transport,230012,Contract Hire,10-Apr-17,3268285-TS-18/7,"1,380.00",TOP STAR TRAVEL.
Regeneration and Local Services,Economic Development and Housing,Supplies and Services,336005,Advertising,10-Apr-17,3268290-3290525,"3,090.00",TRINITY MIRROR PUBLISHING LTD.*
Adult and Health Services,Head of Adults,Transport,230005,Contract Hire,10-Apr-17,3268291-014-015,500,TRUDY`S.
Children and Young Peoples Services,Education,Supplies and Services,384199,Miscellaneous Expenses,10-Apr-17,3268300-1700023,600,USHAW COLLEGE.
Children and Young Peoples Services,Education,Supplies and Services,384199,Miscellaneous Expenses,10-Apr-17,3268300-1700024,600,USHAW COLLEGE.
Regeneration and Local Services,Culture & Sport,Supplies and Services,338047,Services,10-Apr-17,3268306-1586103,"1,541.95",WALT DISNEY CO LTD.
Children and Young Peoples Services,Childrens Services,Premises,108099,Service Repairs and Maintenance,10-Apr-17,3268001-389103,"1,189.10",BAY PLASTICS LTD.
Regeneration and Local Services,Direct Services,Supplies and Services,304259,Equipment and Materials,10-Apr-17,3268010-170294,"1,083.00",BRAMBLEDOWN LANDSCAPE SERVICES LTD.
Regeneration and Local Services,Direct Services,Supplies and Services,304259,Equipment and Materials,10-Apr-17,3268010-170299,520,BRAMBLEDOWN LANDSCAPE SERVICES LTD.
Regeneration and Local Services,Economic Development and Housing,Employees,40149,Recruitment Instruction and Training,10-Apr-17,3268023-RES171,"2,316.60",CHANGE WORKING LTD T/A TRAIN OF THOUGHT.
Adult and Health Services,Head of Adults,Transport,230005,Contract Hire,10-Apr-17,3268082-100228,"1,364.00",G & P JOHNSON LTD T/A NIGHTINGALE COACHES.
Adult and Health Services,Head of Adults,Transport,230005,Contract Hire,10-Apr-17,3268082-100229,"1,225.00",G & P JOHNSON LTD T/A NIGHTINGALE COACHES.
Adult and Health Services,Head of Adults,Transport,230005,Contract Hire,10-Apr-17,3268082-100231,830.7,G & P JOHNSON LTD T/A NIGHTINGALE COACHES.
Dedicated Schools Grant,Dedicated Schools Grant,Transport,230007,Contract Hire,10-Apr-17,3268082-100232,"1,054.00",G & P JOHNSON LTD T/A NIGHTINGALE COACHES.
Resources,I.C.T. Services,Debtors,930167,Debtor-Telephone Holding Account,10-Apr-17,3268141-100049,"23,791.99",MAINTEL EUROPE LTD.
Regeneration and Local Services,Culture & Sport,Supplies and Services,324117,Provisions,10-Apr-17,3268144-193949,581.93,MARK TONEY & CO LTD.
Regeneration and Local Services,Transport and Contracted Services,Third Party Payments,430100,Rendered by Private Contractors,10-Apr-17,3268189-043378,"5,326.65",NSL LTD.
Regeneration and Local Services,Transport and Contracted Services,Third Party Payments,430100,Rendered by Private Contractors,10-Apr-17,3268189-043442,"6,052.03",NSL LTD.
Regeneration and Local Services,Transport and Contracted Services,Third Party Payments,430100,Rendered by Private Contractors,10-Apr-17,3268189-043444,"3,382.95",NSL LTD.
Resources,I.C.T. Services,Supplies and Services,332029,Printing Stationery and Gen Off Exps,10-Apr-17,3268208-642210,"1,095.00",POTTS PRINTERS LTD.
Regeneration and Local Services,Technical Services,Third Party Payments,430100,Rendered by Private Contractors,10-Apr-17,3268210-143916,"13,030.15",PREMIER TRAFFIC MANAGEMENT LTD.
Children and Young Peoples Services,Childrens Services,Supplies and Services,304259,Equipment and Materials,10-Apr-17,3268220-089107,587.95,ROMPA LTD.
Regeneration and Local Services,Direct Services,Supplies and Services,304221,Equipment and Materials,10-Apr-17,3268224-992259,700,RTC SAFETY SURFACES LTD.
Regeneration and Local Services,Technical Services,Supplies and Services,304221,Equipment and Materials,10-Apr-17,3268257-091756,"2,090.60",STONEGRAVE AGGREGATES LTD.
Regeneration and Local Services,Spatial Policy Planning Assets & Environment,Construction Work,908105,Construction work,10-Apr-17,3268264-767129,583.33,SURFLINK SYSTEMS LTD T/A GARDEN 4 LESS.
Children and Young Peoples Services,Education,Transport,230008,Contract Hire,10-Apr-17,3268285-TS21/7,"1,104.00",TOP STAR TRAVEL.
Children and Young Peoples Services,Childrens Services,Employees,80025,Agency Staff,10-Apr-17,3268302-252525,850,VISION FOR EDUCATION LTD.
Children and Young Peoples Services,Childrens Services,Employees,80025,Agency Staff,10-Apr-17,3268302-252526,540,VISION FOR EDUCATION LTD.
Children and Young Peoples Services,Childrens Services,Supplies and Services,384491,Miscellaneous Expenses,10-Apr-17,3268308-201739,767.5,WHEATLEY HILL COMMUNITY NURSERY LTD.
Children and Young Peoples Services,Childrens Services,Supplies and Services,384491,Miscellaneous Expenses,10-Apr-17,3268308-201740,"1,145.00",WHEATLEY HILL COMMUNITY NURSERY LTD.
Children and Young Peoples Services,Childrens Services,Supplies and Services,384491,Miscellaneous Expenses,10-Apr-17,3268308-201743,981,WHEATLEY HILL COMMUNITY NURSERY LTD.
Children and Young Peoples Services,Childrens Services,Supplies and Services,384491,Miscellaneous Expenses,10-Apr-17,3268308-201745,535,WHEATLEY HILL COMMUNITY NURSERY LTD.
Children and Young Peoples Services,Childrens Services,Supplies and Services,384491,Miscellaneous Expenses,10-Apr-17,3268308-201751,920,WHEATLEY HILL COMMUNITY NURSERY LTD.
Children and Young Peoples Services,Childrens Services,Supplies and Services,384491,Miscellaneous Expenses,10-Apr-17,3268308-201752,"1,380.00",WHEATLEY HILL COMMUNITY NURSERY LTD.
Children and Young Peoples Services,Childrens Services,Supplies and Services,384491,Miscellaneous Expenses,10-Apr-17,3268308-201753,520,WHEATLEY HILL COMMUNITY NURSERY LTD.
Children and Young Peoples Services,Education,Transport,230008,Contract Hire,10-Apr-17,3267968-31713,"1,150.00",24/7 TAXI SERVICES LTD.
Adult and Health Services,Commissioning inc Supporting People,Premises,145050,Cleaning and Domestic Supplies,10-Apr-17,3267989-63858,"10,980.94",ANLABY OFFICE CLEANING SERVICES LTD.
Children and Young Peoples Services,Childrens Services,Supplies and Services,338094,Services,10-Apr-17,3268041-INV56,560,DAWDON YOUTH & COMMUNITY CENTRE.
Regeneration and Local Services,Transport and Contracted Services,Third Party Payments,430106,Rendered by Private Contractors,10-Apr-17,3268085-19172,"2,712.37",GARNETTS LTD (COACHES).
Transformation and Partnerships,Partnerships & Community Engagement Div.,Supplies and Services,384071,Miscellaneous Expenses,10-Apr-17,3268100-11497,526.5,HI LIGHTS THEATRE SERVICES.
Regeneration and Local Services,Transport and Contracted Services,Third Party Payments,430106,Rendered by Private Contractors,10-Apr-17,3268102-11184,"5,651.05",HODGSONS COACH OPERATORS LTD.
Regeneration and Local Services,Technical Services,Construction Work,908105,Construction work,10-Apr-17,3268115-20202,760.68,JACK COUPE & SONS LTD T/A COUPE LINE.
Adult and Health Services,EnvironmentHealth & Consumer Protection,Supplies and Services,304259,Equipment and Materials,10-Apr-17,3268146-16671,924.13,MATTHEW BRASH T/A ARK GIVENDALE LTD.
Regeneration and Local Services,Direct Services,Supplies and Services,304259,Equipment and Materials,10-Apr-17,3268183-21453,"2,303.75",NORTHERN POWER CLEAN LTD.
Regeneration and Local Services,Technical Services,Supplies and Services,304221,Equipment and Materials,10-Apr-17,3268187-19994,649.55,NORTHUMBRIAN ROADS LTD.
Adult and Health Services,Head of Adults,Third Party Payments,470101,Purchase of Care,10-Apr-17,3268198-31325,"2,708.40",PERCY HEDLEY FOUNDATION.
Adult and Health Services,Head of Adults,Third Party Payments,470101,Purchase of Care,10-Apr-17,3268198-31329,736,PERCY HEDLEY FOUNDATION.
Children and Young Peoples Services,Childrens Services,Third Party Payments,425023,Rendered by Voluntary Organisations,10-Apr-17,3268198-31333,"7,815.00",PERCY HEDLEY FOUNDATION.
Adult and Health Services,Head of Adults,Third Party Payments,470101,Purchase of Care,10-Apr-17,3268198-31334,"1,494.00",PERCY HEDLEY FOUNDATION.
Adult and Health Services,Head of Adults,Third Party Payments,470101,Purchase of Care,10-Apr-17,3268198-31335,"5,401.75",PERCY HEDLEY FOUNDATION.
Children and Young Peoples Services,Childrens Services,Third Party Payments,425020,Rendered by Voluntary Organisations,10-Apr-17,3268198-31337,"1,311.75",PERCY HEDLEY FOUNDATION.
Adult and Health Services,Head of Adults,Third Party Payments,470101,Purchase of Care,10-Apr-17,3268198-31338,"10,663.70",PERCY HEDLEY FOUNDATION.
Regeneration and Local Services,Technical Services,Supplies and Services,384110,Miscellaneous Expenses,10-Apr-17,3268209-68222,"1,200.00",PRECISION GEOMATICS LTD.
Regeneration and Local Services,Economic Development and Housing,Supplies and Services,338078,Services,10-Apr-17,3268212-60212,"4,896.88",QW SECURITY LTD.
Resources,I.C.T. Services,Supplies and Services,332029,Printing Stationery and Gen Off Exps,10-Apr-17,3268213-14702,"1,345.00",RADECAL SIGNS GRAPHICS & ADVERTISING.
Children and Young Peoples Services,Education,Transport,230008,Contract Hire,10-Apr-17,3268227-SA072,736,S & A TAXIS.
Regeneration and Local Services,Technical Services,Supplies and Services,304221,Equipment and Materials,10-Apr-17,3268242-73285,"1,471.43",SIMMONSIGNS LTD.
Adult and Health Services,Planning & Service Strategy,Supplies and Services,338089,Services,10-Apr-17,3268278-52326,"4,000.00",THE INSTITUTE OF LICENSING (EVENTS) LTD.
Children and Young Peoples Services,Childrens Services,Construction Work,908105,Construction work,10-Apr-17,3268310-43249,"20,057.28",WILLOWCRETE MANUFACTURING COMPANY LTD (MFG).
Regeneration and Local Services,Technical Services,Supplies and Services,304221,Equipment and Materials,10-Apr-17,3268310-43253,768,WILLOWCRETE MANUFACTURING COMPANY LTD (MFG).
Regeneration and Local Services,Direct Services,Transport,210057,Repair and Maintenance of Vehicles,10-Apr-17,3267980-3286,869.15,AGRIMEC.
Regeneration and Local Services,Direct Services,Third Party Payments,430100,Rendered by Private Contractors,10-Apr-17,3267998-1667,"2,450.00",AWR ROOFING & ALUMIN RAINWATER SYSTEMS LTD.
Children and Young Peoples Services,Education,Transport,230007,Contract Hire,10-Apr-17,3268049-7460,"24,320.50",DURHAM CITY COACHES.
Children and Young Peoples Services,Education,Transport,230007,Contract Hire,10-Apr-17,3268087-3771,"1,311.00",GEM TRAVEL.
Children and Young Peoples Services,Education,Transport,230003,Contract Hire,10-Apr-17,3268087-3772,"2,260.21",GEM TRAVEL.
Children and Young Peoples Services,Education,Transport,230003,Contract Hire,10-Apr-17,3268087-3773,"1,610.00",GEM TRAVEL.
Resources,Corporate Finance,Supplies and Services,338221,Services,10-Apr-17,3268097-2234,"1,204.24",HEALTH ASSURED LTD.
Dedicated Schools Grant,Dedicated Schools Grant,Supplies and Services,304259,Equipment and Materials,10-Apr-17,3268139-7148,"2,180.00",LYNCH HEALTHCARE LTD.
Adult and Health Services,Head of Adults,Transport,230005,Contract Hire,10-Apr-17,3268201-0521,"1,012.00",PETER`S PRIVATE HIRE/PETER BEST.
Children and Young Peoples Services,Education,Transport,230008,Contract Hire,10-Apr-17,3268215-1725,"1,960.00",RAPID MINIBUSES.
Children and Young Peoples Services,Education,Transport,230008,Contract Hire,10-Apr-17,3268215-1727,"1,951.09",RAPID MINIBUSES.
Children and Young Peoples Services,Education,Transport,230009,Contract Hire,10-Apr-17,3268215-1730,"1,334.00",RAPID MINIBUSES.
Children and Young Peoples Services,Education,Transport,230008,Contract Hire,10-Apr-17,3268217-3076,828,RICHIES TAXIS.
Children and Young Peoples Services,Education,Transport,230008,Contract Hire,10-Apr-17,3268217-3077,"1,702.00",RICHIES TAXIS.
Regeneration and Local Services,Technical Services,Third Party Payments,430100,Rendered by Private Contractors,10-Apr-17,3268235-1154,"1,710.00",SCHMUCK WHORLTON LTD.
Children and Young Peoples Services,Education,Transport,230008,Contract Hire,10-Apr-17,3268245-385A,"1,265.00",SJ MACKENZIE T/A SCOTTS TAXIS.
Children and Young Peoples Services,Education,Transport,230008,Contract Hire,10-Apr-17,3268245-386A,"1,610.00",SJ MACKENZIE T/A SCOTTS TAXIS.
Adult and Health Services,Head of Adults,Transport,230005,Contract Hire,10-Apr-17,3268245-387A,835,SJ MACKENZIE T/A SCOTTS TAXIS.
Children and Young Peoples Services,Education,Transport,230012,Contract Hire,10-Apr-17,3268245-389A,"1,495.00",SJ MACKENZIE T/A SCOTTS TAXIS.
Children and Young Peoples Services,Education,Transport,230008,Contract Hire,10-Apr-17,3268245-390A,"1,282.50",SJ MACKENZIE T/A SCOTTS TAXIS.
Adult and Health Services,EnvironmentHealth & Consumer Protection,Supplies and Services,338027,Services,10-Apr-17,3268256-1031,"2,600.00",STM ENVIRONMENTAL LTD.
Adult and Health Services,EnvironmentHealth & Consumer Protection,Supplies and Services,338027,Services,10-Apr-17,3268256-1032,850,STM ENVIRONMENTAL LTD.
Children and Young Peoples Services,Education,Transport,230008,Contract Hire,10-Apr-17,3268268-1406,"1,973.00",TALBOTS TAXIS.
Adult and Health Services,Head of Adults,Transport,230005,Contract Hire,10-Apr-17,3268269-B871,"1,661.06",TALBOTS TRAVEL LTD.
Children and Young Peoples Services,Education,Transport,230008,Contract Hire,10-Apr-17,3268269-B873,"1,610.00",TALBOTS TRAVEL LTD.
Children and Young Peoples Services,Education,Transport,230008,Contract Hire,10-Apr-17,3268269-B875,"1,224.30",TALBOTS TRAVEL LTD.
Regeneration and Local Services,Direct Services,Supplies and Services,304999,Equipment and Materials,10-Apr-17,3268274-1695,"1,035.00",TEESDALE COMMUNICATION & SECURITY.
Regeneration and Local Services,Culture & Sport,Supplies and Services,338047,Services,10-Apr-17,3268316-1572,"1,600.00",ZION ARTS CENTRE LTD T/A Z-ARTS.
Adult and Health Services,Head of Adults,Transport,230005,Contract Hire,10-Apr-17,3268126-109,"1,487.50",KEN CHAMBERS T/A SHILDON TRANSPORT LTD.
Children and Young Peoples Services,Education,Transport,230007,Contract Hire,10-Apr-17,3268155-897,"1,771.00",MR AD HOWARD T/A TOFT HILL TAXIS.
Children and Young Peoples Services,Education,Transport,230008,Contract Hire,10-Apr-17,3268162-26B,"1,541.00",MR RAYMOND RENWICK.
Children and Young Peoples Services,Education,Transport,230008,Contract Hire,10-Apr-17,3268162-27A,"1,944.00",MR RAYMOND RENWICK.
Children and Young Peoples Services,Education,Transport,230008,Contract Hire,10-Apr-17,3268166-029,"1,380.00",NEIL PASSMOOR T/A NEIL`S TAXI.
Children and Young Peoples Services,Education,Transport,230007,Contract Hire,10-Apr-17,3268219-913,874,ROAD RUNNERS (NE) LTD.
Children and Young Peoples Services,Education,Transport,230008,Contract Hire,10-Apr-17,3268219-914,"1,380.00",ROAD RUNNERS (NE) LTD.
Children and Young Peoples Services,Education,Transport,230008,Contract Hire,10-Apr-17,3268219-916,"1,702.00",ROAD RUNNERS (NE) LTD.
Children and Young Peoples Services,Education,Transport,230006,Contract Hire,10-Apr-17,3268219-920,"1,242.00",ROAD RUNNERS (NE) LTD.
Children and Young Peoples Services,Education,Transport,230008,Contract Hire,10-Apr-17,3268219-923,"1,564.00",ROAD RUNNERS (NE) LTD.
Children and Young Peoples Services,Education,Transport,230012,Contract Hire,10-Apr-17,3268219-924,"1,725.00",ROAD RUNNERS (NE) LTD.
Adult and Health Services,Head of Adults,Transport,230005,Contract Hire,10-Apr-17,3268219-925,"1,472.00",ROAD RUNNERS (NE) LTD.
Adult and Health Services,Head of Adults,Transport,230005,Contract Hire,10-Apr-17,3268219-926,"1,380.00",ROAD RUNNERS (NE) LTD.
Children and Young Peoples Services,Education,Transport,230008,Contract Hire,10-Apr-17,3268219-928,"1,725.00",ROAD RUNNERS (NE) LTD.
Children and Young Peoples Services,Education,Transport,230008,Contract Hire,10-Apr-17,3268219-929,"1,792.50",ROAD RUNNERS (NE) LTD.
Adult and Health Services,Head of Adults,Transport,230005,Contract Hire,10-Apr-17,3268219-930,720,ROAD RUNNERS (NE) LTD.
Children and Young Peoples Services,Education,Transport,230008,Contract Hire,10-Apr-17,3268219-936,"1,564.00",ROAD RUNNERS (NE) LTD.
Children and Young Peoples Services,Education,Transport,230006,Contract Hire,10-Apr-17,3268234-100,"1,132.00",SAZ CABS.
Regeneration and Local Services,Culture & Sport,Employees,80030,Agency Staff,10-Apr-17,3268254-438,600,STEVE SKIDMORE.
Adult and Health Services,Head of Adults,Transport,230005,Contract Hire,10-Apr-17,3268281-178,760,THE TAXI COMPANY (MURTON) LTD.
Adult and Health Services,Head of Adults,Transport,230005,Contract Hire,10-Apr-17,3268071-53,808,EXTREME TAXI`S.
Children and Young Peoples Services,Education,Transport,230008,Contract Hire,10-Apr-17,3268166-29,"1,955.00",NEIL PASSMOOR T/A NEIL`S TAXI.
Transformation and Partnerships,Partnerships & Community Engagement Div.,Cap Exp on Grants & Other Financial Assistance (REFCUS),918004,Contributions to other bodies,11-Apr-17,3268349-VOUCHER16NB-STAN038,"5,000.00",CLAVERING BOYS CLUB.
Children and Young Peoples Services,Education,Construction Work,908105,Construction work,11-Apr-17,3268455-NEI-EXP-04-2017-020,"4,059.36",NORTHERN POWERGRID (NORTHEAST) LTD.
Transformation and Partnerships,Partnerships & Community Engagement Div.,Cap Exp on Grants & Other Financial Assistance (REFCUS),918004,Contributions to other bodies,11-Apr-17,3268527-VOUCHER16NB-EDUR090,"10,000.00",THE CLARKE LISTER FEEL GOOD CENTRE.
Children and Young Peoples Services,Education,Transport,230009,Contract Hire,11-Apr-17,3268466-DCC/7271/03/2017,"1,407.50",PB PRIVATE HIRE.
Regeneration and Local Services,Economic Development and Housing,Cap Exp on Grants & Other Financial Assistance (REFCUS),918401,Capital grants,11-Apr-17,3268397-RED-04-2017-053,"3,209.00",HES GROUP UK LTD.
Regeneration and Local Services,Spatial Policy Planning Assets & Environment,Supplies and Services,384700,Miscellaneous Expenses,11-Apr-17,3268443-RED-04-2017-044,540,REDACTED - PAYMENT TO INDIVIDUAL
Dedicated Schools Grant,Dedicated Schools Grant,Third Party Payments,410037,Rendered by Other Local Authorities,11-Apr-17,3268463-CAS-04-2017-052,639,REDACTED - PAYMENT TO INDIVIDUAL
Regeneration and Local Services,Economic Development and Housing,Cap Exp on Grants & Other Financial Assistance (REFCUS),918401,Capital grants,11-Apr-17,3268467-RED-04-2017-054,"2,523.00",PEART ACCESS RAMPS.
Regeneration and Local Services,Economic Development and Housing,Cap Exp on Grants & Other Financial Assistance (REFCUS),918401,Capital grants,11-Apr-17,3268480-RED-04-2017-055,"8,252.00",R TINDALE (BUILDER) LTD.
Children and Young Peoples Services,Education,Transport,230008,Contract Hire,11-Apr-17,3268492-W052/07-31/3/17,"2,185.00",S & S TRAVEL LTD.
Adult and Health Services,Head of Adults,Transfer Payments,515201,Social Services Clients,11-Apr-17,3268493-CAS-04-2017-050,"1,056.00",REDACTED - PAYMENT TO INDIVIDUAL
Regeneration and Local Services,Economic Development and Housing,Cap Exp on Grants & Other Financial Assistance (REFCUS),918401,Capital grants,11-Apr-17,3268522-RED-04-2017-048,"4,698.30",SUNTER LTD.
Regeneration and Local Services,Economic Development and Housing,Cap Exp on Grants & Other Financial Assistance (REFCUS),918401,Capital grants,11-Apr-17,3268522-RED-04-2017-049,"3,455.19",SUNTER LTD.
Regeneration and Local Services,Economic Development and Housing,Cap Exp on Grants & Other Financial Assistance (REFCUS),918401,Capital grants,11-Apr-17,3268522-RED-04-2017-050,"2,755.33",SUNTER LTD.
Regeneration and Local Services,Economic Development and Housing,Cap Exp on Grants & Other Financial Assistance (REFCUS),918401,Capital grants,11-Apr-17,3268522-RED-04-2017-051,"2,879.28",SUNTER LTD.
Regeneration and Local Services,Economic Development and Housing,Cap Exp on Grants & Other Financial Assistance (REFCUS),918401,Capital grants,11-Apr-17,3268522-RED-04-2017-057,"2,684.93",SUNTER LTD.
Regeneration and Local Services,Economic Development and Housing,Cap Exp on Grants & Other Financial Assistance (REFCUS),918401,Capital grants,11-Apr-17,3268522-RED-04-2017-058,"3,130.69",SUNTER LTD.
Regeneration and Local Services,Economic Development and Housing,Cap Exp on Grants & Other Financial Assistance (REFCUS),918401,Capital grants,11-Apr-17,3268522-RED-04-2017-059,"2,609.59",SUNTER LTD.
Regeneration and Local Services,Economic Development and Housing,Cap Exp on Grants & Other Financial Assistance (REFCUS),918401,Capital grants,11-Apr-17,3268529-RED-04-2017-047,"2,105.00",THYSSENKRUPP ENCASA A DIVISION OF THYSSENKRUPP ACCESS LTD.
Regeneration and Local Services,Economic Development and Housing,Cap Exp on Grants & Other Financial Assistance (REFCUS),918401,Capital grants,11-Apr-17,3268529-RED-04-2017-052,"1,524.78",THYSSENKRUPP ENCASA A DIVISION OF THYSSENKRUPP ACCESS LTD.
Adult and Health Services,Head of Adults,Transport,230005,Contract Hire,11-Apr-17,3268513-24174-31/3/17,"1,377.70",STANLEY TRAVEL (NORTH EAST) LTD.
Adult and Health Services,Head of Adults,Transport,230005,Contract Hire,11-Apr-17,3268513-24175-31/3/17,770.5,STANLEY TRAVEL (NORTH EAST) LTD.
Children and Young Peoples Services,Education,Transport,230007,Contract Hire,11-Apr-17,3268505-1202-31/3/17,856,SODA TAXIS.
Adult and Health Services,Head of Adults,Transport,230005,Contract Hire,11-Apr-17,3268516-0018-31/3/17,684,STEPHEN VALLANCE T/A SELECT CABS.
Dedicated Schools Grant,Dedicated Schools Grant,Supplies and Services,384302,Miscellaneous Expenses,11-Apr-17,3268372-0000040187,"5,000.00",EAST DURHAM COLLEGE.
Regeneration and Local Services,Technical Services,Third Party Payments,430100,Rendered by Private Contractors,11-Apr-17,3268438-IN00361762,"30,156.00",MOTT MACDONALD LTD.
Regeneration and Local Services,Culture & Sport,Supplies and Services,338047,Services,11-Apr-17,3268454-INV0007054,"1,444.09",NORTHERN BALLET THEATRE LTD.
Regeneration and Local Services,Direct Services,Supplies and Services,304221,Equipment and Materials,11-Apr-17,3268342-851700309,"1,133.76",CARLISLE CONSTRUCTION MATERIALS LTD.
Regeneration and Local Services,Direct Services,Supplies and Services,304221,Equipment and Materials,11-Apr-17,3268342-851700343,"4,132.80",CARLISLE CONSTRUCTION MATERIALS LTD.
Children and Young Peoples Services,Childrens Services,Transport,230005,Contract Hire,11-Apr-17,3268350-CLUB1709C,595,CLUBMAN CABS.
Children and Young Peoples Services,Childrens Services,Transport,230005,Contract Hire,11-Apr-17,3268350-CLUB1709I,570,CLUBMAN CABS.
Children and Young Peoples Services,Childrens Services,Transport,230005,Contract Hire,11-Apr-17,3268350-CLUB1710B,590,CLUBMAN CABS.
Children and Young Peoples Services,Childrens Services,Transport,230005,Contract Hire,11-Apr-17,3268350-CLUB1710G,570,CLUBMAN CABS.
Children and Young Peoples Services,Childrens Services,Transport,230005,Contract Hire,11-Apr-17,3268350-CLUB1711G,535,CLUBMAN CABS.
Children and Young Peoples Services,Childrens Services,Transport,230005,Contract Hire,11-Apr-17,3268350-CLUB1712G,555,CLUBMAN CABS.
Children and Young Peoples Services,Education,Transport,230006,Contract Hire,11-Apr-17,3268400-IR1703004,"1,380.00",I & R EXECUTIVE TRAVEL.
Regeneration and Local Services,Transport and Contracted Services,Construction Work,908203,Capital - Public Utilities - Water Services,11-Apr-17,3268458-913974773,"706,398.56",NORTHUMBRIAN WATER LTD.
Regeneration and Local Services,Technical Services,Supplies and Services,304221,Equipment and Materials,11-Apr-17,3268323-24585183,646.78,AGGREGATE INDUSTRIES UK LTD.
Regeneration and Local Services,Technical Services,Supplies and Services,304221,Equipment and Materials,11-Apr-17,3268323-24585185,890.37,AGGREGATE INDUSTRIES UK LTD.
Children and Young Peoples Services,Childrens Services,Supplies and Services,342053,Computers and Communications,11-Apr-17,3268329-INV22042,550,BCS LEARNING & DEVELOPMENT LTD (THE BRITISH COMPUTER SOCIETY).
Regeneration and Local Services,Direct Services,Third Party Payments,430101,Rendered by Private Contractors,11-Apr-17,3268368-IV869939,786.1,DIRECT TYRE MANAGEMENT (DTM).
Regeneration and Local Services,Direct Services,Third Party Payments,430101,Rendered by Private Contractors,11-Apr-17,3268368-IV869946,"1,657.46",DIRECT TYRE MANAGEMENT (DTM).
Regeneration and Local Services,Culture & Sport,Supplies and Services,338047,Services,11-Apr-17,3268398-HBBATH64,700,HILARITY BITES COMEDY CLUB.
Resources,Financial Services,Supplies and Services,384199,Miscellaneous Expenses,11-Apr-17,3268456-91384345,"1,774.00",NORTHGATE PUBLIC SERVICES (UK) LTD.
Regeneration and Local Services,Economic Development and Housing,Premises,120009,Energy Costs,11-Apr-17,3268459-NNO7X5L3,"1,814.53",NPOWER.
Regeneration and Local Services,Direct Services,Transport,230005,Contract Hire,11-Apr-17,3268486-IV265942,"5,290.00",RIVERSIDE TRUCK RENTAL LTD (RTR).
Regeneration and Local Services,Direct Services,Transport,230005,Contract Hire,11-Apr-17,3268486-IV265944,"5,290.00",RIVERSIDE TRUCK RENTAL LTD (RTR).
Regeneration and Local Services,Direct Services,Transport,230005,Contract Hire,11-Apr-17,3268486-IV266147,"3,565.00",RIVERSIDE TRUCK RENTAL LTD (RTR).
Regeneration and Local Services,Direct Services,Transport,230005,Contract Hire,11-Apr-17,3268496-10797722,930,SHB HIRE LTD.
Regeneration and Local Services,Direct Services,Transport,230005,Contract Hire,11-Apr-17,3268496-10797723,"1,240.00",SHB HIRE LTD.
Regeneration and Local Services,Direct Services,Transport,230005,Contract Hire,11-Apr-17,3268496-10797724,"1,240.00",SHB HIRE LTD.
Regeneration and Local Services,Direct Services,Transport,230005,Contract Hire,11-Apr-17,3268496-10797725,"1,230.00",SHB HIRE LTD.
Regeneration and Local Services,Direct Services,Transport,230005,Contract Hire,11-Apr-17,3268496-10797726,"2,671.00",SHB HIRE LTD.
Children and Young Peoples Services,Education,Transport,230008,Contract Hire,11-Apr-17,3268505-A098-146,"1,265.00",SODA TAXIS.
Children and Young Peoples Services,Education,Transport,230008,Contract Hire,11-Apr-17,3268505-M040-125,"1,181.00",SODA TAXIS.
Children and Young Peoples Services,Education,Transport,230008,Contract Hire,11-Apr-17,3268505-N080-006,966,SODA TAXIS.
Regeneration and Local Services,Direct Services,Third Party Payments,430100,Rendered by Private Contractors,11-Apr-17,3268537-INV-0205,672,UK VENTILATION LTD.
Adult and Health Services,Public Health,Third Party Payments,460803,Contract Payments,11-Apr-17,3268541-SINV7341,"4,166.08",VOLUNTEERING MATTERS.
Regeneration and Local Services,Direct Services,Supplies and Services,304259,Equipment and Materials,11-Apr-17,3268374-7010656,537.3,EAST RIDING HORTICULTURE LTD.
Regeneration and Local Services,Direct Services,Supplies and Services,304259,Equipment and Materials,11-Apr-17,3268374-7021138,"3,021.40",EAST RIDING HORTICULTURE LTD.
Regeneration and Local Services,Direct Services,Premises,108125,Service Repairs and Maintenance,11-Apr-17,3268374-7021333,"1,890.00",EAST RIDING HORTICULTURE LTD.
Resources,Legal & Democratic Services,Supplies and Services,338025,Services,11-Apr-17,3268386-SI76317,530,REDACTED - PAYMENT TO INDIVIDUAL
Children and Young Peoples Services,Childrens Services,Supplies and Services,338026,Services,11-Apr-17,3268406-19/3/17,581.65,JEANETTE CALLAGHAN.
Children and Young Peoples Services,Education,Transport,230008,Contract Hire,11-Apr-17,3268408-2017/01,"1,276.80",JM HUMBLE COACH HIRE.
Regeneration and Local Services,Direct Services,Transport,230005,Contract Hire,11-Apr-17,3268421-4416597,812.5,LEEDS COMMERCIAL LTD.
Children and Young Peoples Services,Education,Transport,230003,Contract Hire,11-Apr-17,3268492-3208/07,"2,047.00",S & S TRAVEL LTD.
Children and Young Peoples Services,Education,Transport,230008,Contract Hire,11-Apr-17,3268492-S017/07,"1,932.00",S & S TRAVEL LTD.
Children and Young Peoples Services,Education,Transport,230008,Contract Hire,11-Apr-17,3268492-W048/07,"2,047.00",S & S TRAVEL LTD.
Children and Young Peoples Services,Education,Transport,230008,Contract Hire,11-Apr-17,3268492-W056/07,"2,898.00",S & S TRAVEL LTD.
Children and Young Peoples Services,Education,Transport,230008,Contract Hire,11-Apr-17,3268492-W067/18,"2,743.50",S & S TRAVEL LTD.
Children and Young Peoples Services,Education,Transport,230008,Contract Hire,11-Apr-17,3268492-W085/18,"2,185.00",S & S TRAVEL LTD.
Children and Young Peoples Services,Education,Transport,230008,Contract Hire,11-Apr-17,3268510-DR19421,"1,610.00",SPENNYMOOR TAXIS.
Resources,I.C.T. Services,Supplies and Services,342051,Computers and Communications,11-Apr-17,3268547-2017286,"38,667.89",XPRESS SOFTWARE SOLUTIONS LTD.
Children and Young Peoples Services,Childrens Services,Third Party Payments,440023,Other Third Party Payments,11-Apr-17,3268646-1179788,889,REDACTED - PAYMENT TO INDIVIDUAL
Children and Young Peoples Services,Childrens Services,Third Party Payments,440027,Other Third Party Payments,11-Apr-17,3268677-1179474,706.23,REDACTED - PAYMENT TO INDIVIDUAL
Children and Young Peoples Services,Childrens Services,Third Party Payments,440028,Other Third Party Payments,11-Apr-17,3268851-1181206,941.64,REDACTED - PAYMENT TO INDIVIDUAL
Children and Young Peoples Services,Childrens Services,Third Party Payments,440027,Other Third Party Payments,11-Apr-17,3269077-1179661,538.08,REDACTED - PAYMENT TO INDIVIDUAL
Children and Young Peoples Services,Childrens Services,Third Party Payments,440005,Other Third Party Payments,11-Apr-17,3269140-1181149,680.99,REDACTED - PAYMENT TO INDIVIDUAL
Children and Young Peoples Services,Childrens Services,Third Party Payments,440005,Other Third Party Payments,11-Apr-17,3269183-1181147,"1,278.24",REDACTED - PAYMENT TO INDIVIDUAL
Children and Young Peoples Services,Childrens Services,Third Party Payments,440005,Other Third Party Payments,11-Apr-17,3269183-1181148,"1,368.24",REDACTED - PAYMENT TO INDIVIDUAL
Children and Young Peoples Services,Childrens Services,Transport,230005,Contract Hire,11-Apr-17,3268322-L10/ZJ,"1,580.00",AABAT TAXIS.
Regeneration and Local Services,Direct Services,Transport,230005,Contract Hire,11-Apr-17,3268362-672352,506,DAWSONRENTALS VANS LTD.*
Regeneration and Local Services,Direct Services,Transport,230005,Contract Hire,11-Apr-17,3268379-079173,855,FIVEWAYS MUNICIPAL VEHICLE HIRE LTD.
Regeneration and Local Services,Direct Services,Transport,230005,Contract Hire,11-Apr-17,3268379-079220,855,FIVEWAYS MUNICIPAL VEHICLE HIRE LTD.
Children and Young Peoples Services,Education,Transport,230008,Contract Hire,11-Apr-17,3268383-100211,"1,932.00",G & P JOHNSON LTD T/A NIGHTINGALE COACHES.
Dedicated Schools Grant,Dedicated Schools Grant,Transport,230010,Contract Hire,11-Apr-17,3268383-100233,650,G & P JOHNSON LTD T/A NIGHTINGALE COACHES.
Dedicated Schools Grant,Dedicated Schools Grant,Transport,230008,Contract Hire,11-Apr-17,3268383-100234,570,G & P JOHNSON LTD T/A NIGHTINGALE COACHES.
Regeneration and Local Services,Direct Services,Stock,926004,Stock,11-Apr-17,3268390-136351,611.46,GREENLAY (GRASS MACHINERY) LTD.
Children and Young Peoples Services,Childrens Services,Transport,235073,Public Transport,11-Apr-17,3268399-100037,"1,158.00",HORNDALE TAXIS LTD.
Adult and Health Services,Planning & Service Strategy,Supplies and Services,384956,Miscellaneous Expenses,11-Apr-17,3268419-125656,"2,512.50",LEARNING NEXUS LTD.
Regeneration and Local Services,Direct Services,Third Party Payments,430100,Rendered by Private Contractors,11-Apr-17,3268426-135816,"1,820.43",LONDONDERRY GARAGE (S.E) LTD.
Regeneration and Local Services,Direct Services,Transport,215005,Running Costs of Vehicles,11-Apr-17,3268462-234685,"16,683.35",OIL NRG LTD.
Adult and Health Services,Head of Adults,Transport,230005,Contract Hire,11-Apr-17,3268491-CLS060,"1,133.00",ROUTE 1.
Regeneration and Local Services,Direct Services,Premises,108099,Service Repairs and Maintenance,11-Apr-17,3268495-7/2017,510,SE LANDSCAPING & GARDEN SERVICES.
Regeneration and Local Services,Direct Services,Third Party Payments,430100,Rendered by Private Contractors,11-Apr-17,3268495-8/2017,"3,430.00",SE LANDSCAPING & GARDEN SERVICES.
Regeneration and Local Services,Culture & Sport,Supplies and Services,384199,Miscellaneous Expenses,11-Apr-17,3268498-133141,"5,487.79",SHOWSEC INTERNATIONAL LTD.
Children and Young Peoples Services,Education,Transport,230008,Contract Hire,11-Apr-17,3268510-CB4921,"1,196.00",SPENNYMOOR TAXIS.
Regeneration and Local Services,Technical Services,Supplies and Services,304221,Equipment and Materials,11-Apr-17,3268536-171445,"1,030.98",TYNEDALE ROADSTONE LTD.
Children and Young Peoples Services,Childrens Services,Supplies and Services,384491,Miscellaneous Expenses,11-Apr-17,3268544-201747,600,WHEATLEY HILL COMMUNITY NURSERY LTD.
Children and Young Peoples Services,Education,Transport,230006,Contract Hire,11-Apr-17,3268317-31716,534,24/7 TAXI SERVICES LTD.
Children and Young Peoples Services,Childrens Services,Transport,230005,Contract Hire,11-Apr-17,3268322-L7/ZB,780,AABAT TAXIS.
Dedicated Schools Grant,Dedicated Schools Grant,Third Party Payments,425005,Rendered by Voluntary Organisations,11-Apr-17,3268347-16335,"3,998.75",CHORISTER SCHOOL.
Regeneration and Local Services,Culture & Sport,Supplies and Services,338047,Services,11-Apr-17,3268392-AS005,650,HANNAH GOUDIE T/A KITCHEN ZOO.
Children and Young Peoples Services,Education,Transport,230008,Contract Hire,11-Apr-17,3268394-HT264,"1,890.00",HARRY`S TAXI`S.
Children and Young Peoples Services,Education,Transport,230006,Contract Hire,11-Apr-17,3268415-00769,805,KENNAS CABS.
Children and Young Peoples Services,Education,Transport,230008,Contract Hire,11-Apr-17,3268415-00770,"1,081.00",KENNAS CABS.
Children and Young Peoples Services,Education,Transport,230007,Contract Hire,11-Apr-17,3268435-00890,"1,840.00",MICHAELS TRAVEL.
Children and Young Peoples Services,Education,Transport,230010,Contract Hire,11-Apr-17,3268442-00005,"1,460.00",MR RICHARD STANDLEY T/A RS TAXI SERVICES.
Regeneration and Local Services,Technical Services,Supplies and Services,384194,Miscellaneous Expenses,11-Apr-17,3268450-79824,"1,915.00",NIRAMAX GROUP LTD.
Children and Young Peoples Services,Education,Transport,230008,Contract Hire,11-Apr-17,3268513-24169,"1,725.00",STANLEY TRAVEL (NORTH EAST) LTD.
Children and Young Peoples Services,Education,Transport,230007,Contract Hire,11-Apr-17,3268513-24172,586.5,STANLEY TRAVEL (NORTH EAST) LTD.
Adult and Health Services,Head of Adults,Transport,230005,Contract Hire,11-Apr-17,3268513-24176,"1,198.30",STANLEY TRAVEL (NORTH EAST) LTD.
Dedicated Schools Grant,Dedicated Schools Grant,Transport,230010,Contract Hire,11-Apr-17,3268534-26008,"1,176.00",TRAVEL 6.
Children and Young Peoples Services,Childrens Services,Supplies and Services,338099,Services,11-Apr-17,3268546-31843,641.5,WRIXON SECURITY SERVICES LTD T/A WRIXON CARE.
Children and Young Peoples Services,Education,Transport,230012,Contract Hire,11-Apr-17,3268324-28MO,"1,012.00",AJ ADAMSON (TONY`S TAXIS).
Adult and Health Services,Head of Adults,Third Party Payments,472101,Purchase of Care,11-Apr-17,3268363-3277,"1,972.50",DCS & D LTD T/A HERITAGE HEALTHCARE.
Adult and Health Services,Head of Adults,Third Party Payments,472101,Purchase of Care,11-Apr-17,3268363-3278,664.08,DCS & D LTD T/A HERITAGE HEALTHCARE.
Adult and Health Services,Head of Adults,Third Party Payments,472101,Purchase of Care,11-Apr-17,3268363-3279,664.08,DCS & D LTD T/A HERITAGE HEALTHCARE.
Children and Young Peoples Services,Education,Transport,230008,Contract Hire,11-Apr-17,3268377-0715,"1,848.74",EN ROUTE TRAVEL.
Children and Young Peoples Services,Education,Transport,230007,Contract Hire,11-Apr-17,3268423-3586,"1,138.50",LINCAB TAXIS.
Children and Young Peoples Services,Childrens Services,Transport,230005,Contract Hire,11-Apr-17,3268425-3188,"1,650.00",LOCAL TRANSPORT LTD.
Children and Young Peoples Services,Childrens Services,Transport,230005,Contract Hire,11-Apr-17,3268425-3202,"1,692.00",LOCAL TRANSPORT LTD.
Children and Young Peoples Services,Childrens Services,Transport,230005,Contract Hire,11-Apr-17,3268425-3213,"2,460.00",LOCAL TRANSPORT LTD.
Children and Young Peoples Services,Education,Transport,230008,Contract Hire,11-Apr-17,3268469-0526,945,PETER`S PRIVATE HIRE/PETER BEST.
Children and Young Peoples Services,Education,Transport,230008,Contract Hire,11-Apr-17,3268481-1726,"1,725.00",RAPID MINIBUSES.
Children and Young Peoples Services,Education,Transport,230008,Contract Hire,11-Apr-17,3268481-1728,894.3,RAPID MINIBUSES.
Children and Young Peoples Services,Education,Transport,230008,Contract Hire,11-Apr-17,3268490-0039,"1,955.00",RONS TAXI (CHESTER LE ST).
Children and Young Peoples Services,Education,Transport,230008,Contract Hire,11-Apr-17,3268503-393A,"1,440.00",SJ MACKENZIE T/A SCOTTS TAXIS.
Children and Young Peoples Services,Education,Transport,230008,Contract Hire,11-Apr-17,3268503-394A,"2,835.00",SJ MACKENZIE T/A SCOTTS TAXIS.
Children and Young Peoples Services,Education,Transport,230008,Contract Hire,11-Apr-17,3268503-396A,"2,240.00",SJ MACKENZIE T/A SCOTTS TAXIS.
Children and Young Peoples Services,Education,Transport,230007,Contract Hire,11-Apr-17,3268515-5234,"1,564.00",STEPHEN MAUDE LTD T/A MAUDES COACHES.
Children and Young Peoples Services,Education,Transport,230007,Contract Hire,11-Apr-17,3268515-5235,"1,564.00",STEPHEN MAUDE LTD T/A MAUDES COACHES.
Adult and Health Services,Head of Adults,Third Party Payments,472101,Purchase of Care,11-Apr-17,3268523-9725,"2,130.30",SUPPORTIVE SRC LTD.
Children and Young Peoples Services,Education,Transport,230007,Contract Hire,11-Apr-17,3268530-3345,"2,714.00",TM TRAVEL.
Children and Young Peoples Services,Education,Transport,230007,Contract Hire,11-Apr-17,3268530-3346,"2,714.00",TM TRAVEL.
Children and Young Peoples Services,Childrens Services,Supplies and Services,364352,Grants to Voluntary Organisations,11-Apr-17,3268381-283,"11,440.00",FOREVER CARE.
Children and Young Peoples Services,Childrens Services,Supplies and Services,364352,Grants to Voluntary Organisations,11-Apr-17,3268381-285,"12,960.00",FOREVER CARE.
Adult and Health Services,Head of Adults,Transport,230005,Contract Hire,11-Apr-17,3268391-043,540,GS PEARSON.
Children and Young Peoples Services,Education,Transport,230012,Contract Hire,11-Apr-17,3268474-G81,"1,748.00",PRESTYS HACKNEY & PRIVATE HIRE TAXIS.
Children and Young Peoples Services,Education,Transport,230007,Contract Hire,11-Apr-17,3268482-49A,"1,479.59",RAYNERS COACHES.
Children and Young Peoples Services,Education,Transport,230008,Contract Hire,11-Apr-17,3268487-915,935,ROAD RUNNERS (NE) LTD.
Children and Young Peoples Services,Education,Transport,230008,Contract Hire,11-Apr-17,3268487-917,"3,059.00",ROAD RUNNERS (NE) LTD.
Children and Young Peoples Services,Education,Transport,230006,Contract Hire,11-Apr-17,3268487-919,"2,200.00",ROAD RUNNERS (NE) LTD.
Children and Young Peoples Services,Education,Transport,230008,Contract Hire,11-Apr-17,3268487-921,"1,056.00",ROAD RUNNERS (NE) LTD.
Children and Young Peoples Services,Education,Transport,230008,Contract Hire,11-Apr-17,3268487-922,"2,116.00",ROAD RUNNERS (NE) LTD.
Children and Young Peoples Services,Education,Transport,230008,Contract Hire,11-Apr-17,3268487-927,576,ROAD RUNNERS (NE) LTD.
Children and Young Peoples Services,Education,Transport,230008,Contract Hire,11-Apr-17,3268487-937,"1,313.00",ROAD RUNNERS (NE) LTD.
Children and Young Peoples Services,Education,Transport,230008,Contract Hire,11-Apr-17,3268488-187,"3,020.35",ROBBIE`S PRIVATE HIRE.
Children and Young Peoples Services,Education,Transport,230012,Contract Hire,11-Apr-17,3268502-521,"2,403.50",SIMONS TAXIS.
Children and Young Peoples Services,Education,Transport,230006,Contract Hire,11-Apr-17,3268391-07,750,GS PEARSON.
Regeneration and Local Services,Culture & Sport,Supplies and Services,384199,Miscellaneous Expenses,11-Apr-17,3268434-61,"1,856.01",MICHAEL LONG.
Children and Young Peoples Services,Education,Transport,230008,Contract Hire,11-Apr-17,3268440-1A,885,MR BW YOUNG T/A ESH TAXIS.
Children and Young Peoples Services,Education,Transport,230008,Contract Hire,11-Apr-17,3268514-7,"1,610.00",STEELYS TAXIS.
Transformation and Partnerships,Partnerships & Community Engagement Div.,Cap Exp on Grants & Other Financial Assistance (REFCUS),918004,Contributions to other bodies,12-Apr-17,3269656-VOUCHER16NB-BASH056,"7,776.00",ST PAULS WITTON PARK PCC.
Regeneration and Local Services,Culture & Sport,Supplies and Services,340001,Postages,12-Apr-17,3269543-NEI-HCL-04-2017-01,"1,000.00",NEOPOST CREDIFON.
Children and Young Peoples Services,Education,Supplies and Services,384199,Miscellaneous Expenses,12-Apr-17,306763-GALA-13/16/17MAR17,"1,010.00",PETER WATKINSON.
Regeneration and Local Services,Economic Development and Housing,Cap Exp on Grants & Other Financial Assistance (REFCUS),918401,Capital grants,12-Apr-17,3269354-RED-04-2017-084,"3,320.00",COLLINSON GAS & PLUMBING.
Regeneration and Local Services,Spatial Policy Planning Assets & Environment,Income,720199,Fees and Charges,12-Apr-17,3269363-RED-04-2017-080,800,COUNTY DURHAM HOUSING GROUP LTD.*
Children and Young Peoples Services,Childrens Services,Supplies and Services,364301,Grants to Voluntary Organisations,12-Apr-17,3269446-CAS-04-2017-026,791.96,REDACTED - PAYMENT TO INDIVIDUAL
Regeneration and Local Services,Economic Development and Housing,Cap Exp on Grants & Other Financial Assistance (REFCUS),918401,Capital grants,12-Apr-17,3269449-RED-04-2017-066,"3,438.00",HES GROUP UK LTD.
Regeneration and Local Services,Economic Development and Housing,Cap Exp on Grants & Other Financial Assistance (REFCUS),918401,Capital grants,12-Apr-17,3269449-RED-04-2017-068,"3,585.00",HES GROUP UK LTD.
Regeneration and Local Services,Economic Development and Housing,Cap Exp on Grants & Other Financial Assistance (REFCUS),918401,Capital grants,12-Apr-17,3269449-RED-04-2017-069,"3,639.00",HES GROUP UK LTD.
Regeneration and Local Services,Economic Development and Housing,Cap Exp on Grants & Other Financial Assistance (REFCUS),918401,Capital grants,12-Apr-17,3269449-RED-04-2017-070,"4,299.00",HES GROUP UK LTD.
Regeneration and Local Services,Economic Development and Housing,Cap Exp on Grants & Other Financial Assistance (REFCUS),918401,Capital grants,12-Apr-17,3269449-RED-04-2017-071,"3,903.00",HES GROUP UK LTD.
Regeneration and Local Services,Economic Development and Housing,Cap Exp on Grants & Other Financial Assistance (REFCUS),918401,Capital grants,12-Apr-17,3269449-RED-04-2017-072,"3,903.00",HES GROUP UK LTD.
Regeneration and Local Services,Economic Development and Housing,Cap Exp on Grants & Other Financial Assistance (REFCUS),918401,Capital grants,12-Apr-17,3269449-RED-04-2017-073,"5,961.00",HES GROUP UK LTD.
Regeneration and Local Services,Economic Development and Housing,Cap Exp on Grants & Other Financial Assistance (REFCUS),918401,Capital grants,12-Apr-17,3269449-RED-04-2017-074,"1,435.00",HES GROUP UK LTD.
Regeneration and Local Services,Economic Development and Housing,Cap Exp on Grants & Other Financial Assistance (REFCUS),918401,Capital grants,12-Apr-17,3269488-RED-04-2017-089,"2,559.00",KPM DISABILITY SERVICES.
Regeneration and Local Services,Economic Development and Housing,Cap Exp on Grants & Other Financial Assistance (REFCUS),918401,Capital grants,12-Apr-17,3269532-RED-04-2017-085,"5,750.00",REDACTED - PAYMENT TO INDIVIDUAL
Children and Young Peoples Services,Childrens Services,Third Party Payments,440001,Other Third Party Payments,12-Apr-17,3269550-CAS-04-2017-056,"1,318.00",REDACTED - PAYMENT TO INDIVIDUAL
Regeneration and Local Services,Economic Development and Housing,Cap Exp on Grants & Other Financial Assistance (REFCUS),918401,Capital grants,12-Apr-17,3269576-RED-04-2017-075,"4,847.00",PEART ACCESS RAMPS.
Regeneration and Local Services,Economic Development and Housing,Cap Exp on Grants & Other Financial Assistance (REFCUS),918401,Capital grants,12-Apr-17,3269576-RED-04-2017-076,"1,063.00",PEART ACCESS RAMPS.
Regeneration and Local Services,Economic Development and Housing,Cap Exp on Grants & Other Financial Assistance (REFCUS),918401,Capital grants,12-Apr-17,3269576-RED-04-2017-077,"2,420.00",PEART ACCESS RAMPS.
Regeneration and Local Services,Economic Development and Housing,Cap Exp on Grants & Other Financial Assistance (REFCUS),918401,Capital grants,12-Apr-17,3269576-RED-04-2017-078,"1,780.00",PEART ACCESS RAMPS.
Children and Young Peoples Services,Childrens Services,Supplies and Services,364310,Grants to Voluntary Organisations,12-Apr-17,3269664-CAS-04-2017-064,636.16,REDACTED - PAYMENT TO INDIVIDUAL
Regeneration and Local Services,Economic Development and Housing,Cap Exp on Grants & Other Financial Assistance (REFCUS),918401,Capital grants,12-Apr-17,3269670-RED-04-2017-060,"2,818.38",SUNTER LTD.
Regeneration and Local Services,Economic Development and Housing,Cap Exp on Grants & Other Financial Assistance (REFCUS),918401,Capital grants,12-Apr-17,3269670-RED-04-2017-061,"3,532.73",SUNTER LTD.
Regeneration and Local Services,Economic Development and Housing,Cap Exp on Grants & Other Financial Assistance (REFCUS),918401,Capital grants,12-Apr-17,3269670-RED-04-2017-062,"4,518.43",SUNTER LTD.
Regeneration and Local Services,Economic Development and Housing,Cap Exp on Grants & Other Financial Assistance (REFCUS),918401,Capital grants,12-Apr-17,3269699-RED-04-2017-064,"1,975.00",THYSSENKRUPP ENCASA A DIVISION OF THYSSENKRUPP ACCESS LTD.
Regeneration and Local Services,Economic Development and Housing,Cap Exp on Grants & Other Financial Assistance (REFCUS),918401,Capital grants,12-Apr-17,3269699-RED-04-2017-065,"2,722.00",THYSSENKRUPP ENCASA A DIVISION OF THYSSENKRUPP ACCESS LTD.
Regeneration and Local Services,Economic Development and Housing,Cap Exp on Grants & Other Financial Assistance (REFCUS),918401,Capital grants,12-Apr-17,3269699-RED-04-2017-067,995,THYSSENKRUPP ENCASA A DIVISION OF THYSSENKRUPP ACCESS LTD.
Regeneration and Local Services,Transport and Contracted Services,Third Party Payments,430106,Rendered by Private Contractors,12-Apr-17,3269701-26/2/17-31/3/17,"2,716.45",TONYS TAXIS (A BIRCH).
Regeneration and Local Services,Economic Development and Housing,Cap Exp on Grants & Other Financial Assistance (REFCUS),918401,Capital grants,12-Apr-17,3269702-RED-04-2017-063,"4,093.50",TOTAL HYGIENE LTD.
Children and Young Peoples Services,Childrens Services,Transport,235073,Public Transport,12-Apr-17,3269735-CAS-04-2017-054,998,WRIXON SECURITY SERVICES LTD T/A WRIXON CARE.
Regeneration and Local Services,Direct Services,Transport,210057,Repair and Maintenance of Vehicles,12-Apr-17,3269504-SC12419ERROR,"1,417.52",LONDONDERRY GARAGE (S.E) LTD.
Children and Young Peoples Services,Education,Transport,230008,Contract Hire,12-Apr-17,3269679-DCC/2016/140,"2,140.20",TAYLOR`S TAXIS.
Children and Young Peoples Services,Education,Transport,230008,Contract Hire,12-Apr-17,3269679-DCC/2016/141,"1,824.00",TAYLOR`S TAXIS.
Children and Young Peoples Services,Education,Transport,230008,Contract Hire,12-Apr-17,3269679-DCC/2016/142,"1,817.00",TAYLOR`S TAXIS.
Children and Young Peoples Services,Education,Transport,230008,Contract Hire,12-Apr-17,3269679-DCC/2016/143,"1,794.00",TAYLOR`S TAXIS.
Regeneration and Local Services,Culture & Sport,Supplies and Services,384199,Miscellaneous Expenses,12-Apr-17,3269286-004-10/4/17,880,ANDREW SHUTT.
Dedicated Schools Grant,Dedicated Schools Grant,Transport,230010,Contract Hire,12-Apr-17,3269454-002-31/3/17,"1,791.00",IAN SOULSBY.
Regeneration and Local Services,Culture & Sport,Supplies and Services,338047,Services,12-Apr-17,3269482-KCC17-S-019,750,KESTON COBBLERS CLUB.
Children and Young Peoples Services,Childrens Services,Supplies and Services,338027,Services,12-Apr-17,3269523-0002-8/3/17,"1,200.00",MCL PROFESSIONAL SERVICES LTD.
Children and Young Peoples Services,Education,Transport,230008,Contract Hire,12-Apr-17,3269559-M0007404692,"1,520.00",NORTH TYNESIDE COUNCIL.
Adult and Health Services,Head of Adults,Transport,230005,Contract Hire,12-Apr-17,3269701-537-31/3/17,"2,070.00",TONYS TAXIS (A BIRCH).
Adult and Health Services,Head of Adults,Transport,230005,Contract Hire,12-Apr-17,3269701-540-31/3/17,560,TONYS TAXIS (A BIRCH).
Children and Young Peoples Services,Education,Transport,230007,Contract Hire,12-Apr-17,3269701-541-31/3/17,"1,160.00",TONYS TAXIS (A BIRCH).
Regeneration and Local Services,Culture & Sport,Construction Work,908105,Construction work,12-Apr-17,3269263-1LIFE18656,"24,378.42",1LIFE MANAGEMENT SOLUTIONS LTD.
Resources,Legal & Democratic Services,Supplies and Services,332029,Printing Stationery and Gen Off Exps,12-Apr-17,3269273-PSI0008977,"3,089.40",ADARE INSPIRED COMMUNICATIONS.
Resources,Legal & Democratic Services,Supplies and Services,338057,Services,12-Apr-17,3269279-0000026564,990,ALERE FORENSICS.
Resources,Financial Services,Supplies and Services,342051,Computers and Communications,12-Apr-17,3269349-M/RB040087,"1,272.58",CIVICA UK LTD.
Regeneration and Local Services,Technical Services,Employees,40149,Recruitment Instruction and Training,12-Apr-17,3269392-0000040268,730,EAST DURHAM COLLEGE.
Children and Young Peoples Services,Childrens Services,Supplies and Services,384871,Miscellaneous Expenses,12-Apr-17,3269407-IYW/CW/106,"4,800.00",EVIDENCE BASED PSYCHOLOGY HUB LTD.
Children and Young Peoples Services,Childrens Services,Supplies and Services,312009,Newspapers Books and Periodicals,12-Apr-17,3269407-IYW/CW/107,"1,575.00",EVIDENCE BASED PSYCHOLOGY HUB LTD.
Regeneration and Local Services,Direct Services,Premises,120037,Energy Costs,12-Apr-17,3269418-0000018513,"1,234.10",FOREVER FUELS LTD
Regeneration and Local Services,Technical Services,Supplies and Services,304221,Equipment and Materials,12-Apr-17,3269516-ZJB0043689,"1,490.00",MARSHALLS MONO LTD.
Regeneration and Local Services,Transport and Contracted Services,Third Party Payments,430106,Rendered by Private Contractors,12-Apr-17,3269552-LINK2-0027,"22,176.37",NORTH EAST ACCESSIBLE TRANSPORT LTD (NEAT).
Dedicated Schools Grant,Dedicated Schools Grant,Third Party Payments,440080,Other Third Party Payments,12-Apr-17,3269553-0000032699,"2,001.65",NORTH EAST AUTISM SOCIETY.
Dedicated Schools Grant,Dedicated Schools Grant,Third Party Payments,440080,Other Third Party Payments,12-Apr-17,3269553-0000032700,"2,045.67",NORTH EAST AUTISM SOCIETY.
Dedicated Schools Grant,Dedicated Schools Grant,Third Party Payments,440080,Other Third Party Payments,12-Apr-17,3269553-0000032701,"2,045.67",NORTH EAST AUTISM SOCIETY.
Dedicated Schools Grant,Dedicated Schools Grant,Third Party Payments,440080,Other Third Party Payments,12-Apr-17,3269553-0000032702,"7,179.33",NORTH EAST AUTISM SOCIETY.
Dedicated Schools Grant,Dedicated Schools Grant,Third Party Payments,440080,Other Third Party Payments,12-Apr-17,3269553-0000032703,"7,179.33",NORTH EAST AUTISM SOCIETY.
Dedicated Schools Grant,Dedicated Schools Grant,Third Party Payments,440080,Other Third Party Payments,12-Apr-17,3269553-0000032708,"5,177.33",NORTH EAST AUTISM SOCIETY.
Dedicated Schools Grant,Dedicated Schools Grant,Third Party Payments,440080,Other Third Party Payments,12-Apr-17,3269553-0000032709,"5,177.33",NORTH EAST AUTISM SOCIETY.
Regeneration and Local Services,Projects and Business services,Supplies and Services,340001,Postages,12-Apr-17,3269617-9054082505,"1,768.73",ROYAL MAIL GROUP PLC.
Regeneration and Local Services,Technical Services,Supplies and Services,304221,Equipment and Materials,12-Apr-17,3269678-9035933191,"1,221.88",TARMAC TRADING LTD.
Regeneration and Local Services,Technical Services,Supplies and Services,304221,Equipment and Materials,12-Apr-17,3269678-9035933195,"1,097.26",TARMAC TRADING LTD.
Regeneration and Local Services,Technical Services,Supplies and Services,304221,Equipment and Materials,12-Apr-17,3269678-9035940353,"1,021.86",TARMAC TRADING LTD.
Regeneration and Local Services,Technical Services,Supplies and Services,304221,Equipment and Materials,12-Apr-17,3269678-9035960388,621.23,TARMAC TRADING LTD.
Children and Young Peoples Services,Education,Transport,230007,Contract Hire,12-Apr-17,3269684-4001/BEL3A,"2,875.00",TED WILFORD COACHES.
Regeneration and Local Services,Direct Services,Third Party Payments,430100,Rendered by Private Contractors,12-Apr-17,3269694-0000098332,635.14,THE SEKURA GROUP.
Regeneration and Local Services,Direct Services,Premises,145015,Cleaning and Domestic Supplies,12-Apr-17,3269696-N/IN193536,"4,649.00",THOMAS OWEN & SONS (NEWCASTLE) LTD.
Regeneration and Local Services,Technical Services,Stock,926900,Stock in hand-Inventory system,12-Apr-17,3269696-N/IN193579,519.98,THOMAS OWEN & SONS (NEWCASTLE) LTD.
Regeneration and Local Services,Technical Services,Stock,926900,Stock in hand-Inventory system,12-Apr-17,3269696-N/IN193586,"1,004.44",THOMAS OWEN & SONS (NEWCASTLE) LTD.
Children and Young Peoples Services,Childrens Services,Premises,120021,Energy Costs,12-Apr-17,3269318-952256239,"1,866.70",BRITISH GAS BUSINESS.
Regeneration and Local Services,Culture & Sport,Supplies and Services,324001,Provisions,12-Apr-17,3269328-843513529,"1,150.94",CARLSBERG UK LTD.
Children and Young Peoples Services,Education,Third Party Payments,440999,Other Third Party Payments,12-Apr-17,3269337-2-20/3/17,"6,681.75",CDC ENTERPRISE AGENCY.
Resources,Financial Services,Supplies and Services,332029,Printing Stationery and Gen Off Exps,12-Apr-17,3269340-CFH010635,"63,581.49",CFH TOTAL DOCUMENT MANAGEMENT LTD.
Regeneration and Local Services,Direct Services,Transport,210057,Repair and Maintenance of Vehicles,12-Apr-17,3269426-900027826,"1,626.55",GARDNER DENVER LTD.
Regeneration and Local Services,Technical Services,Stock,926900,Stock in hand-Inventory system,12-Apr-17,3269440-06/637702,661.49,GREENHAM TRADING LTD.
Resources,I.C.T. Services,Supplies and Services,304303,Equipment and Materials,12-Apr-17,3269455-SIN403159,916,INFORMATION & DATA NETWORK SUPPLIES LTD (IDN).
Regeneration and Local Services,Technical Services,Supplies and Services,304221,Equipment and Materials,12-Apr-17,3269479-BI1218336,"1,048.50",JT DOVE LTD.
Regeneration and Local Services,Culture & Sport,Third Party Payments,430100,Rendered by Private Contractors,12-Apr-17,3269496-SI-003283,"223,250.00",LEISUREWORKS.
Regeneration and Local Services,Direct Services,Supplies and Services,304221,Equipment and Materials,12-Apr-17,3269546-432102297,812.16,NEWEY & EYRE LTD.
Resources,Corporate Finance,Employees,50005,Pensions Increases Act payments,12-Apr-17,3269560-410001402,"2,200.00",NORTH YORKSHIRE COUNTY COUNCIL.
Regeneration and Local Services,Direct Services,Transport,210057,Repair and Maintenance of Vehicles,12-Apr-17,3269569-SIP066607,620,OWEN SPRINGS LTD.
Children and Young Peoples Services,Education,Transport,230008,Contract Hire,12-Apr-17,3269713-7-31/3/17,"1,406.40",TW TINKLER T/A TT TAXIS.
Regeneration and Local Services,Technical Services,Employees,80025,Agency Staff,12-Apr-17,3269274-28300787,"4,995.05",AECOM LTD.
Regeneration and Local Services,Technical Services,Supplies and Services,338066,Services,12-Apr-17,3269274-28300805,"32,588.70",AECOM LTD.
Regeneration and Local Services,Technical Services,Supplies and Services,304221,Equipment and Materials,12-Apr-17,3269277-24508397,"1,245.22",AGGREGATE INDUSTRIES UK LTD.
Regeneration and Local Services,Technical Services,Supplies and Services,304221,Equipment and Materials,12-Apr-17,3269277-24508399,681.68,AGGREGATE INDUSTRIES UK LTD.
Regeneration and Local Services,Technical Services,Supplies and Services,304221,Equipment and Materials,12-Apr-17,3269277-24508401,795.51,AGGREGATE INDUSTRIES UK LTD.
Regeneration and Local Services,Technical Services,Supplies and Services,304221,Equipment and Materials,12-Apr-17,3269277-24508404,723.84,AGGREGATE INDUSTRIES UK LTD.
Regeneration and Local Services,Technical Services,Supplies and Services,304221,Equipment and Materials,12-Apr-17,3269277-24521967,"1,173.94",AGGREGATE INDUSTRIES UK LTD.
Regeneration and Local Services,Technical Services,Supplies and Services,304221,Equipment and Materials,12-Apr-17,3269277-24521977,742.1,AGGREGATE INDUSTRIES UK LTD.
Regeneration and Local Services,Technical Services,Supplies and Services,304221,Equipment and Materials,12-Apr-17,3269277-24588115,"1,217.63",AGGREGATE INDUSTRIES UK LTD.
Regeneration and Local Services,Technical Services,Supplies and Services,304221,Equipment and Materials,12-Apr-17,3269277-24588116,972.58,AGGREGATE INDUSTRIES UK LTD.
Regeneration and Local Services,Technical Services,Supplies and Services,304221,Equipment and Materials,12-Apr-17,3269277-24588117,825.13,AGGREGATE INDUSTRIES UK LTD.
Regeneration and Local Services,Technical Services,Supplies and Services,338027,Services,12-Apr-17,3269291-16052096,526.24,ATKINS GLOBAL.
Regeneration and Local Services,Direct Services,Supplies and Services,304259,Equipment and Materials,12-Apr-17,3269298-96601910,"1,783.65",BALL COLEGRAVE LTD.
Regeneration and Local Services,Direct Services,Supplies and Services,304259,Equipment and Materials,12-Apr-17,3269298-96601912,817.52,BALL COLEGRAVE LTD.
Regeneration and Local Services,Direct Services,Transport,210057,Repair and Maintenance of Vehicles,12-Apr-17,3269303-35135440,"1,238.11",BELL TRUCK SALES LTD.
Regeneration and Local Services,Direct Services,Third Party Payments,430101,Rendered by Private Contractors,12-Apr-17,3269377-IV869941,"1,125.45",DIRECT TYRE MANAGEMENT (DTM).
Regeneration and Local Services,Direct Services,Third Party Payments,430101,Rendered by Private Contractors,12-Apr-17,3269377-IV872500,"1,682.97",DIRECT TYRE MANAGEMENT (DTM).
Children and Young Peoples Services,Childrens Services,Supplies and Services,384899,Miscellaneous Expenses,12-Apr-17,3269389-20015963,"20,000.00",DURHAM POLICE & CRIME COMMISSIONER.
Regeneration and Local Services,Direct Services,Supplies and Services,304259,Equipment and Materials,12-Apr-17,3269487-SI205041,"4,827.00",KOMPAN SCOTLAND LTD.
Transformation and Partnerships,Policy & Communications Division,Supplies and Services,312010,Newspapers Books and Periodicals,12-Apr-17,3269540-303526/0,"18,047.81",NATIONAL LEAFLET CO LTD.
Regeneration and Local Services,Direct Services,Third Party Payments,430100,Rendered by Private Contractors,12-Apr-17,3269668-SA105-16,574,STRAY AID LTD.
Regeneration and Local Services,Projects and Business services,Third Party Payments,430112,Rendered by Private Contractors,12-Apr-17,3269669-30620558,"126,255.00",SUEZ RECYCLING & RECOVERY UK LTD.
Regeneration and Local Services,Projects and Business services,Third Party Payments,430111,Rendered by Private Contractors,12-Apr-17,3269669-30620559,"764,316.84",SUEZ RECYCLING & RECOVERY UK LTD.
Children and Young Peoples Services,Education,Transport,230007,Contract Hire,12-Apr-17,3269684-5039/B/7,"5,187.42",TED WILFORD COACHES.
Regeneration and Local Services,Technical Services,Stock,926900,Stock in hand-Inventory system,12-Apr-17,3269734-41464085,596.31,WOLSELEY UK LTD.
Dedicated Schools Grant,Dedicated Schools Grant,Third Party Payments,410037,Rendered by Other Local Authorities,12-Apr-17,3269299-BPSI101,"35,652.97",BARBARA PRIESTMAN ACADEMY.
Dedicated Schools Grant,Dedicated Schools Grant,Third Party Payments,410037,Rendered by Other Local Authorities,12-Apr-17,3269299-BPSI105,"7,344.42",BARBARA PRIESTMAN ACADEMY.
Dedicated Schools Grant,Dedicated Schools Grant,Third Party Payments,410037,Rendered by Other Local Authorities,12-Apr-17,3269299-BPSI106,"2,142.65",BARBARA PRIESTMAN ACADEMY.
Dedicated Schools Grant,Dedicated Schools Grant,Third Party Payments,410037,Rendered by Other Local Authorities,12-Apr-17,3269299-BPSI107,"1,598.95",BARBARA PRIESTMAN ACADEMY.
Dedicated Schools Grant,Dedicated Schools Grant,Third Party Payments,410037,Rendered by Other Local Authorities,12-Apr-17,3269299-BPSI108,"9,517.27",BARBARA PRIESTMAN ACADEMY.
Dedicated Schools Grant,Dedicated Schools Grant,Third Party Payments,410037,Rendered by Other Local Authorities,12-Apr-17,3269299-BPSI109,"11,484.38",BARBARA PRIESTMAN ACADEMY.
Dedicated Schools Grant,Dedicated Schools Grant,Third Party Payments,410037,Rendered by Other Local Authorities,12-Apr-17,3269333-CFSI401,"12,808.54",CATCOTE FUTURES.
Regeneration and Local Services,Projects and Business services,Third Party Payments,430113,Rendered by Private Contractors,12-Apr-17,3269452-W171545,"271,731.75",HW MARTIN WASTE LTD.
Regeneration and Local Services,Technical Services,Third Party Payments,430100,Rendered by Private Contractors,12-Apr-17,3269473-S/02021,"98,073.26",JN BENTLEY.
Regeneration and Local Services,Technical Services,Supplies and Services,304221,Equipment and Materials,12-Apr-17,3269479-G0I72/D,806,JT DOVE LTD.
Regeneration and Local Services,Direct Services,Supplies and Services,304221,Equipment and Materials,12-Apr-17,3269479-GOI70/D,"1,029.00",JT DOVE LTD.
Regeneration and Local Services,Technical Services,Supplies and Services,304358,Equipment and Materials,12-Apr-17,3269642-2017017,"1,057.80",SHIREHAVEN LTD.
Children and Young Peoples Services,Childrens Services,Third Party Payments,425040,Rendered by Voluntary Organisations,12-Apr-17,3269654-1171746,998.5,ST CUTHBERTS CARE.
Regeneration and Local Services,Culture & Sport,Supplies and Services,338047,Services,12-Apr-17,3269724-1587445,"2,493.75",WALT DISNEY CO LTD.
Children and Young Peoples Services,Education,Transport,230008,Contract Hire,12-Apr-17,306731-M047/40,"1,610.00",C STEWART.
Adult and Health Services,EnvironmentHealth & Consumer Protection,Supplies and Services,372009,Subscriptions,12-Apr-17,306739-EMP6355,601.2,ENVIRONMENTAL MANAGEMENT PUBLISHING.
Regeneration and Local Services,Direct Services,Supplies and Services,304259,Equipment and Materials,12-Apr-17,3269265-005956,"2,050.20",A HILL & SONS LTD.
Adult and Health Services,Planning & Service Strategy,Supplies and Services,308011,Furniture,12-Apr-17,3269278-158482,508,ALBANY CONTRACT FURNITURE.
Children and Young Peoples Services,Childrens Services,Supplies and Services,308011,Furniture,12-Apr-17,3269278-158486,582,ALBANY CONTRACT FURNITURE.
Regeneration and Local Services,Direct Services,Transport,210057,Repair and Maintenance of Vehicles,12-Apr-17,3269331-476276,861.44,CARRS BILLINGTON AGRICULTURE.
Regeneration and Local Services,Direct Services,Transport,215012,Running Costs of Vehicles,12-Apr-17,3269343-192766,952,CHEVIN FLEET SOLUTIONS LTD.
Regeneration and Local Services,Transport and Contracted Services,Supplies and Services,332029,Printing Stationery and Gen Off Exps,12-Apr-17,3269387-210317,600,DURHAM MARKETS CO.
Children and Young Peoples Services,Education,Transport,230007,Contract Hire,12-Apr-17,3269438-90/014,"5,074.00",GRAHAMS MOTOR SERVICES.
